Body Name,Service Area,Expenses Type,Invoice Payment Date,Transaction Number,Net Amount,Supplier Name
Manchester City Council,Chief Executives,Agency staff provision,04.01.2011,5100406098,1671.32,Bennett Staff Bureau
Manchester City Council,Chief Executives,Agency staff provision,04.01.2011,5100406095,1984.67,Bennett Staff Bureau
Manchester City Council,Chief Executives,Agency staff provision,04.01.2011,5100406058,1383.9,Progressive Recruitment Ltd
Manchester City Council,Chief Executives,Agency staff provision,04.01.2011,5100406068,1383.9,Progressive Recruitment Ltd
Manchester City Council,Chief Executives,Agency staff provision,04.01.2011,5100406076,9540,Real Staffing Group Ltd
Manchester City Council,Chief Executives,Agency staff provision,04.01.2011,5100406093,1732.5,Sacco Mann Ltd
Manchester City Council,Libraries and Theatres,Books-Adult Fiction,04.01.2011,1902422579,661.06,Ulverscroft Large Print Books Ltd
Manchester City Council,Libraries and Theatres,Books-Adult Non Fict,04.01.2011,1902418480,1080.8,Coutts Information Services Ltd
Manchester City Council,Libraries and Theatres,Books-Adult Non Fict,04.01.2011,1902418466,2120.43,W.F.Howes Ltd
Manchester City Council,Hospitality + Trading Services,Building Materials for direct delivery,04.01.2011,5100406100,2860,Conditioned Air Technology Ltd
Manchester City Council,Housing General Fund,Building Works,04.01.2011,1902425739,1024,Lift Able Ltd
Manchester City Council,Housing General Fund,Building Works,04.01.2011,1902425671,1210,Lift Able Ltd
Manchester City Council,Housing General Fund,Building Works,04.01.2011,1902425752,2687,Lift Able Ltd
Manchester City Council,Housing General Fund,Building Works,04.01.2011,1902425669,3660,Lift Able Ltd
Manchester City Council,Housing General Fund,Building Works,04.01.2011,1902425677,4971,Lift Able Ltd
Manchester City Council,Housing General Fund,Building Works,04.01.2011,1902425745,1150,Manchester Working Ltd
Manchester City Council,Housing General Fund,Building Works,04.01.2011,1902425683,1377.85,Manchester Working Ltd
Manchester City Council,Housing General Fund,Building Works,04.01.2011,1902425681,3650,Manchester Working Ltd
Manchester City Council,Housing General Fund,Building Works,04.01.2011,1902425723,3650,Manchester Working Ltd
Manchester City Council,Housing General Fund,Building Works,04.01.2011,1902425728,3650,Manchester Working Ltd
Manchester City Council,Housing General Fund,Building Works,04.01.2011,1902425742,3650,Manchester Working Ltd
Manchester City Council,Housing General Fund,Building Works,04.01.2011,1902425748,3650,Manchester Working Ltd
Manchester City Council,Housing General Fund,Building Works,04.01.2011,1902425674,3750,Manchester Working Ltd
Manchester City Council,Housing General Fund,Building Works,04.01.2011,1902425707,3750,Manchester Working Ltd
Manchester City Council,Housing General Fund,Building Works,04.01.2011,1902425726,3750,Manchester Working Ltd
Manchester City Council,Housing General Fund,Building Works,04.01.2011,1902425743,3750,Manchester Working Ltd
Manchester City Council,Housing General Fund,Building Works,04.01.2011,1902425753,3750,Manchester Working Ltd
Manchester City Council,Housing General Fund,Building Works,04.01.2011,1902425754,3750,Manchester Working Ltd
Manchester City Council,Housing General Fund,Building Works,04.01.2011,1902425673,3921.25,Manchester Working Ltd
Manchester City Council,Housing General Fund,Building Works,04.01.2011,1902425731,4335.9,Manchester Working Ltd
Manchester City Council,Housing General Fund,Building Works,04.01.2011,1902425738,2175,McGrath Building Contractors
Manchester City Council,Housing General Fund,Building Works,04.01.2011,1902425750,5730,McGrath Building Contractors
Manchester City Council,Housing General Fund,Building Works,04.01.2011,1902425679,8330,McGrath Building Contractors
Manchester City Council,Housing General Fund,Building Works,04.01.2011,1902425675,10014.75,McGrath Building Contractors
Manchester City Council,Hospitality + Trading Services,Cleaning Equipment and Materials,04.01.2011,5100406086,500,Business Performance Ltd
Manchester City Council,Adult Social Care,Electricity,04.01.2011,5100405983,1125.77,Npower
Manchester City Council,Regeneration Finance,Electricity,04.01.2011,1902418444,1086.4,Redman Heenan Properties Limited
Manchester City Council,Regeneration Finance,Equipment,04.01.2011,1902422677,4970.2,Salford Electronics Consultants Ltd
Manchester City Council,Chief Executives,Grant and subscriptions awarded,04.01.2011,1902422756,1050,Burnage Community Association.
Manchester City Council,Chief Executives,Grant and subscriptions awarded,04.01.2011,1902422624,1000,Chorlton Good Neighbours
Manchester City Council,Chief Executives,Grant and subscriptions awarded,04.01.2011,1902422766,6534.77,CSTAR
Manchester City Council,Chief Executives,Grant and subscriptions awarded,04.01.2011,1902422691,1428.12,Debdale Eco Centre
Manchester City Council,Chief Executives,Grant and subscriptions awarded,04.01.2011,1902422688,1428.13,Debdale Eco Centre
Manchester City Council,Chief Executives,Grant and subscriptions awarded,04.01.2011,1902425644,4000,Didsbury Community Association
Manchester City Council,Chief Executives,Grant and subscriptions awarded,04.01.2011,1902425756,992.99,Friends of Chorlton Meadows
Manchester City Council,Chief Executives,Grant and subscriptions awarded,04.01.2011,1902422619,530,Friends of Chorlton Meadows
Manchester City Council,Chief Executives,Grant and subscriptions awarded,04.01.2011,1902425636,4000,Gorton Events Committee
Manchester City Council,Chief Executives,Grant and subscriptions awarded,04.01.2011,1902425637,4000,Gorton Events Committee
Manchester City Council,Chief Executives,Grant and subscriptions awarded,04.01.2011,1902422609,1000,Green Chorlton
Manchester City Council,Chief Executives,Grant and subscriptions awarded,04.01.2011,1902425633,3400.3,Higher Openshaw
Manchester City Council,Chief Executives,Grant and subscriptions awarded,04.01.2011,1902422613,1000,Ivygreen Allotments
Manchester City Council,Chief Executives,Grant and subscriptions awarded,04.01.2011,1902425635,7738.62,Justlife Community Interest Company
Manchester City Council,Chief Executives,Grant and subscriptions awarded,04.01.2011,1902422626,1000,Manchester Volunteer Centre
Manchester City Council,Chief Executives,Grant and subscriptions awarded,04.01.2011,1902425625,1771.99,NEPHRA residents Association
Manchester City Council,Chief Executives,Grant and subscriptions awarded,04.01.2011,1902418401,3375,The Pankhurst Centre
Manchester City Council,Chief Executives,Grant and subscriptions awarded,04.01.2011,1902418484,1000,Waters Edge Arts
Manchester City Council,Chief Executives,Grant and subscriptions awarded,04.01.2011,1902422608,1636.44,Waters Edge Arts
Manchester City Council,Chief Executives,Grant and subscriptions awarded,04.01.2011,1902422820,6468.1,West Didsbury Residents Association
Manchester City Council,Childrens Services,Home Care ,04.01.2011,5100406088,958.93,Caritas Diocese of Salford
Manchester City Council,Corporate Services,Int paymts,04.01.2011,1902425829,381277.14,Tameside Metropolitan Bouough
Manchester City Council,Libraries and Theatres,Internet access,04.01.2011,1902422561,4450,Gale International Ltd
Manchester City Council,Housing Revenue Account,Legal Fees,04.01.2011,1902425791,665,HMCS
Manchester City Council,Libraries and Theatres,Library Materials Acquisition,04.01.2011,1902418459,558.3,Coutts Information Services Ltd
Manchester City Council,Libraries and Theatres,Library Materials Acquisition,04.01.2011,1902422586,639.61,Ulverscroft Large Print Books Ltd
Manchester City Council,Regeneration Finance,Oth Professional Fee,04.01.2011,5100405982,"4,113.75",Commission for the New Economy
Manchester City Council,Chief Executives,Oth Professional Fee,04.01.2011,5100406083,"24,730.00",Mather & Co Limited
Manchester City Council,Childrens Services,Payments for services,04.01.2011,5100406104,568,Randstad Education
Manchester City Council,Childrens Services,Payments for services,04.01.2011,5100406105,568,Randstad Education
Manchester City Council,Manchester Leisure,Payments for services,04.01.2011,5100406092,754.8,REDACTED PERSONAL DATA
Manchester City Council,Hospitality + Trading Services,Payments to Sub-Contractors,04.01.2011,5100405978,500,Gro 2 Mow
Manchester City Council,Grtr Manchester Transport Unit,Payments to Sub-Contractors,04.01.2011,5100405988,1098.43,Sky High technology Ltd
Manchester City Council,Grtr Manchester Transport Unit,Payments to Sub-Contractors,04.01.2011,5100405989,1143.8,Sky High technology Ltd
Manchester City Council,Housing Revenue Account,Proffesional fees,04.01.2011,5100406038,4508.5,Hammonds
Manchester City Council,Housing Revenue Account,Proffesional fees,04.01.2011,5100406036,7439.5,Hammonds
Manchester City Council,Housing Revenue Account,Proffesional fees,04.01.2011,5100406040,21500,Hammonds
Manchester City Council,Chief Executives,Proffesional fees,04.01.2011,1902418010,700,Hopkins Van Mil
Manchester City Council,Housing Revenue Account,Rents,04.01.2011,1902425626,23750,Mars Pension Trustees Limited
Manchester City Council,Regeneration Finance,Rents,04.01.2011,1902408562,7645.5,Mars Pension Trustees Limited
Manchester City Council,Libraries and Theatres,SR-Child Talk Books,04.01.2011,1902418447,1283.92,W.F.Howes Ltd
Manchester City Council,Libraries and Theatres,Subsistence and Conference Expenses,04.01.2011,1902422690,2705,Theatrical Management Assoc Ltd
Manchester City Council,Housing Revenue Account,Tipping - Skips,04.01.2011,1902417133,705.05,Viridor Waste (Greater M/cr) Ltd
Manchester City Council,Grtr Manchester Urban Traffic,Training and Development,04.01.2011,1902418426,2250,Academy Class Ltd
Manchester City Council,Adult Social Care,Transport and Driver Hire,04.01.2011,5100406075,19966.67,A & D Transport
Manchester City Council,Childrens Services,Works and associated costs for Land and Buildings,04.01.2011,5100406033,-299365.2,Balfour Beatty Construction Ltd
Manchester City Council,Corporate Services,Works and associated costs for Land and Buildings,04.01.2011,5100406079,5207,Ove Arup & Partners Ltd
Manchester City Council,Corporate Services,Works and associated costs for Land and Buildings,04.01.2011,5100406084,6990,Ove Arup & Partners Ltd
Manchester City Council,Chief Executives,Agency staff provision,05.01.2011,5100406226,2031.68,Bennett Staff Bureau
Manchester City Council,Chief Executives,Agency staff provision,05.01.2011,5100406250,2925.29,Deekay Technical Recruitment Ltd
Manchester City Council,Chief Executives,Agency staff provision,05.01.2011,5100406137,1374.7,Harbex Nursing & Care
Manchester City Council,Chief Executives,Agency staff provision,05.01.2011,5100406136,1818.39,Harbex Nursing & Care
Manchester City Council,Chief Executives,Agency staff provision,05.01.2011,5100406352,610.2,MTRP Ltd
Manchester City Council,Chief Executives,Agency staff provision,05.01.2011,5100406214,1139.92,The Synergy Group Ltd
Manchester City Council,Libraries and Theatres,Books-Adult Non Fict,05.01.2011,1902425682,1149.19,Gay'S The Word
Manchester City Council,Housing General Fund,Building Works,05.01.2011,1902425793,13093.49,McGrath Building Contractors
Manchester City Council,Chief Executives,Car Parking Permits,05.01.2011,5100406154,5091.66,Willowfox Ltd T/A
Manchester City Council,Hospitality + Trading Services,Coach Hire,05.01.2011,5100406378,1727,B Curbishley Ltd
Manchester City Council,Childrens Services,Coach Hire,05.01.2011,5100406367,4680.5,Rochdale MBC
Manchester City Council,Chief Executives,Communications,05.01.2011,5100406224,610,Dinosaur Uk Limited
Manchester City Council,Learning Disabilities PB,Day Care Payments,05.01.2011,5100406182,654.48,Brothers Of Charity Services
Manchester City Council,Chief Executives,Funeral and coroner related services,05.01.2011,1902425815,573.43,REDACTED PERSONAL DATA
Manchester City Council,Chief Executives,Funeral and coroner related services,05.01.2011,1902418425,750,REDACTED PERSONAL DATA
Manchester City Council,Chief Executives,Funeral and coroner related services,05.01.2011,1902418195,954.56,REDACTED PERSONAL DATA
Manchester City Council,Chief Executives,Funeral and coroner related services,05.01.2011,1902418414,502,REDACTED PERSONAL DATA
Manchester City Council,Chief Executives,Goods purchased for resale in Council outlets,05.01.2011,1902418419,539.93,REDACTED PERSONAL DATA
Manchester City Council,Chief Executives,Grant and subscriptions awarded,05.01.2011,1902425832,1000,Chorlton Arts Festival
Manchester City Council,Chief Executives,Grant and subscriptions awarded,05.01.2011,1902425809,591,Chorlton Civic Society
Manchester City Council,Chief Executives,Grant and subscriptions awarded,05.01.2011,1902425843,6778.97,Chorlton Civic Society
Manchester City Council,Chief Executives,Grant and subscriptions awarded,05.01.2011,1902425812,2700,Chorlton Traders Association
Manchester City Council,Regeneration Finance,Grant and subscriptions awarded,05.01.2011,5100406263,1000,Dance Initiative Greater Manchester
Manchester City Council,Regeneration Finance,Grant and subscriptions awarded,05.01.2011,5100406265,1000,Dance Initiative Greater Manchester
Manchester City Council,Chief Executives,Grant and subscriptions awarded,05.01.2011,1902425779,1000,Green Chorlton
Manchester City Council,Chief Executives,Grant and subscriptions awarded,05.01.2011,1902425759,2478,Intergen CIC
Manchester City Council,Chief Executives,Grant and subscriptions awarded,05.01.2011,1902430508,200000,Manchester International Festival
Manchester City Council,Chief Executives,Grant and subscriptions awarded,05.01.2011,1902425773,3935.76,Manchester Volunteer Ctr
Manchester City Council,Corporate Services,Grant and subscriptions awarded,05.01.2011,5100381454,595,Rating Publishing
Manchester City Council,Section 48,Grant and subscriptions awarded,05.01.2011,5100406266,3200,Relate Manchester
Manchester City Council,Section 48,Grant and subscriptions awarded,05.01.2011,5100406268,2825,Shisha
Manchester City Council,Chief Executives,Grant and subscriptions awarded,05.01.2011,1902418395,1289,Union Chapel (Fallowfield)
Manchester City Council,Chief Executives,Grant and subscriptions awarded,05.01.2011,1902418398,5480.83,West Didsbury Residents Association
Manchester City Council,Childrens Services,Grant and subscriptions awarded,05.01.2011,5100406327,23839.42,Willow Park Housing Trust
Manchester City Council,Chief Executives,Grant and subscriptions awarded,05.01.2011,1902418370,3115.67,Wryoa W.H.I.Z
Manchester City Council,Childrens Services,Home Care ,05.01.2011,5100406157,990.89,Caritas Diocese of Salford
Manchester City Council,Regeneration Finance,Home Care ,05.01.2011,5100406351,1556.1,Little Cedars
Manchester City Council,Regeneration Finance,Home Care ,05.01.2011,5100406161,3049.2,Little Cedars
Manchester City Council,Corporate Services,I T Provision,05.01.2011,5100406196,1683.86,NWIX Group Ltd
Manchester City Council,Chief Executives,Infrastructure Fees,05.01.2011,5100406308,-9029,Lock It Safe Ltd
Manchester City Council,Chief Executives,Infrastructure Fees,05.01.2011,5100406309,9029,Lock It Safe Ltd
Manchester City Council,Libraries and Theatres,Internet access,05.01.2011,1902425724,1364.8,Loughborough University
Manchester City Council,Childrens Services,Landline Telephone,05.01.2011,1902365337,1230.36,BT PLC
Manchester City Council,Environment and Operations,Landline Telephone,05.01.2011,1902418434,1866.25,BT PLC
Manchester City Council,Regeneration Finance,Landline Telephone,05.01.2011,1902422676,511.2,BT PLC
Manchester City Council,Regeneration Finance,Landline Telephone,05.01.2011,1902422670,1405.78,BT PLC
Manchester City Council,Regeneration Finance,Landline Telephone,05.01.2011,1902422683,2201.66,BT PLC
Manchester City Council,Regeneration Finance,Landline Telephone,05.01.2011,1902422689,3829.11,BT PLC
Manchester City Council,Childrens Services,Legal Fees,05.01.2011,5100406330,734.38,REDACTED PERSONAL DATA
Manchester City Council,Highways Services,Legal Fees,05.01.2011,5100406152,1216.13,REDACTED PERSONAL DATA
Manchester City Council,Chief Executives,Mobilephone Charges,05.01.2011,1902422672,1946.08,T-Mobile
Manchester City Council,Childrens Services,Oth Professional Fee,05.01.2011,5100406311,921.00,Snap Surveys Ltd
Manchester City Council,Childrens Services,Oth Professional Fee,05.01.2011,5100406286,"1,069.50",Snap Surveys Ltd
Manchester City Council,Childrens Services,Payments for services,05.01.2011,5100406270,17263.8,European Wellcare Education Ltd
Manchester City Council,Manchester Leisure,Payments for services,05.01.2011,5100406285,15000,Sale Harriers Manchester
Manchester City Council,Childrens Services,Payments for services,05.01.2011,5100406326,1090.08,The Together Trust
Manchester City Council,Grtr Manchester Transport Unit,Payments to Sub-Contractors,05.01.2011,5100406032,5608.99,Jacobs Engineering UK Ltd
Manchester City Council,Grtr Manchester Transport Unit,Payments to Sub-Contractors,05.01.2011,5100403501,11868.02,Jacobs Engineering UK Ltd
Manchester City Council,Grtr Manchester Transport Unit,Payments to Sub-Contractors,05.01.2011,5100406029,7441.8,Jacobs Engineering UK Ltd
Manchester City Council,Grtr Manchester Transport Unit,Payments to Sub-Contractors,05.01.2011,5100406031,17147.7,Jacobs Engineering UK Ltd
Manchester City Council,Chief Executives,Printing,05.01.2011,5100406232,665.35,Tower Supplies
Manchester City Council,Environment and Operations,Proffesional fees,05.01.2011,5100406237,512,Charles Beresford + Co Ltd
Manchester City Council,Childrens Services,Proffesional fees,05.01.2011,5100406349,1000,MTR Solutions Ltd
Manchester City Council,Childrens Services,Proffesional fees,05.01.2011,5100406176,1750,The Critical Difference Ltd
Manchester City Council,Hospitality + Trading Services,Purchase of stores for re-distribution,05.01.2011,5100406145,3074.4,Colas Limited
Manchester City Council,Adult Social Care,Rehabilitation Pays,05.01.2011,5100406374,840,Intuitive Recovery Ltd
Manchester City Council,Adult Social Care,Rehabilitation Pays,05.01.2011,5100406376,840,Intuitive Recovery Ltd
Manchester City Council,Adult Social Care,Rehabilitation Pays,05.01.2011,5100406355,707.14,Inward House Projects
Manchester City Council,Adult Social Care,Rehabilitation Pays,05.01.2011,5100406341,1928.57,Inward House Projects
Manchester City Council,Adult Social Care,Rehabilitation Pays,05.01.2011,5100406345,1928.57,Inward House Projects
Manchester City Council,Adult Social Care,Rehabilitation Pays,05.01.2011,5100406364,1928.57,Inward House Projects
Manchester City Council,Adult Social Care,Rehabilitation Pays,05.01.2011,5100406366,1928.57,Inward House Projects
Manchester City Council,Adult Social Care,Rehabilitation Pays,05.01.2011,5100406372,1928.57,Inward House Projects
Manchester City Council,Adult Social Care,Rehabilitation Pays,05.01.2011,5100406343,1992.86,Inward House Projects
Manchester City Council,Adult Social Care,Rehabilitation Pays,05.01.2011,5100406357,1992.86,Inward House Projects
Manchester City Council,Adult Social Care,Rehabilitation Pays,05.01.2011,5100406365,1992.86,Inward House Projects
Manchester City Council,Environment and Operations,Rents,05.01.2011,5100406162,20610.75,Burdett Properties Ltd
Manchester City Council,Adult Social Care,Rents,05.01.2011,5100406045,14447.74,Collier & Madge
Manchester City Council,Adult Social Care,Rents,05.01.2011,5100406315,10229,Grail Property
Manchester City Council,Chief Executives,Stationery,05.01.2011,1902389950,595,Hannay Associates Ltd
Manchester City Council,Learning Disabilities PB,Supported Accom,05.01.2011,5100406172,702.76,Brothers Of Charity Services
Manchester City Council,Learning Disabilities PB,Supported Accom,05.01.2011,5100406181,2162.12,Brothers Of Charity Services
Manchester City Council,Learning Disabilities PB,Supported Accom,05.01.2011,5100406188,2281.48,Brothers Of Charity Services
Manchester City Council,Learning Disabilities PB,Supported Accom,05.01.2011,5100406194,3092.28,Brothers Of Charity Services
Manchester City Council,Learning Disabilities PB,Supported Accom,05.01.2011,5100406167,4007.8,Brothers Of Charity Services
Manchester City Council,Environment and Operations,Testing Fees,05.01.2011,5100406153,11455,Staffordshire County Council
Manchester City Council,Childrens Services,Third party payments to other Local Authorities,05.01.2011,5100406221,14297.79,Cheshire West and Chester
Manchester City Council,Adult Social Care,Third party payments to other Local Authorities,05.01.2011,5100406178,24490.64,City Of Salford
Manchester City Council,Hospitality + Trading Services,Vehicle Hire Costs,05.01.2011,5100406347,867,John Bradshaw Ltd
Manchester City Council,Hospitality + Trading Services,Vehicle Hire Costs,05.01.2011,5100406314,38588.97,Winners Contract Hire Ltd
Manchester City Council,Chief Executives,Works and associated costs for Land and Buildings,05.01.2011,5100406294,-2140,Appleyard & Trew Llp
Manchester City Council,Corporate Services,Works and associated costs for Land and Buildings,05.01.2011,5100406155,208500.43,Bramall Construction Ltd
Manchester City Council,Corporate Services,Works and associated costs for Land and Buildings,05.01.2011,5100406155,208501.57,Bramall Construction Ltd
Manchester City Council,Chief Executives,Advertising,06.01.2011,1902425733,543.75,Living with a Disability
Manchester City Council,Chief Executives,Agency staff provision,06.01.2011,5100406539,4965.68,Capita  Resourcing Ltd
Manchester City Council,Chief Executives,Agency staff provision,06.01.2011,5100406536,8686.53,Capita  Resourcing Ltd
Manchester City Council,Chief Executives,Agency staff provision,06.01.2011,5100406526,8762.44,Capita  Resourcing Ltd
Manchester City Council,Chief Executives,Agency staff provision,06.01.2011,5100406535,9202.58,Capita  Resourcing Ltd
Manchester City Council,Chief Executives,Agency staff provision,06.01.2011,5100406538,11077.7,Capita  Resourcing Ltd
Manchester City Council,Childrens Services,Agency staff provision,06.01.2011,5100406772,1350,PULSE
Manchester City Council,Hospitality + Trading Services,Building Materials for direct delivery,06.01.2011,5100406026,565,N. A. Brown Limited
Manchester City Council,Housing General Fund,Building Works,06.01.2011,1902395038,10268,AJC Builders Ltd
Manchester City Council,Housing General Fund,Building Works,06.01.2011,1902425710,4290,Manchester Working Ltd
Manchester City Council,Childrens Services,CAMC/Not assigned,06.01.2011,5100406572,-4818.94,Henshaws Society For Blind People
Manchester City Council,Childrens Services,Childrens Allowances,06.01.2011,1902429760,539.2,REDACTED PERSONAL DATA
Manchester City Council,Chief Executives,Cleaning Equipment and Materials,06.01.2011,5100406393,705.76,Manchester Airport Plc
Manchester City Council,Highways Services,Compensation Payments,06.01.2011,1902431750,5000,Thompsons Solicitors
Manchester City Council,Adult Social Care,"Consumable items eg Toilet rolls, soap etc",06.01.2011,5100405999,820.51,The Furnishing Service Ltd
Manchester City Council,Corporate Services,Contract Cleaning External,06.01.2011,5100385085,1140,Verti-Tech Ltd
Manchester City Council,Chief Executives,Electricity,06.01.2011,1902431964,592.6,E-On
Manchester City Council,Adult Social Care,Electricity,06.01.2011,1902431993,1978.46,Scottish & Southern Energy Plc
Manchester City Council,Chief Executives,Electricity,06.01.2011,1902431987,12980.24,Scottish & Southern Energy Plc
Manchester City Council,Chief Executives,Electricity,06.01.2011,1902431981,18912.71,Scottish & Southern Energy Plc
Manchester City Council,Childrens Services,Electricity,06.01.2011,1902431982,546.94,Scottish & Southern Energy Plc
Manchester City Council,Childrens Services,Electricity,06.01.2011,1902431972,2850.47,Scottish & Southern Energy Plc
Manchester City Council,Childrens Services,Electricity,06.01.2011,1902431994,3215.01,Scottish & Southern Energy Plc
Manchester City Council,Corporate Services,Electricity,06.01.2011,1902431986,3366.25,Scottish & Southern Energy Plc
Manchester City Council,Corporate Services,Electricity,06.01.2011,1902431984,11120.41,Scottish & Southern Energy Plc
Manchester City Council,Corporate Services,Electricity,06.01.2011,1902431979,12335.59,Scottish & Southern Energy Plc
Manchester City Council,Corporate Services,Electricity,06.01.2011,1902431976,11845.65,Scottish & Southern Energy Plc
Manchester City Council,Corporate Services,Electricity,06.01.2011,1902431977,5888.67,Scottish & Southern Energy Plc
Manchester City Council,Environment and Operations,Electricity,06.01.2011,1902431985,6860.97,Scottish & Southern Energy Plc
Manchester City Council,Environment and Operations,Electricity,06.01.2011,1902431969,2366.97,Scottish & Southern Energy Plc
Manchester City Council,Environment and Operations,Electricity,06.01.2011,1902431991,3558.21,Scottish & Southern Energy Plc
Manchester City Council,Environment and Operations,Electricity,06.01.2011,1902431973,1398.04,Scottish & Southern Energy Plc
Manchester City Council,Environment and Operations,Electricity,06.01.2011,1902431975,1357.89,Scottish & Southern Energy Plc
Manchester City Council,Hospitality + Trading Services,Electricity,06.01.2011,1902431978,13016.04,Scottish & Southern Energy Plc
Manchester City Council,Hospitality + Trading Services,Electricity,06.01.2011,1902431990,12330.27,Scottish & Southern Energy Plc
Manchester City Council,Hospitality + Trading Services,Electricity,06.01.2011,1902431967,22235.96,Scottish & Southern Energy Plc
Manchester City Council,Hospitality + Trading Services,Electricity,06.01.2011,1902431974,9291.58,Scottish & Southern Energy Plc
Manchester City Council,Hospitality + Trading Services,Electricity,06.01.2011,1902431966,1608.02,Scottish & Southern Energy Plc
Manchester City Council,Hospitality + Trading Services,Electricity,06.01.2011,1902431971,4220.91,Scottish & Southern Energy Plc
Manchester City Council,Hospitality + Trading Services,Electricity,06.01.2011,1902431988,1624.68,Scottish & Southern Energy Plc
Manchester City Council,Hospitality + Trading Services,Electricity,06.01.2011,1902431968,2541.95,Scottish & Southern Energy Plc
Manchester City Council,Libraries and Theatres,Electricity,06.01.2011,1902431970,1255.26,Scottish & Southern Energy Plc
Manchester City Council,Manchester Leisure,Electricity,06.01.2011,1902431980,1062.31,Scottish & Southern Energy Plc
Manchester City Council,Manchester Leisure,Electricity,06.01.2011,1902431983,4063.4,Scottish & Southern Energy Plc
Manchester City Council,Manchester Leisure,Electricity,06.01.2011,1902431992,8080.85,Scottish & Southern Energy Plc
Manchester City Council,Regeneration Finance,Electricity,06.01.2011,1902431989,11743.59,Scottish & Southern Energy Plc
Manchester City Council,Highways Services,Electricity,06.01.2011,1902431965,1057.97,Scottish Power
Manchester City Council,Chief Executives,Examination Fees,06.01.2011,5100406700,1295,University Hospital of South Mcr
Manchester City Council,Childrens Services,External repairs and maintenance for buildings,06.01.2011,5100406749,50384.99,Manchester Working Ltd
Manchester City Council,Childrens Services,Fixtures and Fitting,06.01.2011,1902425715,1792,Barnardos Manchester Leaving Care S
Manchester City Council,Childrens Services,Foster Payments,06.01.2011,1902425715,3067.21,Barnardos Manchester Leaving Care S
Manchester City Council,Chief Executives,Funeral and coroner related services,06.01.2011,5100406700,5400,University Hospital of South Mcr
Manchester City Council,Chief Executives,Goods purchased for resale in Council outlets,06.01.2011,5100406775,2500,The Consultancy Group
Manchester City Council,Childrens Services,Grant and subscriptions awarded,06.01.2011,1902423718,16427.75,Family Action Benchill
Manchester City Council,Section 48,Grant and subscriptions awarded,06.01.2011,5100406436,2975,Full Circle Arts
Manchester City Council,Childrens Services,Grant and subscriptions awarded,06.01.2011,1902425629,9574.25,G M P R U
Manchester City Council,Section 48,Grant and subscriptions awarded,06.01.2011,5100406416,5100,Greater M/Cr Hazards Centre
Manchester City Council,Section 48,Grant and subscriptions awarded,06.01.2011,5100406403,20275,Greater Manchester Coalition Of Dis
Manchester City Council,Section 48,Grant and subscriptions awarded,06.01.2011,5100406408,7525,Green Room
Manchester City Council,Regeneration Finance,Grant and subscriptions awarded,06.01.2011,5100406406,18000,Groundwork Manchester
Manchester City Council,Section 48,Grant and subscriptions awarded,06.01.2011,5100406404,13700,Manchester Camerata
Manchester City Council,Childrens Services,Grant and subscriptions awarded,06.01.2011,5100406519,8249,Manchester Carers Forum
Manchester City Council,Section 48,Grant and subscriptions awarded,06.01.2011,5100406439,2825,Manchester Metropolitan University
Manchester City Council,Childrens Services,Grant and subscriptions awarded,06.01.2011,1902425627,1449,Manchester Young Lives
Manchester City Council,Section 48,Grant and subscriptions awarded,06.01.2011,5100406432,3700,North West Playwrights
Manchester City Council,Section 48,Grant and subscriptions awarded,06.01.2011,5100406427,4900,North West Sound Archive
Manchester City Council,Section 48,Grant and subscriptions awarded,06.01.2011,5100406409,6950,North West Vision and Media
Manchester City Council,Section 48,Grant and subscriptions awarded,06.01.2011,5100406399,25675,Oldham Coliseum Theatre
Manchester City Council,Section 48,Grant and subscriptions awarded,06.01.2011,5100406443,110825,Peoples History Museum
Manchester City Council,Childrens Services,Grant and subscriptions awarded,06.01.2011,1902422693,14414.25,Trinity House Community Resource
Manchester City Council,Childrens Services,Grant and subscriptions awarded,06.01.2011,1902425835,8510.25,Wythenshawe Community Initiative
Manchester City Council,Childrens Services,Hire of Premises,06.01.2011,5100406710,-600,The Monastery Manchester Ltd
Manchester City Council,Childrens Services,I T Provision,06.01.2011,5100406552,9400,Lancashire County Council
Manchester City Council,Regeneration Finance,Insurance,06.01.2011,1902425836,1221,Bruntwood Estates Alpha
Manchester City Council,Adult Social Care,Landline Telephone,06.01.2011,1902407799,1363.08,BT PLC
Manchester City Council,Housing Revenue Account,Legal Fees,06.01.2011,5100406684,6176.5,Eversheds Llp
Manchester City Council,Housing Revenue Account,Legal Fees,06.01.2011,5100406681,8375,Eversheds Llp
Manchester City Council,Housing Revenue Account,Legal Fees,06.01.2011,5100406683,9350.21,Eversheds Llp
Manchester City Council,Housing Revenue Account,Legal Fees,06.01.2011,5100406680,20087.5,Eversheds Llp
Manchester City Council,Adult Social Care,Legal Fees,06.01.2011,5100406531,587.5,Redacted Personal Data
Manchester City Council,Manchester Leisure,Legal Fees,06.01.2011,5100406777,925,Tim Garbutt Events Ltd
Manchester City Council,Libraries and Theatres,Library Materials Acquisition,06.01.2011,1902431524,1461.59,Bertram Library Services
Manchester City Council,Highways Services,Oth Professional Fee,06.01.2011,5100406779,"10,072.48",AECOM Limited
Manchester City Council,Childrens Services,Payments for services,06.01.2011,5100406391,1498.37,Manchester Young Lives
Manchester City Council,Learning Disabilities PB,Payments for services,06.01.2011,5100406397,2193.14,REDACTED PERSONAL DATA
Manchester City Council,Regeneration Finance,Payments for services,06.01.2011,5100406968,-740,Smiths Marquees
Manchester City Council,Manchester Leisure,Payments for services,06.01.2011,5100406576,1904,Womens Running Network
Manchester City Council,Grtr Manchester Urban Traffic,Payments to Sub-Contractors,06.01.2011,5100406529,1174.2,Rosgal Ltd
Manchester City Council,Grtr Manchester Urban Traffic,Payments to Sub-Contractors,06.01.2011,5100406505,534,Rosgal Ltd
Manchester City Council,Grtr Manchester Urban Traffic,Payments to Sub-Contractors,06.01.2011,5100406522,582,Rosgal Ltd
Manchester City Council,Grtr Manchester Urban Traffic,Payments to Sub-Contractors,06.01.2011,5100406523,582,Rosgal Ltd
Manchester City Council,Grtr Manchester Urban Traffic,Payments to Sub-Contractors,06.01.2011,5100406525,582,Rosgal Ltd
Manchester City Council,Grtr Manchester Urban Traffic,Payments to Sub-Contractors,06.01.2011,5100406520,639.8,Rosgal Ltd
Manchester City Council,Grtr Manchester Urban Traffic,Payments to Sub-Contractors,06.01.2011,5100406518,1374.8,Rosgal Ltd
Manchester City Council,Childrens Services,Personal needs of client,06.01.2011,1902425715,1080,Barnardos Manchester Leaving Care S
Manchester City Council,Regeneration Finance,Postage,06.01.2011,5100406657,500,Royal Mail
Manchester City Council,Chief Executives,Printing,06.01.2011,5100406663,-950,BurrBaxter Print Ltd
Manchester City Council,Corporate Services,Printing,06.01.2011,5100406369,1316,Child Poverty Action Group
Manchester City Council,Housing Revenue Account,Private Finance and Public Private partnership initiatives,06.01.2011,5100406445,920417,Renaissance Miles Platting Ltd
Manchester City Council,Regeneration Finance,Proffesional fees,06.01.2011,1902418224,10000,4D Creative
Manchester City Council,Chief Executives,Proffesional fees,06.01.2011,1902425763,2100,Aerial-Pix
Manchester City Council,Childrens Services,Proffesional fees,06.01.2011,1902422629,864.33,Bromley Hyde & Robinson
Manchester City Council,Childrens Services,Proffesional fees,06.01.2011,1902410411,1116,Bromley Hyde & Robinson
Manchester City Council,Childrens Services,Proffesional fees,06.01.2011,1902410409,855,Bromley Hyde & Robinson
Manchester City Council,Environment and Operations,Proffesional fees,06.01.2011,5100406463,530.5,Charles Beresford + Co Ltd
Manchester City Council,Childrens Services,Proffesional fees,06.01.2011,1902423646,576.02,EAS Social Work Services Ltd
Manchester City Council,Environment and Operations,Proffesional fees,06.01.2011,5100406625,2067.73,Electoral Reform Services Ltd
Manchester City Council,Regeneration Finance,Proffesional fees,06.01.2011,1902422603,3000,FC United of Manchester
Manchester City Council,Regeneration Finance,Proffesional fees,06.01.2011,1902422593,5000,Key for the City
Manchester City Council,Environment and Operations,Proffesional fees,06.01.2011,5100406690,891.4,Osborne Richardson
Manchester City Council,Environment and Operations,Proffesional fees,06.01.2011,5100406689,949.6,Osborne Richardson
Manchester City Council,Regeneration Finance,Proffesional fees,06.01.2011,1902416459,5000,Pedal Precision
Manchester City Council,Regeneration Finance,Proffesional fees,06.01.2011,1902416458,3000,Project Simply
Manchester City Council,Childrens Services,Proffesional fees,06.01.2011,1902422684,528.75,REDACTED PERSONAL DATA
Manchester City Council,Childrens Services,Proffesional fees,06.01.2011,1902422606,881.25,REDACTED PERSONAL DATA
Manchester City Council,Childrens Services,Proffesional fees,06.01.2011,1902418406,3760.01,REDACTED PERSONAL DATA
Manchester City Council,Childrens Services,Proffesional fees,06.01.2011,1902422642,1020.12,REDACTED PERSONAL DATA
Manchester City Council,Childrens Services,Proffesional fees,06.01.2011,1902422664,1477.12,Stephensons Solicitors
Manchester City Council,Childrens Services,Proffesional fees,06.01.2011,1902422653,896,Stockport Peychology Services Ltd
Manchester City Council,Regeneration Finance,Proffesional fees,06.01.2011,1902418384,3000,Sunde Technologies Ltd
Manchester City Council,Childrens Services,Proffesional fees,06.01.2011,1902430657,681,UCLAN BUSINESS SERVICES LTD
Manchester City Council,Hospitality + Trading Services,Purchase of stores for re-distribution,06.01.2011,5100406676,1146.97,PHS Group
Manchester City Council,Hospitality + Trading Services,Refuse Collection,06.01.2011,5100406503,567.67,G.G. Rentals Ltd
Manchester City Council,Adult Social Care,Rehabilitation Pays,06.01.2011,5100406386,840,Intuitive Recovery Ltd
Manchester City Council,Adult Social Care,Rehabilitation Pays,06.01.2011,5100406382,1680,Intuitive Recovery Ltd
Manchester City Council,Adult Social Care,Renoval and Storage of Furniture,06.01.2011,5100406002,713.33,The Furnishing Service Ltd
Manchester City Council,Adult Social Care,Rents,06.01.2011,5100406687,6140.64,Edmund Kirby & Sons Mgmt Services
Manchester City Council,Childrens Services,Rents,06.01.2011,5100406687,12664.48,Edmund Kirby & Sons Mgmt Services
Manchester City Council,Childrens Services,Rents,06.01.2011,5100406687,13667.89,Edmund Kirby & Sons Mgmt Services
Manchester City Council,Adult Social Care,Rents,06.01.2011,1902416421,16970.76,Mosscare Housing Ltd
Manchester City Council,Learning Disabilities PB,Residential Care Homes Payments,06.01.2011,5100406544,1081.36,Ormerod Home Trust Ltd
Manchester City Council,Adult Social Care,Residential Furniture,06.01.2011,5100406014,1067.49,The Furnishing Service Ltd
Manchester City Council,Adult Social Care,Residential Furniture,06.01.2011,5100406722,571.55,The Furnishing Service Ltd
Manchester City Council,Adult Social Care,Residential Furniture,06.01.2011,5100406747,1416.67,The Furnishing Service Ltd
Manchester City Council,Adult Social Care,Residential Furniture,06.01.2011,5100406757,1800.1,The Furnishing Service Ltd
Manchester City Council,Childrens Services,Residential Furniture,06.01.2011,5100406005,893.25,The Furnishing Service Ltd
Manchester City Council,Childrens Services,Student Discretionery Awards,06.01.2011,5100406147,1310,Edge Hill University
Manchester City Council,Childrens Services,Student Discretionery Awards,06.01.2011,5100406148,1310,Edge Hill University
Manchester City Council,Childrens Services,Subsistence and Conference Expenses,06.01.2011,1902423722,1350,REDACTED PERSONAL DATA
Manchester City Council,Childrens Services,Taxi Expenses,06.01.2011,1902425664,640,Eastlands UK Cars
Manchester City Council,Childrens Services,Taxi Expenses,06.01.2011,1902425657,1474,Eastlands UK Cars
Manchester City Council,Childrens Services,Taxi Expenses,06.01.2011,1902425610,1490,Eastlands UK Cars
Manchester City Council,Childrens Services,Third party payments to other Local Authorities,06.01.2011,5100406685,1750,Manchester Metropolitan University
Manchester City Council,Hospitality + Trading Services,Tipping - Skips,06.01.2011,1902417698,713.64,Viridor Waste (Greater M/cr) Ltd
Manchester City Council,Hospitality + Trading Services,Tipping - Skips,06.01.2011,1902417701,869.81,Viridor Waste (Greater M/cr) Ltd
Manchester City Council,Hospitality + Trading Services,Tipping - Skips,06.01.2011,1902417702,956.91,Viridor Waste (Greater M/cr) Ltd
Manchester City Council,Hospitality + Trading Services,Tipping - Skips,06.01.2011,1902417697,1000.8,Viridor Waste (Greater M/cr) Ltd
Manchester City Council,Hospitality + Trading Services,Tipping - Skips,06.01.2011,1902417700,1324.09,Viridor Waste (Greater M/cr) Ltd
Manchester City Council,Hospitality + Trading Services,Tipping - Skips,06.01.2011,1902417696,8102.76,Viridor Waste (Greater M/cr) Ltd
Manchester City Council,Environment and Operations,Tipping - Tonnage,06.01.2011,5100406737,-1750,Redgate Holdings Ltd
Manchester City Council,Environment and Operations,Tipping - Tonnage,06.01.2011,5100406736,21889.06,Redgate Holdings Ltd
Manchester City Council,Childrens Services,Training and Development,06.01.2011,5100406507,557,Designs For Education Ltd
Manchester City Council,Hospitality + Trading Services,Vehicle Fuel Costs,06.01.2011,5100406548,-561.4,Carlton Fuels Ltd
Manchester City Council,Hospitality + Trading Services,Vehicle Fuel Costs,06.01.2011,5100406129,2733,Carlton Fuels Ltd
Manchester City Council,Hospitality + Trading Services,Vehicle Fuel Costs,06.01.2011,5100406059,18891,Carlton Fuels Ltd
Manchester City Council,Hospitality + Trading Services,Vehicle Fuel Costs,06.01.2011,5100406056,18893.1,Carlton Fuels Ltd
Manchester City Council,Hospitality + Trading Services,Vehicle Hire Costs,06.01.2011,5100406335,-603,John Bradshaw Ltd
Manchester City Council,Hospitality + Trading Services,Vehicle Hire Costs,06.01.2011,5100406037,603,John Bradshaw Ltd
Manchester City Council,Chief Executives,Agency staff provision,07.01.2011,5100406925,1901.69,Blue Arrow Ltd
Manchester City Council,Chief Executives,Agency staff provision,07.01.2011,5100406813,5043.45,SRA Cover Staff Ltd
Manchester City Council,Childrens Services,Agency staff provision,07.01.2011,5100406824,2072.98,SRA Cover Staff Ltd
Manchester City Council,Hospitality + Trading Services,Building Materials for direct delivery,07.01.2011,5100407038,882,Viewprint
Manchester City Council,Housing General Fund,Building Works,07.01.2011,5100407182,16918,Manchester Care & Repair Ltd
Manchester City Council,Housing General Fund,Building Works,07.01.2011,5100407160,17957,Manchester Care & Repair Ltd
Manchester City Council,Housing General Fund,Building Works,07.01.2011,5100407157,20008,Manchester Care & Repair Ltd
Manchester City Council,Childrens Services,Building Works,07.01.2011,1902425045,96178,Shrewsbury Diocese
Manchester City Council,Hospitality + Trading Services,Catering Provisions,07.01.2011,1902432668,591.03,Brake Bros Foodservice Ltd
Manchester City Council,Hospitality + Trading Services,Catering Provisions,07.01.2011,1902432667,806.35,Brake Bros Foodservice Ltd
Manchester City Council,Hospitality + Trading Services,Cleaning Equipment and Materials,07.01.2011,5100406920,524.89,PHS Group
Manchester City Council,Hospitality + Trading Services,Cleaning Equipment and Materials,07.01.2011,5100406817,572.65,PHS Group
Manchester City Council,Hospitality + Trading Services,Cleaning Equipment and Materials,07.01.2011,5100406917,572.65,PHS Group
Manchester City Council,Hospitality + Trading Services,Coach Hire,07.01.2011,5100406800,1728,Jeffries Cars
Manchester City Council,Highways Services,Compensation Payments,07.01.2011,1902422821,5500,Aegis Legal
Manchester City Council,Highways Services,Compensation Payments,07.01.2011,1902422602,566,Department For Work & Pensions
Manchester City Council,Highways Services,Compensation Payments,07.01.2011,1902422604,566,Department For Work & Pensions
Manchester City Council,Highways Services,Compensation Payments,07.01.2011,1902422678,566,Department For Work & Pensions
Manchester City Council,Highways Services,Compensation Payments,07.01.2011,1902423647,5220,REDACTED PERSONAL DATA
Manchester City Council,Highways Services,Compensation Payments,07.01.2011,1902425641,2972.04,REDACTED PERSONAL DATA
Manchester City Council,Highways Services,Compensation Payments,07.01.2011,1902423649,2600,REDACTED PERSONAL DATA
Manchester City Council,Highways Services,Compensation Payments,07.01.2011,1902425643,1455.75,REDACTED PERSONAL DATA
Manchester City Council,Corporate Services,Consultants Fees,07.01.2011,5100406261,"9,174.16",Davis Langdon
Manchester City Council,Chief Executives,Consultants Fees,07.01.2011,5100406915,"6,974.00",Locum  Consulting
Manchester City Council,Environment and Operations,Equipment,07.01.2011,5100407080,950,Failsworth Electrical Ltd
Manchester City Council,Childrens Services,Equipment,07.01.2011,5100407050,501.5,LMS Music Supplies
Manchester City Council,Childrens Services,Equipment,07.01.2011,5100406959,529,LMS Music Supplies
Manchester City Council,Childrens Services,Equipment,07.01.2011,5100407073,572,LMS Music Supplies
Manchester City Council,Childrens Services,Equipment,07.01.2011,5100406782,712.5,LMS Music Supplies
Manchester City Council,Childrens Services,Equipment,07.01.2011,5100407061,832.8,LMS Music Supplies
Manchester City Council,Childrens Services,Equipment,07.01.2011,5100407049,943.5,LMS Music Supplies
Manchester City Council,Childrens Services,Equipment,07.01.2011,5100407093,1302,LMS Music Supplies
Manchester City Council,Childrens Services,Equipment,07.01.2011,5100407063,1309,LMS Music Supplies
Manchester City Council,Childrens Services,Equipment,07.01.2011,5100407053,3818,LMS Music Supplies
Manchester City Council,Childrens Services,Equipment,07.01.2011,5100406788,6510,LMS Music Supplies
Manchester City Council,Childrens Services,Equipment,07.01.2011,5100407066,6825,LMS Music Supplies
Manchester City Council,Childrens Services,Equipment,07.01.2011,5100406792,7260,LMS Music Supplies
Manchester City Council,Manchester Leisure,Equipment,07.01.2011,5100407023,810,Maudesport Limited
Manchester City Council,Chief Executives,External repairs and maintenance for buildings,07.01.2011,5100407153,1953,Manchester Working Ltd
Manchester City Council,Childrens Services,Grant and subscriptions awarded,07.01.2011,5100407163,1420.1,Ofsted
Manchester City Council,Childrens Services,Grant and subscriptions awarded,07.01.2011,5100407164,1746.8,Ofsted
Manchester City Council,Chief Executives,Grant and subscriptions awarded,07.01.2011,5100407117,54452,Preston City Council
Manchester City Council,Chief Executives,Grant and subscriptions awarded,07.01.2011,5100407115,4774.2,Preston City Council
Manchester City Council,Chief Executives,Grant and subscriptions awarded,07.01.2011,5100407120,552.6,The Kindling Trust
Manchester City Council,Chief Executives,Grant and subscriptions awarded,07.01.2011,5100407121,3000,The Kindling Trust
Manchester City Council,Adult Social Care,Home Care ,07.01.2011,1902432870,3510.53,Enterprise Care Group Ltd
Manchester City Council,Adult Social Care,Home Care ,07.01.2011,1902432870,2693.53,Enterprise Care Group Ltd
Manchester City Council,Adult Social Care,Home Care ,07.01.2011,1902432870,1916.18,Enterprise Care Group Ltd
Manchester City Council,Adult Social Care,Home Care ,07.01.2011,1902432870,553.06,Enterprise Care Group Ltd
Manchester City Council,Adult Social Care,Home Care ,07.01.2011,1902432870,961.26,Enterprise Care Group Ltd
Manchester City Council,Adult Social Care,Home Care ,07.01.2011,1902432870,1716.35,Enterprise Care Group Ltd
Manchester City Council,Adult Social Care,Home Care ,07.01.2011,1902432870,2251.41,Enterprise Care Group Ltd
Manchester City Council,Adult Social Care,Home Care ,07.01.2011,1902432870,5957.88,Enterprise Care Group Ltd
Manchester City Council,Adult Social Care,Home Care ,07.01.2011,1902432870,3038.91,Enterprise Care Group Ltd
Manchester City Council,Adult Social Care,Home Care ,07.01.2011,1902432870,673.16,Enterprise Care Group Ltd
Manchester City Council,Chief Executives,I T Provision,07.01.2011,5100406955,617.5,Reading Room
Manchester City Council,Highways Services,Compensation Payments,07.01.2011,1902422788,9000,Aegis Legal
Manchester City Council,Highways Services,Compensation Payments,07.01.2011,1902429727,5875.42,Bakers
Manchester City Council,Highways Services,Compensation Payments,07.01.2011,1902425730,547,Gorton Payless Wallpaper & Paints
Manchester City Council,Highways Services,Compensation Payments,07.01.2011,1902425638,11736.01,Morrish Solictors LLP
Manchester City Council,Childrens Services,Mobilephone Charges,07.01.2011,1902431957,870.39,T-Mobile
Manchester City Council,Highways Services,Oth Professional Fee,07.01.2011,5100406786,"5,759.68",AECOM Limited
Manchester City Council,Highways Services,Oth Professional Fee,07.01.2011,5100406789,"11,525.48",AECOM Limited
Manchester City Council,Highways Services,Oth Professional Fee,07.01.2011,5100406791,"6,847.42",AECOM Limited
Manchester City Council,Environment and Operations,Oth Professional Fee,07.01.2011,1902424718,"1,500.00",Buglife The Invertebrate Cons Trust
Manchester City Council,Environment and Operations,Oth Professional Fee,07.01.2011,1902422687,518.00,South Lancashire Bat Group
Manchester City Council,Childrens Services,Pay School Budget,07.01.2011,5100407145,14470,Manchester Working Ltd
Manchester City Council,Childrens Services,Pay School Budget,07.01.2011,5100407143,161943,Manchester Working Ltd
Manchester City Council,Childrens Services,Payments for services,07.01.2011,5100406931,2418,British Assoc. For Adoption &
Manchester City Council,Chief Executives,Payments for services,07.01.2011,5100406932,-1365,Mimosa Recovery Ltd
Manchester City Council,Chief Executives,Payments for services,07.01.2011,5100406934,-1365,Mimosa Recovery Ltd
Manchester City Council,Chief Executives,Payments for services,07.01.2011,5100406935,-1365,Mimosa Recovery Ltd
Manchester City Council,Chief Executives,Payments for services,07.01.2011,5100406936,-1365,Mimosa Recovery Ltd
Manchester City Council,Chief Executives,Payments for services,07.01.2011,5100406937,-1365,Mimosa Recovery Ltd
Manchester City Council,Chief Executives,Payments for services,07.01.2011,5100406938,-1365,Mimosa Recovery Ltd
Manchester City Council,Chief Executives,Payments for services,07.01.2011,5100406939,-1365,Mimosa Recovery Ltd
Manchester City Council,Chief Executives,Payments for services,07.01.2011,5100406940,-1365,Mimosa Recovery Ltd
Manchester City Council,Chief Executives,Payments for services,07.01.2011,5100406941,-1365,Mimosa Recovery Ltd
Manchester City Council,Chief Executives,Payments for services,07.01.2011,5100406942,-1365,Mimosa Recovery Ltd
Manchester City Council,Chief Executives,Payments for services,07.01.2011,5100406943,-1365,Mimosa Recovery Ltd
Manchester City Council,Chief Executives,Payments for services,07.01.2011,5100406944,-1365,Mimosa Recovery Ltd
Manchester City Council,Chief Executives,Payments for services,07.01.2011,5100406945,-1365,Mimosa Recovery Ltd
Manchester City Council,Chief Executives,Payments for services,07.01.2011,5100406947,-1365,Mimosa Recovery Ltd
Manchester City Council,Chief Executives,Payments for services,07.01.2011,5100406989,585,Mimosa Recovery Ltd
Manchester City Council,Chief Executives,Payments for services,07.01.2011,5100406992,585,Mimosa Recovery Ltd
Manchester City Council,Chief Executives,Payments for services,07.01.2011,5100406995,780,Mimosa Recovery Ltd
Manchester City Council,Chief Executives,Payments for services,07.01.2011,5100406996,780,Mimosa Recovery Ltd
Manchester City Council,Chief Executives,Payments for services,07.01.2011,5100406802,1365,Mimosa Recovery Ltd
Manchester City Council,Chief Executives,Payments for services,07.01.2011,5100406805,1365,Mimosa Recovery Ltd
Manchester City Council,Chief Executives,Payments for services,07.01.2011,5100406808,1365,Mimosa Recovery Ltd
Manchester City Council,Chief Executives,Payments for services,07.01.2011,5100406809,1365,Mimosa Recovery Ltd
Manchester City Council,Chief Executives,Payments for services,07.01.2011,5100406819,1365,Mimosa Recovery Ltd
Manchester City Council,Chief Executives,Payments for services,07.01.2011,5100406821,1365,Mimosa Recovery Ltd
Manchester City Council,Chief Executives,Payments for services,07.01.2011,5100406822,1365,Mimosa Recovery Ltd
Manchester City Council,Chief Executives,Payments for services,07.01.2011,5100406826,1365,Mimosa Recovery Ltd
Manchester City Council,Chief Executives,Payments for services,07.01.2011,5100406830,1365,Mimosa Recovery Ltd
Manchester City Council,Chief Executives,Payments for services,07.01.2011,5100406832,1365,Mimosa Recovery Ltd
Manchester City Council,Chief Executives,Payments for services,07.01.2011,5100406834,1365,Mimosa Recovery Ltd
Manchester City Council,Chief Executives,Payments for services,07.01.2011,5100406835,1365,Mimosa Recovery Ltd
Manchester City Council,Chief Executives,Payments for services,07.01.2011,5100406838,1365,Mimosa Recovery Ltd
Manchester City Council,Chief Executives,Payments for services,07.01.2011,5100406842,1365,Mimosa Recovery Ltd
Manchester City Council,Chief Executives,Payments for services,07.01.2011,5100406844,1365,Mimosa Recovery Ltd
Manchester City Council,Chief Executives,Payments for services,07.01.2011,5100406845,1365,Mimosa Recovery Ltd
Manchester City Council,Chief Executives,Payments for services,07.01.2011,5100406846,1365,Mimosa Recovery Ltd
Manchester City Council,Chief Executives,Payments for services,07.01.2011,5100406850,1365,Mimosa Recovery Ltd
Manchester City Council,Chief Executives,Payments for services,07.01.2011,5100406854,1365,Mimosa Recovery Ltd
Manchester City Council,Chief Executives,Payments for services,07.01.2011,5100406856,1365,Mimosa Recovery Ltd
Manchester City Council,Chief Executives,Payments for services,07.01.2011,5100406857,1365,Mimosa Recovery Ltd
Manchester City Council,Chief Executives,Payments for services,07.01.2011,5100406860,1365,Mimosa Recovery Ltd
Manchester City Council,Chief Executives,Payments for services,07.01.2011,5100406948,1365,Mimosa Recovery Ltd
Manchester City Council,Chief Executives,Payments for services,07.01.2011,5100406949,1365,Mimosa Recovery Ltd
Manchester City Council,Chief Executives,Payments for services,07.01.2011,5100406950,1365,Mimosa Recovery Ltd
Manchester City Council,Chief Executives,Payments for services,07.01.2011,5100406951,1365,Mimosa Recovery Ltd
Manchester City Council,Chief Executives,Payments for services,07.01.2011,5100406952,1365,Mimosa Recovery Ltd
Manchester City Council,Chief Executives,Payments for services,07.01.2011,5100406970,1365,Mimosa Recovery Ltd
Manchester City Council,Chief Executives,Payments for services,07.01.2011,5100406971,1365,Mimosa Recovery Ltd
Manchester City Council,Chief Executives,Payments for services,07.01.2011,5100406972,1365,Mimosa Recovery Ltd
Manchester City Council,Chief Executives,Payments for services,07.01.2011,5100406974,1365,Mimosa Recovery Ltd
Manchester City Council,Chief Executives,Payments for services,07.01.2011,5100406977,1365,Mimosa Recovery Ltd
Manchester City Council,Chief Executives,Payments for services,07.01.2011,5100406978,1365,Mimosa Recovery Ltd
Manchester City Council,Chief Executives,Payments for services,07.01.2011,5100406979,1365,Mimosa Recovery Ltd
Manchester City Council,Chief Executives,Payments for services,07.01.2011,5100406981,1365,Mimosa Recovery Ltd
Manchester City Council,Chief Executives,Payments for services,07.01.2011,5100406984,1365,Mimosa Recovery Ltd
Manchester City Council,Chief Executives,Payments for services,07.01.2011,5100406803,1950,Mimosa Recovery Ltd
Manchester City Council,Chief Executives,Payments for services,07.01.2011,5100406807,1950,Mimosa Recovery Ltd
Manchester City Council,Chief Executives,Payments for services,07.01.2011,5100406820,1950,Mimosa Recovery Ltd
Manchester City Council,Chief Executives,Payments for services,07.01.2011,5100406999,1950,Mimosa Recovery Ltd
Manchester City Council,Manchester Leisure,Payments for services,07.01.2011,5100406884,3877.84,Serco Ltd (Manchester Aquatic Centr
Manchester City Council,Environment and Operations,Payments to Sub-Contractors,07.01.2011,1902425808,5729.56,British Waterways
Manchester City Council,Chief Executives,Payments to Sub-Contractors,07.01.2011,5100406960,5835.75,Vision Twentyone
Manchester City Council,Grtr Manchester Urban Traffic,Payments to Sub-Contractors,07.01.2011,5100406841,1601.91,Vodafone Ltd
Manchester City Council,Housing Revenue Account,Postage,07.01.2011,1902418378,1518.75,Royal Mail Group Plc
Manchester City Council,Housing Revenue Account,Postage,07.01.2011,1902400793,2700.9,Royal Mail Group Plc
Manchester City Council,Chief Executives,Printing,07.01.2011,5100406667,950,BurrBaxter Print Ltd
Manchester City Council,Chief Executives,Printing,07.01.2011,5100407179,580,Claire Wood Photography Ltd
Manchester City Council,Childrens Services,Proffesional fees,07.01.2011,5100406926,53606.75,Central Mcr University Hospitals
Manchester City Council,Manchester Leisure,Proffesional fees,07.01.2011,5100407155,980.4,Central Multi Sports Club
Manchester City Council,Childrens Services,Proffesional fees,07.01.2011,1902432203,1091.83,MARSTON GROUP
Manchester City Council,Childrens Services,Proffesional fees,07.01.2011,5100407161,1858.73,Safehands Network Ltd
Manchester City Council,Childrens Services,Proffesional fees,07.01.2011,5100407165,9226.34,Safehands Network Ltd
Manchester City Council,Chief Executives,Rates,07.01.2011,5100406973,13843.98,Artisan Regeneration Ltd
Manchester City Council,Manchester Leisure,Renoval and Storage of Furniture,07.01.2011,5100406565,600,Concept Staging Ltd
Manchester City Council,Adult Social Care,Rents,07.01.2011,5100406894,1776.16,Eastlands Homes Partnership Ltd
Manchester City Council,Chief Executives,Rents,07.01.2011,5100406961,2701.88,Manchester Airport Plc
Manchester City Council,Adult Social Care,Rents,07.01.2011,1902432174,8176.59,Parkway Green Housing Trust
Manchester City Council,Childrens Services,Student Discretionery Awards,07.01.2011,5100406956,1021,Stockport College
Manchester City Council,Housing General Fund,Surplus property Acquisitions,07.01.2011,1902422819,1125,REDACTED PERSONAL DATA
Manchester City Council,Housing General Fund,Surplus property Acquisitions,07.01.2011,1902425043,4500,REDACTED PERSONAL DATA
Manchester City Council,Housing General Fund,Surplus property Demolition,07.01.2011,5100400621,31043,Cruden Property Services Limited
Manchester City Council,Housing General Fund,Surplus property Fees,07.01.2011,1902416427,26712.49,Addleshaw Goddard Solicitors
Manchester City Council,Housing General Fund,Surplus property Fees,07.01.2011,1902422597,717,Sleigh
Manchester City Council,Specialist Trading Standards,Testing Fees,07.01.2011,5100406966,1044,Staffordshire County Council
Manchester City Council,Specialist Trading Standards,Testing Fees,07.01.2011,5100406969,1679.6,Staffordshire County Council
Manchester City Council,Specialist Trading Standards,Testing Fees,07.01.2011,5100406967,13125,Staffordshire County Council
Manchester City Council,Chief Executives,Third party payments relating to Voluntary Organisations,07.01.2011,5100406994,820.15,Partners Of Prisoners & Families
Manchester City Council,Chief Executives,Third party payments relating to Voluntary Organisations,07.01.2011,5100407007,1228,Priory Healthcare
Manchester City Council,Chief Executives,Third party payments relating to Voluntary Organisations,07.01.2011,5100407017,1228,Priory Healthcare
Manchester City Council,Chief Executives,Third party payments relating to Voluntary Organisations,07.01.2011,5100407001,1535,Priory Healthcare
Manchester City Council,Chief Executives,Third party payments relating to Voluntary Organisations,07.01.2011,5100407009,1535,Priory Healthcare
Manchester City Council,Chief Executives,Third party payments relating to Voluntary Organisations,07.01.2011,5100407004,1842,Priory Healthcare
Manchester City Council,Chief Executives,Third party payments relating to Voluntary Organisations,07.01.2011,1902432866,3506,REDACTED PERSONAL DATA
Manchester City Council,Adult Social Care,Third party payments to Health Authority,07.01.2011,5100406983,69292.79,Manchester Mental Health & Social C
Manchester City Council,Adult Social Care,Third party payments to Health Authority,07.01.2011,5100407144,72780.39,Manchester Mental Health & Social C
Manchester City Council,Adult Social Care,Third party payments to other Local Authorities,07.01.2011,5100406764,900,Salford College
Manchester City Council,Adult Social Care,Training and Development,07.01.2011,5100406761,900,Salford College
Manchester City Council,Childrens Services,Works and associated costs for Land and Buildings,07.01.2011,5100407126,-786,Capita IT Services (BSF) Limited
Manchester City Council,Manchester Leisure,Works and associated costs for Land and Buildings,07.01.2011,1902425801,2202,Lymm Angling Club
Manchester City Council,Adult Social Care,Works and associated costs for Land and Buildings,07.01.2011,5100407152,24024.1,Manchester Working Ltd
Manchester City Council,Childrens Services,Works and associated costs for Land and Buildings,07.01.2011,5100407147,4948.25,Manchester Working Ltd
Manchester City Council,Childrens Services,Works and associated costs for Land and Buildings,07.01.2011,5100407147,18368.04,Manchester Working Ltd
Manchester City Council,Environment and Operations,Works and associated costs for Land and Buildings,07.01.2011,5100407150,52589.79,Manchester Working Ltd
Manchester City Council,Manchester City Galleries,Works and associated costs for Land and Buildings,07.01.2011,5100407142,2600,Manchester Working Ltd
Manchester City Council,Manchester Leisure,Works and associated costs for Land and Buildings,07.01.2011,5100407140,8732,Manchester Working Ltd
Manchester City Council,Childrens Services,Works and associated costs for Land and Buildings,07.01.2011,5100407190,-1800,Pendlewood Ltd
Manchester City Council,Childrens Services,Works and associated costs for Land and Buildings,07.01.2011,5100407194,1800,Pendlewood Ltd
Manchester City Council,Manchester Leisure,Works and associated costs for Land and Buildings,07.01.2011,5100406794,20900,Scott Wilson Ltd
Manchester City Council,Chief Executives,Advertising,10.01.2011,5100407363,661.5,TSL Education Ltd
Manchester City Council,Chief Executives,Advertising,10.01.2011,5100407398,2107.98,TSL Education Ltd
Manchester City Council,Chief Executives,Agency staff provision,10.01.2011,5100407409,4478.81,Ashberry Recruitment Ltd
Manchester City Council,Chief Executives,Agency staff provision,10.01.2011,5100406570,1512.17,Bennett Staff Bureau
Manchester City Council,Chief Executives,Agency staff provision,10.01.2011,5100407216,1055.84,Blue Arrow Ltd
Manchester City Council,Chief Executives,Agency staff provision,10.01.2011,5100407219,4817.4,Bluegroup International Ltd
Manchester City Council,Chief Executives,Agency staff provision,10.01.2011,5100407154,1482.98,Deekay Technical Recruitment Ltd
Manchester City Council,Chief Executives,Agency staff provision,10.01.2011,5100407463,548.24,Homecare Support
Manchester City Council,Chief Executives,Agency staff provision,10.01.2011,5100407224,1066.87,Homecare Support
Manchester City Council,Chief Executives,Agency staff provision,10.01.2011,5100407353,1296.05,Kenyon Block Consultants Ltd
Manchester City Council,Chief Executives,Agency staff provision,10.01.2011,5100407357,1296.05,Kenyon Block Consultants Ltd
Manchester City Council,Chief Executives,Agency staff provision,10.01.2011,5100406179,1233.27,P S Care
Manchester City Council,Chief Executives,Agency staff provision,10.01.2011,5100407403,640.68,Proactive Personnel Ltd
Manchester City Council,Chief Executives,Agency staff provision,10.01.2011,5100407282,2803.25,Rullion Engineering Personnel Limit
Manchester City Council,Chief Executives,Agency staff provision,10.01.2011,5100406916,1463,Sacco Mann Ltd
Manchester City Council,Chief Executives,Agency staff provision,10.01.2011,5100406139,6227.77,SRA Cover Staff Ltd
Manchester City Council,Adult Social Care,Building Materials for direct delivery,10.01.2011,5100407424,-1169.28,Illingworth Ingham (M/cR)
Manchester City Council,Adult Social Care,Building Materials for direct delivery,10.01.2011,5100407448,1169.28,Illingworth Ingham (M/cR)
Manchester City Council,Housing General Fund,Building Works,10.01.2011,1902394229,2700,A & K Building Services Ltd
Manchester City Council,Housing General Fund,Building Works,10.01.2011,1902433899,56670,BIGGART BAILLIE
Manchester City Council,Childrens Services,Building Works,10.01.2011,5100407300,-1845.75,Capita IT Services (BSF) Limited
Manchester City Council,Childrens Services,Building Works,10.01.2011,5100407304,1845.75,Capita IT Services (BSF) Limited
Manchester City Council,Housing General Fund,Building Works,10.01.2011,5100407205,750.4,Davis Langdon
Manchester City Council,Housing General Fund,Building Works,10.01.2011,5100407204,1125.6,Davis Langdon
Manchester City Council,Corporate Services,Building Works,10.01.2011,1902433892,5728.85,GLAISYERS
Manchester City Council,Chief Executives,Building Works,10.01.2011,5100407457,6290,Peoples History Museum
Manchester City Council,Housing General Fund,Building Works,10.01.2011,1902433901,2945.4,REDACTED PERSONAL DATA
Manchester City Council,Childrens Services,Catering,10.01.2011,5100407298,3519.75,Manchester City Football Club Plc
Manchester City Council,Childrens Services,Coach Hire,10.01.2011,5100406090,14151,A J Travel
Manchester City Council,Chief Executives,Communications,10.01.2011,5100407297,2347,Greater Manchester Police
Manchester City Council,Adult Social Care,Compensation Payments,10.01.2011,1902422598,3225.72,Department For Work & Pensions
Manchester City Council,Chief Executives,Construction Works,10.01.2011,5100406249,26839.75,Harry Fairclough Construction Ltd
Manchester City Council,Regeneration Finance,Consultants Fees,10.01.2011,5100407255,"1,969.80",Davis Langdon
Manchester City Council,Corporate Services,Consultants Fees,10.01.2011,5100407227,"6,650.00",Mace Ltd
Manchester City Council,Regeneration Finance,Consultants Fees,10.01.2011,5100406130,"6,657.14",Mace Ltd
Manchester City Council,Chief Executives,Consultants Fees,10.01.2011,5100407261,"7,250.00",REDACTED PERSONAL DATA
Manchester City Council,Corporate Services,Electricity,10.01.2011,1902429757,2342.7,Carillion Services Ltd
Manchester City Council,Housing Revenue Account,Electricity,10.01.2011,1902433944,1152.56,Npower
Manchester City Council,Childrens Services,Equipment,10.01.2011,5100407468,3704.4,LMS Music Supplies
Manchester City Council,Regeneration Finance,Equipment,10.01.2011,5100404419,940,Security Access Systems Ltd
Manchester City Council,Chief Executives,Examination Fees,10.01.2011,5100407349,6257.04,Central Mcr University Hospitals
Manchester City Council,Corporate Services,External repairs and maintenance for buildings,10.01.2011,1902429758,5278.7,Carillion Services Ltd
Manchester City Council,Childrens Services,Foster Payments,10.01.2011,1902433925,689.54,REDACTED PERSONAL DATA
Manchester City Council,Chief Executives,Funeral and coroner related services,10.01.2011,5100407349,11355.8,Central Mcr University Hospitals
Manchester City Council,Chief Executives,Funeral and coroner related services,10.01.2011,5100407349,2169.82,Central Mcr University Hospitals
Manchester City Council,Adult Social Care,Funeral and coroner related services,10.01.2011,5100407206,925,Michael Kennedy Funeral Service
Manchester City Council,Adult Social Care,Funeral and coroner related services,10.01.2011,5100407202,1072,Michael Kennedy Funeral Service
Manchester City Council,Adult Social Care,Funeral and coroner related services,10.01.2011,5100407200,1217,Michael Kennedy Funeral Service
Manchester City Council,Housing Revenue Account,Gas,10.01.2011,5100407462,17048.35,Northwards Housing Limited
Manchester City Council,Housing Revenue Account,Gas,10.01.2011,5100407462,42620.89,Northwards Housing Limited
Manchester City Council,Chief Executives,Goods purchased for resale in Council outlets,10.01.2011,5100407228,638,Cornflower Ltd
Manchester City Council,Chief Executives,Goods purchased for resale in Council outlets,10.01.2011,5100407231,638,Cornflower Ltd
Manchester City Council,Chief Executives,Goods purchased for resale in Council outlets,10.01.2011,5100407237,638,Cornflower Ltd
Manchester City Council,Chief Executives,Grant and subscriptions awarded,10.01.2011,1902429722,607.86,Burnage Garden Village
Manchester City Council,Manchester Leisure,Grant and subscriptions awarded,10.01.2011,1700018700,-650,Northern Lawn Tennis Club
Manchester City Council,Manchester Leisure,Grounds Maintenance,10.01.2011,5100407248,5858.58,Glendale Managed Services
Manchester City Council,Manchester Leisure,Grounds Maintenance,10.01.2011,5100407247,9848.48,Glendale Managed Services
Manchester City Council,Manchester Leisure,Grounds Maintenance,10.01.2011,5100407250,562.69,Glendale Managed Services
Manchester City Council,Manchester Leisure,Grounds Maintenance,10.01.2011,5100407245,76966.04,Glendale Managed Services
Manchester City Council,Mersey Valley Joint Committee,Grounds Maintenance,10.01.2011,5100407364,1237.8,North West Timber Treatments Ltd
Manchester City Council,Childrens Services,Hire of Premises,10.01.2011,5100407298,2500,Manchester City Football Club Plc
Manchester City Council,Regeneration Finance,Hire of Premises,10.01.2011,1902408571,11242.11,Mars Pension Trustees Limited
Manchester City Council,Childrens Services,Hire of Premises,10.01.2011,5100407335,720,Wythenshawe Community Church
Manchester City Council,Libraries and Theatres,I T Provision,10.01.2011,5100407485,2895.5,Apak Barcode Readers Ltd
Manchester City Council,Libraries and Theatres,I T Provision,10.01.2011,5100407436,19529.35,Axiell Ltd
Manchester City Council,Childrens Services,I T Provision,10.01.2011,5100407257,1304.05,Citrix Online UK Ltd
Manchester City Council,Chief Executives,I T Provision,10.01.2011,5100407275,500,Cornflower Ltd
Manchester City Council,Chief Executives,I T Provision,10.01.2011,5100407278,500,Cornflower Ltd
Manchester City Council,Chief Executives,I T Provision,10.01.2011,5100407279,500,Cornflower Ltd
Manchester City Council,Chief Executives,I T Provision,10.01.2011,5100407281,500,Cornflower Ltd
Manchester City Council,Chief Executives,I T Provision,10.01.2011,5100407283,500,Cornflower Ltd
Manchester City Council,Chief Executives,I T Provision,10.01.2011,5100407284,500,Cornflower Ltd
Manchester City Council,Chief Executives,I T Provision,10.01.2011,5100407285,500,Cornflower Ltd
Manchester City Council,Grtr Manchester Urban Traffic,I T Provision,10.01.2011,5100407443,2425,Siemens Plc
Manchester City Council,Regeneration Finance,Landline Telephone,10.01.2011,1902346208,512.38,BT PLC
Manchester City Council,Corporate Services,Compensation Payments,10.01.2011,1902430527,857.75,Pugh & Company
Manchester City Council,Grtr Manchester Urban Traffic,Mobilephone Charges,10.01.2011,5100407471,1617.66,Vodafone Ltd
Manchester City Council,Grtr Manchester Urban Traffic,Mobilephone Charges,10.01.2011,5100407473,1626.45,Vodafone Ltd
Manchester City Council,Corporate Services,Oth Professional Fee,10.01.2011,5100407260,"-7,018.00",Rider Levett Bucknall UK Ltd
Manchester City Council,Corporate Services,Oth Professional Fee,10.01.2011,5100407259,"7,018.00",Rider Levett Bucknall UK Ltd
Manchester City Council,Corporate Services,Oth Professional Fee,10.01.2011,5100406165,"3,908.50",W T Partnership
Manchester City Council,Childrens Services,Pay School Budget,10.01.2011,5100407320,13311,Manchester Working Ltd
Manchester City Council,Learning Disabilities PB,Payments for services,10.01.2011,5100407338,1470.96,Homelife Options Ltd
Manchester City Council,Learning Disabilities PB,Payments for services,10.01.2011,5100407339,1470.96,Homelife Options Ltd
Manchester City Council,Learning Disabilities PB,Payments for services,10.01.2011,5100407394,1470.96,Homelife Options Ltd
Manchester City Council,Learning Disabilities PB,Payments for services,10.01.2011,5100407395,1470.96,Homelife Options Ltd
Manchester City Council,Learning Disabilities PB,Payments for services,10.01.2011,5100407396,1470.96,Homelife Options Ltd
Manchester City Council,Learning Disabilities PB,Payments for services,10.01.2011,5100407397,1470.96,Homelife Options Ltd
Manchester City Council,Learning Disabilities PB,Payments for services,10.01.2011,5100407428,1621.68,Homelife Options Ltd
Manchester City Council,Learning Disabilities PB,Payments for services,10.01.2011,5100407429,1621.68,Homelife Options Ltd
Manchester City Council,Learning Disabilities PB,Payments for services,10.01.2011,5100407439,1621.68,Homelife Options Ltd
Manchester City Council,Regeneration Finance,Payments for services,10.01.2011,5100406993,660,Smiths Marquees
Manchester City Council,Grtr Manchester Urban Traffic,Payments to Sub-Contractors,10.01.2011,5100407450,667.44,Peek Traffic Ltd
Manchester City Council,Grtr Manchester Urban Traffic,Payments to Sub-Contractors,10.01.2011,5100407454,685.75,Peek Traffic Ltd
Manchester City Council,Grtr Manchester Urban Traffic,Payments to Sub-Contractors,10.01.2011,5100407440,1018,Siemens Plc
Manchester City Council,Grtr Manchester Transport Unit,Payments to Sub-Contractors,10.01.2011,5100405987,1350,The Care Company (Sussex) Ltd
Manchester City Council,Chief Executives,Postage,10.01.2011,5100407223,947.4,Cornflower Ltd
Manchester City Council,Libraries and Theatres,Postage,10.01.2011,5100407380,1228.46,Royal Mail Group Plc
Manchester City Council,Chief Executives,Printing,10.01.2011,5100407105,11514,Andrew Kilburn Print Services Ltd
Manchester City Council,Chief Executives,Printing,10.01.2011,5100407383,660,Holdmede Ltd T/A Pelican Press
Manchester City Council,Chief Executives,Proffesional fees,10.01.2011,5100407266,1991,Cape Uk Ltd
Manchester City Council,Chief Executives,Proffesional fees,10.01.2011,5100407243,-4000,Contact Theatre Company
Manchester City Council,Adult Social Care,Proffesional fees,10.01.2011,1902432852,3060,Criminal Records Bureau
Manchester City Council,Childrens Services,Proffesional fees,10.01.2011,5100407298,579,Manchester City Football Club Plc
Manchester City Council,Chief Executives,Proffesional fees,10.01.2011,5100407210,3000,Manchester Food & Drink Festival
Manchester City Council,Environment and Operations,Proffesional fees,10.01.2011,5100407373,659.2,Osborne Richardson
Manchester City Council,Environment and Operations,Proffesional fees,10.01.2011,5100407381,690.2,Osborne Richardson
Manchester City Council,Environment and Operations,Proffesional fees,10.01.2011,5100407378,967.4,Osborne Richardson
Manchester City Council,Environment and Operations,Proffesional fees,10.01.2011,5100407375,1581.6,Osborne Richardson
Manchester City Council,Regeneration Finance,Proffesional fees,10.01.2011,5100407158,2050,Pure Wyllie
Manchester City Council,Chief Executives,Proffesional fees,10.01.2011,5100407301,8246,Scaff-Hire Services Ltd
Manchester City Council,Childrens Services,Proffesional fees,10.01.2011,5100406962,56925,The Pennine Acute Hospital Nhs Trus
Manchester City Council,Chief Executives,Publications,10.01.2011,5100407423,5324,Andrew Kilburn Print Services Ltd
Manchester City Council,Hospitality + Trading Services,Purchase of stores for re-distribution,10.01.2011,5100407253,663,Asd Metal Services
Manchester City Council,Corporate Services,Rents,10.01.2011,1902429758,32293.75,Carillion Services Ltd
Manchester City Council,Adult Social Care,Rents,10.01.2011,5100407199,990.08,City South Manchester Housing Trust
Manchester City Council,Regeneration Finance,Rents,10.01.2011,1902408573,16132.75,Mars Pension Trustees Limited
Manchester City Council,Learning Disabilities PB,Respite Care Costs,10.01.2011,5100407327,1840,EAM Lodge
Manchester City Council,Learning Disabilities PB,Respite Care Costs,10.01.2011,5100407323,2300,EAM Lodge
Manchester City Council,Libraries and Theatres,Security,10.01.2011,5100407171,1820,Exclusafe Lifestyle Management Limi
Manchester City Council,Corporate Services,Storage Costs,10.01.2011,5100406836,6222,DeepStore Limited
Manchester City Council,Corporate Services,Storage Costs,10.01.2011,5100406833,9522.78,DeepStore Limited
Manchester City Council,Childrens Services,Student Discretionery Awards,10.01.2011,5100407332,1021,Stockport College
Manchester City Council,Childrens Services,Subsistence and Conference Expenses,10.01.2011,5100407412,3500,Nacro Operations
Manchester City Council,Housing Revenue Account,Surplus property Acquisitions,10.01.2011,5100407340,501.94,Master Moves Ltd
Manchester City Council,Childrens Services,Third party payments relating to Voluntary Organisations,10.01.2011,5100407002,2700.83,CMAS
Manchester City Council,Adult Social Care,Third party payments relating to Voluntary Organisations,10.01.2011,5100407479,19515.68,Manchester Carers Forum
Manchester City Council,Chief Executives,Third party payments relating to Voluntary Organisations,10.01.2011,5100407366,46604,New Start
Manchester City Council,Chief Executives,Third party payments to Health Authority,10.01.2011,5100407349,27928,Central Mcr University Hospitals
Manchester City Council,Hospitality + Trading Services,Vehicle Fuel Costs,10.01.2011,5100407334,-18543.6,Carlton Fuels Ltd
Manchester City Council,Hospitality + Trading Services,Vehicle Fuel Costs,10.01.2011,5100407337,18453.6,Carlton Fuels Ltd
Manchester City Council,Hospitality + Trading Services,Vehicle Hire Costs,10.01.2011,5100407472,546.02,Advanced Vehicle Technicians Ltd
Manchester City Council,Hospitality + Trading Services,Vehicle Hire Costs,10.01.2011,5100407470,760.97,Advanced Vehicle Technicians Ltd
Manchester City Council,Hospitality + Trading Services,Vehicle Hire Costs,10.01.2011,5100407475,762.64,Advanced Vehicle Technicians Ltd
Manchester City Council,Adult Social Care,Window Cleaning,10.01.2011,5100407359,600,Lmj Contract Cleaning Ltd
Manchester City Council,Corporate Services,Works and associated costs for Land and Buildings,10.01.2011,5100407003,3365,Intrinsic Technology Limited
Manchester City Council,Childrens Services,Works and associated costs for Land and Buildings,10.01.2011,5100406091,1282878.37,Laing O'Rourke Construction Ltd
Manchester City Council,Childrens Services,Works and associated costs for Land and Buildings,10.01.2011,5100407350,6353.94,Manchester Working Ltd
Manchester City Council,Hospitality + Trading Services,Works and associated costs for Land and Buildings,10.01.2011,5100407317,66026.61,Manchester Working Ltd
Manchester City Council,Corporate Services,Works and associated costs for Land and Buildings,10.01.2011,5100407148,7727.5,Mpulse Ltd
Manchester City Council,Chief Executives,Agency staff provision,11.01.2011,5100407683,3402.71,Celsian
Manchester City Council,Childrens Services,Agency staff provision,11.01.2011,5100407624,1860,Central Mcr University Hospitals
Manchester City Council,Chief Executives,Agency staff provision,11.01.2011,5100407640,568.68,Generic Software Consultants Ltd
Manchester City Council,Chief Executives,Agency staff provision,11.01.2011,5100359913,1959.92,Generic Software Consultants Ltd
Manchester City Council,Chief Executives,Agency staff provision,11.01.2011,5100407893,591.5,Kelly Services (Uk) Limited
Manchester City Council,Childrens Services,Agency staff provision,11.01.2011,5100406784,-975,Randstad Education
Manchester City Council,Chief Executives,Agency staff provision,11.01.2011,5100407533,1835.17,Rullion Engineering Personnel Limit
Manchester City Council,Chief Executives,Agency staff provision,11.01.2011,5100407609,942.59,Sellick Partnership (Legal) Ltd
Manchester City Council,Chief Executives,Agency staff provision,11.01.2011,5100407610,2282.54,Sellick Partnership (Legal) Ltd
Manchester City Council,Chief Executives,Agency staff provision,11.01.2011,5100407680,4349.61,SRA Cover Staff Ltd
Manchester City Council,Regeneration Finance,Agency staff provision,11.01.2011,5100407512,6408.24,The Big Life Company
Manchester City Council,Hospitality + Trading Services,Building Materials for direct delivery,11.01.2011,5100407865,2658.8,Manchester Safety Services Ltd
Manchester City Council,Childrens Services,Building Works,11.01.2011,5100407465,142559.64,Laing O'Rourke Construction Ltd
Manchester City Council,Housing General Fund,Building Works,11.01.2011,1902433819,1150,Manchester Working Ltd
Manchester City Council,Housing General Fund,Building Works,11.01.2011,1902433788,1250,Manchester Working Ltd
Manchester City Council,Housing General Fund,Building Works,11.01.2011,1902433838,1377.65,Manchester Working Ltd
Manchester City Council,Housing General Fund,Building Works,11.01.2011,1902433735,1377.85,Manchester Working Ltd
Manchester City Council,Housing General Fund,Building Works,11.01.2011,1902433935,1377.85,Manchester Working Ltd
Manchester City Council,Housing General Fund,Building Works,11.01.2011,1902433813,3650,Manchester Working Ltd
Manchester City Council,Housing General Fund,Building Works,11.01.2011,1902433909,3650,Manchester Working Ltd
Manchester City Council,Housing General Fund,Building Works,11.01.2011,1902433917,3650,Manchester Working Ltd
Manchester City Council,Housing General Fund,Building Works,11.01.2011,1902433984,3650,Manchester Working Ltd
Manchester City Council,Housing General Fund,Building Works,11.01.2011,1902433988,3650,Manchester Working Ltd
Manchester City Council,Housing General Fund,Building Works,11.01.2011,1902433980,3750,Manchester Working Ltd
Manchester City Council,Chief Executives,Building Works,11.01.2011,5100407146,1568.21,Mpulse Ltd
Manchester City Council,Hospitality + Trading Services,Cleaning Equipment and Materials,11.01.2011,5100407352,561.25,GTS Steam Cleaners
Manchester City Council,Childrens Services,Coach Hire,11.01.2011,5100407331,4561,D.J. Minibus Travel
Manchester City Council,Childrens Services,Coach Hire,11.01.2011,5100407442,3288,G.M Travel
Manchester City Council,Childrens Services,Coach Hire,11.01.2011,5100407432,1040,REDACTED PERSONAL DATA
Manchester City Council,Childrens Services,Coach Hire,11.01.2011,5100407249,2975,REDACTED PERSONAL DATA
Manchester City Council,Childrens Services,Coach Hire,11.01.2011,5100407497,1460,REDACTED PERSONAL DATA
Manchester City Council,Childrens Services,Compensation Payments,11.01.2011,1902422535,5250,Accountant General of the Senior
Manchester City Council,Hospitality + Trading Services,Compensation Payments,11.01.2011,5100407521,631,United Utilities Water Plc
Manchester City Council,Regeneration Finance,Consultants Fees,11.01.2011,5100407598,"4,905.00",Deloitte & Touche Llp
Manchester City Council,Regeneration Finance,Contract Cleaning External,11.01.2011,5100407688,723.7,SOG Ltd
Manchester City Council,Housing Revenue Account,Council Dwelling Adaptations,11.01.2011,5100407866,-3107.02,Northwards Housing Limited
Manchester City Council,Housing Revenue Account,Council Dwelling Adaptations,11.01.2011,5100407858,3768.56,Northwards Housing Limited
Manchester City Council,Housing Revenue Account,Council Dwelling Adaptations,11.01.2011,5100407710,175899.13,Northwards Housing Limited
Manchester City Council,Corporate Services,Electricity,11.01.2011,1902420962,3594.69,Bruntwood Estates Alpha
Manchester City Council,Adult Social Care,Electricity,11.01.2011,1902418270,923.95,E-On
Manchester City Council,Adult Social Care,Equipment,11.01.2011,5100407835,1200,Bentley Fielden Ltd
Manchester City Council,Adult Social Care,Equipment,11.01.2011,5100407701,-1366.91,Bosch Security Systems
Manchester City Council,Adult Social Care,Equipment,11.01.2011,5100407695,1457.8,Bosch Security Systems
Manchester City Council,Libraries and Theatres,Equipment,11.01.2011,1902432248,2480.71,Cosprop Ltd
Manchester City Council,Corporate Services,Equipment,11.01.2011,5100407484,-650,Ing Lease (Uk) Limited
Manchester City Council,Adult Social Care,Equipment,11.01.2011,5100407755,820,Morris & Alexander Ltd
Manchester City Council,Chief Executives,Equipment,11.01.2011,5100407795,2000,The Country Garden
Manchester City Council,Hospitality + Trading Services,Equipment,11.01.2011,5100407391,5000,Trojan Services (Glossop) Ltd
Manchester City Council,Manchester Leisure,Equipment,11.01.2011,5100406051,806.85,Wrs Group Ltd
Manchester City Council,Housing Revenue Account,Expenditure re Internal Trading Ordered Externally,11.01.2011,5100408073,-609,Relate Manchester
Manchester City Council,Corporate Services,External CRB Fees,11.01.2011,5100407614,1404,Criminal Records Bureau
Manchester City Council,Childrens Services,Fixtures and Fitting,11.01.2011,1902429756,3670,Barnardos Manchester Leaving Care S
Manchester City Council,Childrens Services,Foster Payments,11.01.2011,1902429756,622.2,Barnardos Manchester Leaving Care S
Manchester City Council,Childrens Services,Foster Payments,11.01.2011,1902434246,1046.22,REDACTED PERSONAL DATA
Manchester City Council,Childrens Services,Foster Payments,11.01.2011,5100407751,4919.83,Stockport Mbc
Manchester City Council,Childrens Services,Foster Payments,11.01.2011,5100386000,6238.07,Stockport Mbc
Manchester City Council,Childrens Services,Grant and subscriptions awarded,11.01.2011,1902433673,1115,4CT Limited
Manchester City Council,Childrens Services,Grant and subscriptions awarded,11.01.2011,5100407620,10367.37,4CT Limited
Manchester City Council,Childrens Services,Grant and subscriptions awarded,11.01.2011,5100407729,12511.5,Family Action
Manchester City Council,Regeneration Finance,Grant and subscriptions awarded,11.01.2011,5100407544,-10900.48,Greater Manchester Police
Manchester City Council,Regeneration Finance,Grant and subscriptions awarded,11.01.2011,5100407528,10900.48,Greater Manchester Police
Manchester City Council,Regeneration Finance,Grant and subscriptions awarded,11.01.2011,5100407546,10900.48,Greater Manchester Police
Manchester City Council,Chief Executives,Grant and subscriptions awarded,11.01.2011,5100407505,10000,Harp-Yasp
Manchester City Council,Childrens Services,Grant and subscriptions awarded,11.01.2011,1902434079,6092.66,Manchester Young Lives
Manchester City Council,Childrens Services,Grant and subscriptions awarded,11.01.2011,1902434093,68055.75,Manchester Young Lives
Manchester City Council,Chief Executives,Grant and subscriptions awarded,11.01.2011,5100407518,12367.54,Preston City Council
Manchester City Council,Chief Executives,Grant and subscriptions awarded,11.01.2011,5100407864,717.21,Ribble Steam Railway Ltd
Manchester City Council,Childrens Services,Grant and subscriptions awarded,11.01.2011,5100407666,3520,Specialist Schools & Academies Trus
Manchester City Council,Chief Executives,Grant and subscriptions awarded,11.01.2011,5100407622,7910,The Pennine Acute Hospitals
Manchester City Council,Childrens Services,Grant and subscriptions awarded,11.01.2011,5100407623,13151,Water Adventure Centre
Manchester City Council,Childrens Services,Grant and subscriptions awarded,11.01.2011,5100406706,700,Young Advisors Company Ltd
Manchester City Council,Mersey Valley Joint Committee,Grounds Maintenance,11.01.2011,5100407687,721.86,Keyways Security Systems Ltd
Manchester City Council,Hospitality + Trading Services,Hire of Equipment,11.01.2011,5100407877,2180,REDACTED PERSONAL DATA
Manchester City Council,Hospitality + Trading Services,Hire of Equipment,11.01.2011,5100407712,1790,Somerford Equipment Ltd
Manchester City Council,Corporate Services,I T Provision,11.01.2011,5100407208,-1683.86,NWIX Group Ltd
Manchester City Council,Corporate Services,I T Provision,11.01.2011,5100406560,1683.86,NWIX Group Ltd
Manchester City Council,Corporate Services,I T Provision,11.01.2011,5100407214,1683.86,NWIX Group Ltd
Manchester City Council,Insurance Fund,Insurance,11.01.2011,1902422534,2500,Accountant General of the Senior
Manchester City Council,Corporate Services,Landline Telephone,11.01.2011,1902417171,643.04,BT PLC
Manchester City Council,Regeneration Finance,Landline Telephone,11.01.2011,1902422682,2760.48,BT PLC
Manchester City Council,Childrens Services,Landline Telephone,11.01.2011,1902399927,594.8,Cable & Wireless UK
Manchester City Council,Corporate Services,Landline Telephone,11.01.2011,1902416424,4373.03,Cable & Wireless UK
Manchester City Council,Highways Services,Legal Fees,11.01.2011,5100407606,616.88,REDACTED PERSONAL DATA
Manchester City Council,Hospitality + Trading Services,Legal Fees,11.01.2011,5100407665,750,REDACTED PERSONAL DATA
Manchester City Council,Chief Executives,Mobilephone Charges,11.01.2011,1902433767,958.06,T-Mobile
Manchester City Council,Hospitality + Trading Services,Mobilephone Charges,11.01.2011,1902433956,539.18,T-Mobile
Manchester City Council,Hospitality + Trading Services,Mobilephone Charges,11.01.2011,1902432661,940.4,T-Mobile
Manchester City Council,Corporate Services,Oth Professional Fee,11.01.2011,5100407608,"25,884.50",Airborne Environmental Consultants
Manchester City Council,Chief Executives,Oth Professional Fee,11.01.2011,5100407542,"2,500.00",L & R Consulting LLP
Manchester City Council,Chief Executives,Oth Professional Fee,11.01.2011,5100407545,"2,600.00",L & R Consulting LLP
Manchester City Council,Grtr Manchester Urban Traffic,Oth Professional Fee,11.01.2011,5100407504,"2,480.00",SEJ Consulting Ltd
Manchester City Council,Libraries and Theatres,Papers,11.01.2011,1902433985,1010.97,Smiths News Trading Ltd
Manchester City Council,Manchester Leisure,Payments for services,11.01.2011,5100406118,1500,Cheetham Hill Squash Club -
Manchester City Council,Childrens Services,Payments for services,11.01.2011,5100407727,710,Randstad Education
Manchester City Council,Childrens Services,Payments for services,11.01.2011,5100407728,710,Randstad Education
Manchester City Council,Childrens Services,Payments for services,11.01.2011,5100407730,710,Randstad Education
Manchester City Council,Childrens Services,Payments for services,11.01.2011,5100407734,710,Randstad Education
Manchester City Council,Childrens Services,Payments for services,11.01.2011,5100407737,710,Randstad Education
Manchester City Council,Childrens Services,Payments for services,11.01.2011,5100407738,710,Randstad Education
Manchester City Council,Childrens Services,Payments for services,11.01.2011,5100407739,710,Randstad Education
Manchester City Council,Childrens Services,Payments for services,11.01.2011,5100407744,710,Randstad Education
Manchester City Council,Childrens Services,Payments for services,11.01.2011,5100407818,3000,The Together Trust
Manchester City Council,Childrens Services,Payments for services,11.01.2011,5100407824,3625.8,The Together Trust
Manchester City Council,Childrens Services,Payments for services,11.01.2011,5100407828,3625.8,The Together Trust
Manchester City Council,Highways Services,Payments to Sub-Contractors,11.01.2011,5100407499,566663.25,Amey Highways Lighting (Manchester)
Manchester City Council,Highways Services,Payments to Sub-Contractors,11.01.2011,5100407648,3224.45,Salt Union Ltd
Manchester City Council,Hospitality + Trading Services,Payments to Sub-Contractors,11.01.2011,5100407646,-700,Utilities Design & Planning Ltd
Manchester City Council,Hospitality + Trading Services,Payments to Sub-Contractors,11.01.2011,5100407650,700,Utilities Design & Planning Ltd
Manchester City Council,Childrens Services,Personal needs of client,11.01.2011,1902429756,876,Barnardos Manchester Leaving Care S
Manchester City Council,Childrens Services,Personal needs of client,11.01.2011,5100407641,580,Ymca Lakeside
Manchester City Council,Corporate Services,Postage,11.01.2011,5100407655,2720.42,Royal Mail
Manchester City Council,Environment and Operations,Postage,11.01.2011,5100407563,1227.45,Royal Mail Group Plc
Manchester City Council,Regeneration Finance,Postage,11.01.2011,5100407692,661.08,SOG Ltd
Manchester City Council,Chief Executives,Printing,11.01.2011,5100407547,520,Haigh Phillips Design
Manchester City Council,Corporate Services,Printing,11.01.2011,5100402368,9873.25,Madhouse Associates Ltd
Manchester City Council,Childrens Services,Private Finance and Public Private partnership initiatives,11.01.2011,5100406741,348320.01,Manchester School Services Limited
Manchester City Council,Childrens Services,Proffesional fees,11.01.2011,1902429755,1527.15,Barnardos Manchester Leaving Care S
Manchester City Council,Adult Social Care,Proffesional fees,11.01.2011,5100407873,23916.66,Black Health Agency
Manchester City Council,Chief Executives,Proffesional fees,11.01.2011,5100406199,600,Forsyth Management Contracts Ltd
Manchester City Council,Manchester Leisure,Proffesional fees,11.01.2011,5100407800,525,Greater Manchester Sports
Manchester City Council,Childrens Services,Proffesional fees,11.01.2011,5100407732,11925,Margaret Papworth Ltd
Manchester City Council,Manchester Leisure,Proffesional fees,11.01.2011,5100407859,5000,Sport Taekwondo UK Limited
Manchester City Council,Hospitality + Trading Services,Purchase of stores for re-distribution,11.01.2011,5100407603,1197,Bpi Recycled Products Plc
Manchester City Council,Hospitality + Trading Services,Purchase of stores for re-distribution,11.01.2011,5100407602,2090,Bpi Recycled Products Plc
Manchester City Council,Environment and Operations,Radio Charges,11.01.2011,5100407829,832,Sitewatch Fire & Surveillance Ltd
Manchester City Council,Adult Social Care,Rents,11.01.2011,1902425798,500,Ash Residential
Manchester City Council,Housing Revenue Account,Rents,11.01.2011,1902433678,18625,Mars Pension Trustees Limited
Manchester City Council,Corporate Services,Rents,11.01.2011,1902418275,1000,Northern Way Properties Limited
Manchester City Council,Adult Social Care,Rents,11.01.2011,1902425670,500,REDACTED PERSONAL DATA
Manchester City Council,Adult Social Care,Rents,11.01.2011,1902425668,500,REDACTED PERSONAL DATA
Manchester City Council,Adult Social Care,Rents,11.01.2011,1902425650,500,REDACTED PERSONAL DATA
Manchester City Council,Adult Social Care,Rents,11.01.2011,1902430679,500,REDACTED PERSONAL DATA
Manchester City Council,Adult Social Care,Rents,11.01.2011,1902425649,500,REDACTED PERSONAL DATA
Manchester City Council,Libraries and Theatres,Rents,11.01.2011,1902432925,700,REDACTED PERSONAL DATA t/a Specialist Propertie
Manchester City Council,Learning Disabilities PB,Residential Care Homes Payments,11.01.2011,5100407552,2999.56,Home Farm Trust Ltd
Manchester City Council,Learning Disabilities PB,Residential Care Homes Payments,11.01.2011,5100407562,4483.22,Moore Care Ltd
Manchester City Council,Corporate Services,Storage Costs,11.01.2011,5100407345,1540.35,Box-It (NW)
Manchester City Council,Childrens Services,Student Discretionery Awards,11.01.2011,5100386347,624.75,Leeds Metropolitan University
Manchester City Council,Childrens Services,Student Discretionery Awards,11.01.2011,5100407519,624.75,Leeds Metropolitan University
Manchester City Council,Childrens Services,Subsistence and Conference Expenses,11.01.2011,1902432948,2530,REDACTED PERSONAL DATA
Manchester City Council,Childrens Services,Supported Accom,11.01.2011,5100407438,774.97,Victoria Park Independence Proj Ltd
Manchester City Council,Childrens Services,Taxi Expenses,11.01.2011,1902430524,657,Eastlands UK Cars
Manchester City Council,Environment and Operations,Tipping - Tonnage,11.01.2011,5100407181,18918.12,Redgate Holdings Ltd
Manchester City Council,Childrens Services,Training and Development,11.01.2011,1902429756,1630.2,Barnardos Manchester Leaving Care S
Manchester City Council,Libraries and Theatres,Training and Development,11.01.2011,5100407750,570,Hewden Hire Ltd
Manchester City Council,Childrens Services,Training and Development,11.01.2011,5100406514,740,Soft Adventure Play
Manchester City Council,Corporate Services,Training and Development,11.01.2011,5100401363,2893.3,Stradia Limited
Manchester City Council,Corporate Services,Travel,11.01.2011,1902425616,23168.3,Trainline.com Limited
Manchester City Council,Adult Social Care,Water - Metered,11.01.2011,1902432924,1338.47,United Utilities Water Plc
Manchester City Council,Adult Social Care,Water - Metered,11.01.2011,1902432922,572.8,United Utilities Water Plc
Manchester City Council,Childrens Services,Works and associated costs for Land and Buildings,11.01.2011,5100407557,23525.01,Bramall Construction Ltd
Manchester City Council,Childrens Services,Works and associated costs for Land and Buildings,11.01.2011,5100407557,30593.99,Bramall Construction Ltd
Manchester City Council,Childrens Services,Works and associated costs for Land and Buildings,11.01.2011,5100407671,18076.03,Bramall Construction Ltd
Manchester City Council,Childrens Services,Works and associated costs for Land and Buildings,11.01.2011,5100407674,19576.53,Bramall Construction Ltd
Manchester City Council,Childrens Services,Works and associated costs for Land and Buildings,11.01.2011,5100407670,21702.75,Bramall Construction Ltd
Manchester City Council,Manchester Leisure,Works and associated costs for Land and Buildings,11.01.2011,5100406963,3273.59,Imagemakers Design & Consulting
Manchester City Council,Corporate Services,Works and associated costs for Land and Buildings,11.01.2011,5100407709,18180,Intrinsic Technology Limited
Manchester City Council,Chief Executives,Works and associated costs for Land and Buildings,11.01.2011,5100407550,949.66,Keppie Massie
Manchester City Council,Corporate Services,Works and associated costs for Land and Buildings,11.01.2011,5100407705,5207,Ove Arup & Partners Ltd
Manchester City Council,Chief Executives,Agency staff provision,12.01.2011,5100403506,14176.31,Gatenby Sanderson
Manchester City Council,Chief Executives,Agency staff provision,12.01.2011,5100408354,1794.39,Homecare Support
Manchester City Council,Chief Executives,Agency staff provision,12.01.2011,5100406468,810.7,Medicare First
Manchester City Council,Chief Executives,Agency staff provision,12.01.2011,5100406473,1027.06,Medicare First
Manchester City Council,Chief Executives,Agency staff provision,12.01.2011,5100406469,1032.5,Medicare First
Manchester City Council,Chief Executives,Agency staff provision,12.01.2011,5100406467,1213.8,Medicare First
Manchester City Council,Chief Executives,Agency staff provision,12.01.2011,5100406471,1213.8,Medicare First
Manchester City Council,Chief Executives,Agency staff provision,12.01.2011,5100406474,1213.8,Medicare First
Manchester City Council,Chief Executives,Agency staff provision,12.01.2011,5100408181,1260,Michael Page International
Manchester City Council,Chief Executives,Agency staff provision,12.01.2011,5100408155,1280,Michael Page International
Manchester City Council,Chief Executives,Agency staff provision,12.01.2011,5100408170,1280,Michael Page International
Manchester City Council,Chief Executives,Agency staff provision,12.01.2011,5100408188,1380,Michael Page International
Manchester City Council,Chief Executives,Agency staff provision,12.01.2011,5100408185,1400,Michael Page International
Manchester City Council,Chief Executives,Agency staff provision,12.01.2011,5100408027,7356.22,Reed Employment Plc
Manchester City Council,Adult Social Care,Agency staff provision,12.01.2011,5100407977,-1340.8,Sellick Partnership (Legal) Ltd
Manchester City Council,Adult Social Care,Agency staff provision,12.01.2011,5100407986,-905.04,Sellick Partnership (Legal) Ltd
Manchester City Council,Chief Executives,Agency staff provision,12.01.2011,5100407984,-588.33,Sellick Partnership (Legal) Ltd
Manchester City Council,Regeneration Finance,Agency staff provision,12.01.2011,5100408424,3977.27,The Manchester College
Manchester City Council,Hospitality + Trading Services,Building Materials for direct delivery,12.01.2011,5100408333,761.92,Tarmac Central Ltd
Manchester City Council,Housing General Fund,Building Works,12.01.2011,1902438503,3431,DWF LLP
Manchester City Council,Childrens Services,Building Works,12.01.2011,5100408233,136103.72,Laing O'Rourke Construction Ltd
Manchester City Council,Chief Executives,Building Works,12.01.2011,5100407137,1501.95,Mpulse Ltd
Manchester City Council,Chief Executives,Catering,12.01.2011,5100408029,880,People's History Museum
Manchester City Council,Chief Executives,Catering Provisions,12.01.2011,1902432896,968.14,Transport Research Laboratory Ltd
Manchester City Council,Childrens Services,Coach Hire,12.01.2011,5100408253,750,Oak Leaf Travel
Manchester City Council,Childrens Services,Coach Hire,12.01.2011,5100407177,3130.86,REDACTED PERSONAL DATA
Manchester City Council,Hospitality + Trading Services,Coach Hire,12.01.2011,5100408334,1134.98,Rio Mini Bus
Manchester City Council,Hospitality + Trading Services,Coach Hire,12.01.2011,5100408343,1372.7,Rio Mini Bus
Manchester City Council,Hospitality + Trading Services,Coach Hire,12.01.2011,5100408340,1380.9,Rio Mini Bus
Manchester City Council,Childrens Services,Coach Hire,12.01.2011,5100406540,1080,So Coaches
Manchester City Council,Childrens Services,Coach Hire,12.01.2011,5100406986,1040,Teletaxis Accounts Ltd
Manchester City Council,Childrens Services,Coach Hire,12.01.2011,5100406991,1336.5,Teletaxis Accounts Ltd
Manchester City Council,Childrens Services,Coach Hire,12.01.2011,5100406980,1502,Teletaxis Accounts Ltd
Manchester City Council,Corporate Services,Compensation Payments,12.01.2011,1902395036,594,Bristow & Sutor
Manchester City Council,Regeneration Finance,Consultants Fees,12.01.2011,5100408346,"18,730.75",GVA Grimley Ltd
Manchester City Council,Chief Executives,Contract Cleaning External,12.01.2011,5100408357,5993.58,Elite Cleaning & Environ. Services
Manchester City Council,Chief Executives,Contract Cleaning External,12.01.2011,5100408358,5993.58,Elite Cleaning & Environ. Services
Manchester City Council,Highways Services,Contract Cleaning Internal,12.01.2011,5100408142,575.81,PHS Group
Manchester City Council,Hospitality + Trading Services,Courier Costs,12.01.2011,5100407330,1012,Bicycle Messenger Service
Manchester City Council,Adult Social Care,Electricity,12.01.2011,1902434395,1426.01,E-On
Manchester City Council,Chief Executives,Equipment,12.01.2011,5100408015,1528.82,Data Space Limited
Manchester City Council,Chief Executives,Equipment,12.01.2011,5100408024,1530.58,Data Space Limited
Manchester City Council,Chief Executives,Equipment,12.01.2011,5100408466,1146.25,Footprint Solutions Ltd
Manchester City Council,Hospitality + Trading Services,Equipment,12.01.2011,5100407611,847.92,W.V.Howe Ltd
Manchester City Council,Corporate Services,External repairs and maintenance for buildings,12.01.2011,5100408037,726.37,Manchester Working Ltd
Manchester City Council,Corporate Services,External repairs and maintenance for buildings,12.01.2011,5100408033,34181.11,Manchester Working Ltd
Manchester City Council,Corporate Services,Fees,12.01.2011,1902399539,9599.04,Rossendales Ltd
Manchester City Council,Corporate Services,Fees,12.01.2011,1902399539,-9599.04,Rossendales Ltd
Manchester City Council,Chief Executives,Funeral and coroner related services,12.01.2011,1902433996,985.94,Forensic Science Service Ltd
Manchester City Council,Adult Social Care,Funeral and coroner related services,12.01.2011,5100408304,598,Michael Kennedy Funeral Service
Manchester City Council,Adult Social Care,Funeral and coroner related services,12.01.2011,5100408308,990,Michael Kennedy Funeral Service
Manchester City Council,Adult Social Care,Funeral and coroner related services,12.01.2011,5100408315,1072,Michael Kennedy Funeral Service
Manchester City Council,Adult Social Care,Funeral and coroner related services,12.01.2011,5100408328,2172,Michael Kennedy Funeral Service
Manchester City Council,Chief Executives,Funeral and coroner related services,12.01.2011,1902432915,977.1,User Perspective Ltd
Manchester City Council,Childrens Services,Furniture,12.01.2011,5100408443,576,Back Care Solutions Ltd
Manchester City Council,Chief Executives,Grant and subscriptions awarded,12.01.2011,5100407945,3000,Beth Johnson Foundation
Manchester City Council,Childrens Services,Grant and subscriptions awarded,12.01.2011,1902434176,1660,Manchester Young Lives
Manchester City Council,Childrens Services,Grant and subscriptions awarded,12.01.2011,1902434176,2685,Manchester Young Lives
Manchester City Council,Chief Executives,Grant and subscriptions awarded,12.01.2011,1902438502,61670,MQT (Trading as Urbis)
Manchester City Council,Learning Disabilities PB,Grant and subscriptions awarded,12.01.2011,5100408255,631.6,Talbot House Support Centre
Manchester City Council,Childrens Services,Grant and subscriptions awarded,12.01.2011,5100407664,21500,The Children'S Society Services Ltd
Manchester City Council,Hospitality + Trading Services,Hire of Equipment,12.01.2011,5100408083,550,Tennant UK Ltd
Manchester City Council,Hospitality + Trading Services,Hire of Equipment,12.01.2011,5100408090,550,Tennant UK Ltd
Manchester City Council,Childrens Services,Home Care ,12.01.2011,5100407897,689.58,St Vincents Housing Association Ltd
Manchester City Council,Childrens Services,Home Care ,12.01.2011,5100407899,689.58,St Vincents Housing Association Ltd
Manchester City Council,Chief Executives,I T Provision,12.01.2011,5100408375,2597,Avaya UK
Manchester City Council,Corporate Services,I T Provision,12.01.2011,5100407413,15000,Capita Business Services Ltd
Manchester City Council,Housing Revenue Account,I T Provision,12.01.2011,5100407937,3000,Dev Ltd
Manchester City Council,Insurance Fund,Insurance,12.01.2011,1902434055,7197.76,Berrymans Lace Mawer
Manchester City Council,Insurance Fund,Insurance,12.01.2011,1902425863,547,Department For Work & Pensions
Manchester City Council,Housing Revenue Account,Internal Repairs and Maintenance for buildings,12.01.2011,5100407826,1722.25,Manchester Working Ltd
Manchester City Council,Housing Revenue Account,Internal Repairs and Maintenance for buildings,12.01.2011,5100408020,3372.76,Manchester Working Ltd
Manchester City Council,Housing Revenue Account,Internal Repairs and Maintenance for buildings,12.01.2011,5100407848,5382.06,Manchester Working Ltd
Manchester City Council,Chief Executives,Landline Telephone,12.01.2011,1902432200,30716.8,Cable & Wireless UK
Manchester City Council,Childrens Services,Mobilephone Charges,12.01.2011,1902432690,1897.22,T-Mobile
Manchester City Council,Chief Executives,Oth Professional Fee,12.01.2011,5100408321,750.00,Lois Burton Ltd
Manchester City Council,Chief Executives,Oth Professional Fee,12.01.2011,5100407717,"10,000.00",The Peter Saville Studio
Manchester City Council,Manchester Leisure,Payments for services,12.01.2011,5100408517,1530.85,Create Development Ltd
Manchester City Council,Manchester Leisure,Payments for services,12.01.2011,5100408520,1622,Create Development Ltd
Manchester City Council,Manchester Leisure,Payments for services,12.01.2011,5100408522,1622,Create Development Ltd
Manchester City Council,Manchester Leisure,Payments for services,12.01.2011,5100408516,600,England Basketball Association
Manchester City Council,Childrens Services,Payments for services,12.01.2011,5100408251,1146,Families for Children Adoption
Manchester City Council,Learning Disabilities PB,Payments for services,12.01.2011,5100408261,1470.96,Homelife Options Ltd
Manchester City Council,Learning Disabilities PB,Payments for services,12.01.2011,5100408270,1470.96,Homelife Options Ltd
Manchester City Council,Learning Disabilities PB,Payments for services,12.01.2011,5100408289,-2746.28,Homelife Options Ltd
Manchester City Council,Learning Disabilities PB,Payments for services,12.01.2011,5100408276,1946.6,Homelife Options Ltd
Manchester City Council,Learning Disabilities PB,Payments for services,12.01.2011,5100408314,1946.6,Homelife Options Ltd
Manchester City Council,Learning Disabilities PB,Payments for services,12.01.2011,5100408297,2746.28,Homelife Options Ltd
Manchester City Council,Learning Disabilities PB,Payments for services,12.01.2011,5100408300,2746.28,Homelife Options Ltd
Manchester City Council,Learning Disabilities PB,Payments for services,12.01.2011,5100408303,2746.28,Homelife Options Ltd
Manchester City Council,Learning Disabilities PB,Payments for services,12.01.2011,5100408302,3981.8,Homelife Options Ltd
Manchester City Council,Learning Disabilities PB,Payments for services,12.01.2011,5100408312,3981.8,Homelife Options Ltd
Manchester City Council,Learning Disabilities PB,Payments for services,12.01.2011,5100408316,3981.8,Homelife Options Ltd
Manchester City Council,Learning Disabilities PB,Payments for services,12.01.2011,5100408306,13892,Homelife Options Ltd
Manchester City Council,Childrens Services,Payments for services,12.01.2011,5100408454,568,Randstad Education
Manchester City Council,Manchester Leisure,Payments for services,12.01.2011,5100407993,891.86,Serco Manchester (Manchester Commun
Manchester City Council,Manchester Leisure,Payments for services,12.01.2011,5100408000,891.86,Serco Manchester (Manchester Commun
Manchester City Council,Hospitality + Trading Services,Payments to Sub-Contractors,12.01.2011,5100407924,702,Budgetgate Ltd
Manchester City Council,Grtr Manchester Urban Traffic,Payments to Sub-Contractors,12.01.2011,5100408464,46593.03,Peek Traffic Ltd
Manchester City Council,Childrens Services,Postage,12.01.2011,5100408305,1360,Neopost Ltd
Manchester City Council,Chief Executives,Printing,12.01.2011,5100408320,640.85,Tower Supplies
Manchester City Council,Corporate Services,Proffesional fees,12.01.2011,1902432850,3636,Criminal Records Bureau
Manchester City Council,Corporate Services,Proffesional fees,12.01.2011,5100408319,2630,Dun & Bradstreet Ltd.
Manchester City Council,Childrens Services,Proffesional fees,12.01.2011,5100408417,19016,Education Business Solutions
Manchester City Council,Chief Executives,Proffesional fees,12.01.2011,5100408325,10417.74,Lancashire County Council
Manchester City Council,Chief Executives,Proffesional fees,12.01.2011,5100407494,3655.8,Showsec International Ltd
Manchester City Council,Childrens Services,Proffesional fees,12.01.2011,5100408084,30650.28,University Hospital of South Mcr
Manchester City Council,Adult Social Care,Refuse Collection,12.01.2011,1902434123,561.39,Phs All Clear
Manchester City Council,Childrens Services,Rents,12.01.2011,5100408389,1591.2,Lpc Living Ltd
Manchester City Council,Adult Social Care,Respite Care Costs,12.01.2011,5100407927,2610.5,Crossroads Caring for Carers
Manchester City Council,Hospitality + Trading Services,Security,12.01.2011,5100408246,311833.7,Group 4 Total Security Ltd T/A G4S
Manchester City Council,Chief Executives,Signers/Interpreters,12.01.2011,5100407767,1307,Interpreter Booking Services
Manchester City Council,Libraries and Theatres,Special Event Budget,12.01.2011,5100407921,833,Wesco UK
Manchester City Council,Housing General Fund,Surplus property Fees,12.01.2011,1902434341,600.5,REDACTED PERSONAL DATA
Manchester City Council,Childrens Services,Taxi Expenses,12.01.2011,5100408500,592.9,Cresta Car Hire
Manchester City Council,Childrens Services,Taxi Expenses,12.01.2011,5100408495,1145.1,Cresta Car Hire
Manchester City Council,Childrens Services,Taxi Expenses,12.01.2011,5100408504,1261.7,Cresta Car Hire
Manchester City Council,Childrens Services,Taxi Expenses,12.01.2011,5100408502,1437.7,Cresta Car Hire
Manchester City Council,Childrens Services,Taxi Expenses,12.01.2011,5100408497,1720.4,Cresta Car Hire
Manchester City Council,Childrens Services,Taxi Expenses,12.01.2011,5100408394,1294.3,Trading Post (NW) Ltd
Manchester City Council,Childrens Services,Taxi Expenses,12.01.2011,5100408401,1804,Trading Post (NW) Ltd
Manchester City Council,Environment and Operations,Testing Fees,12.01.2011,5100408344,1167.5,Staffordshire County Council
Manchester City Council,Adult Social Care,Third party payments relating to Voluntary Organisations,12.01.2011,5100407930,1043.84,Crossroads Caring for Carers
Manchester City Council,Learning Disabilities PB,Third party payments relating to Voluntary Organisations,12.01.2011,5100408307,8966.44,U B U (Northern Life Care Ltd)
Manchester City Council,Corporate Services,Tracing fees,12.01.2011,5100407589,998,Experian Limited
Manchester City Council,Hospitality + Trading Services,Vehicle Hire Costs,12.01.2011,5100408501,4620,Gullivers Truck Hire Ltd
Manchester City Council,Hospitality + Trading Services,Vehicle Hire Costs,12.01.2011,5100407901,4830,Gullivers Truck Hire Ltd
Manchester City Council,Hospitality + Trading Services,Vehicle Hire Costs,12.01.2011,5100408431,1809.95,William G.Search Ltd
Manchester City Council,Corporate Services,Water - Metered,12.01.2011,1902434121,1942.33,United Utilities Water Plc
Manchester City Council,Chief Executives,Works and associated costs for Land and Buildings,12.01.2011,5100407715,-578,Appleyard & Trew Llp
Manchester City Council,Chief Executives,Works and associated costs for Land and Buildings,12.01.2011,5100407773,2514.5,Appleyard & Trew Llp
Manchester City Council,Chief Executives,Works and associated costs for Land and Buildings,12.01.2011,5100407779,2514.5,Appleyard & Trew Llp
Manchester City Council,Corporate Services,Works and associated costs for Land and Buildings,12.01.2011,5100408317,4833,Eversheds Llp
Manchester City Council,Childrens Services,Works and associated costs for Land and Buildings,12.01.2011,5100407976,474715.44,GB Building Solutions Ltd
Manchester City Council,Corporate Services,Works and associated costs for Land and Buildings,12.01.2011,5100408215,3952.6,HOK International Limited
Manchester City Council,Corporate Services,Works and associated costs for Land and Buildings,12.01.2011,5100407478,-18180,Intrinsic Technology Limited
Manchester City Council,Corporate Services,Works and associated costs for Land and Buildings,12.01.2011,5100407006,18180,Intrinsic Technology Limited
Manchester City Council,Chief Executives,Agency staff provision,13.01.2011,5100408558,681.9,Reed Employment Plc
Manchester City Council,Chief Executives,Agency staff provision,13.01.2011,5100408823,555.84,Sellick Partnership (Legal) Ltd
Manchester City Council,Chief Executives,Agency staff provision,13.01.2011,5100408820,1002.56,Sellick Partnership (Legal) Ltd
Manchester City Council,Chief Executives,Agency staff provision,13.01.2011,5100408835,1056,Sellick Partnership (Legal) Ltd
Manchester City Council,Chief Executives,Agency staff provision,13.01.2011,5100408805,757.31,Swiis Uk Limited
Manchester City Council,Chief Executives,Agency staff provision,13.01.2011,5100406156,1642.67,Taskmaster Resources Ltd
Manchester City Council,Chief Executives,Agency staff provision,13.01.2011,5100408834,971.04,The Synergy Group Ltd
Manchester City Council,Chief Executives,Agency staff provision,13.01.2011,5100408830,1123.69,The Synergy Group Ltd
Manchester City Council,Childrens Services,Coach Hire,13.01.2011,5100408633,1150,Belle Vue Manchester
Manchester City Council,Childrens Services,Coach Hire,13.01.2011,5100408639,1610,Belle Vue Manchester
Manchester City Council,Childrens Services,Coach Hire,13.01.2011,5100408628,2760,Belle Vue Manchester
Manchester City Council,Childrens Services,Coach Hire,13.01.2011,5100408620,942.37,Community Transport
Manchester City Council,Childrens Services,Coach Hire,13.01.2011,5100408614,955.5,Community Transport
Manchester City Council,Childrens Services,Coach Hire,13.01.2011,5100408622,998.4,Community Transport
Manchester City Council,Childrens Services,Coach Hire,13.01.2011,5100408621,1055.6,Community Transport
Manchester City Council,Highways Services,Compensation Payments,13.01.2011,1902432938,566,Department For Work & Pensions
Manchester City Council,Highways Services,Compensation Payments,13.01.2011,1902432963,2000,REDACTED PERSONAL DATA
Manchester City Council,Highways Services,Compensation Payments,13.01.2011,1902440292,1850,REDACTED PERSONAL DATA
Manchester City Council,Chief Executives,Construction Works,13.01.2011,5100408664,832.54,Rosgal Ltd
Manchester City Council,Housing Revenue Account,Council Dwelling Adaptations,13.01.2011,5100408771,1206.72,Northwards Housing Limited
Manchester City Council,Housing Revenue Account,Council Dwelling Adaptations,13.01.2011,5100408685,13296.89,Northwards Housing Limited
Manchester City Council,Housing Revenue Account,Council Dwelling Adaptations,13.01.2011,5100408686,28016.58,Northwards Housing Limited
Manchester City Council,Environment and Operations,Electricity,13.01.2011,1902440336,2600.65,E.on UK Plc
Manchester City Council,Housing Revenue Account,Electricity,13.01.2011,1902440334,3226.48,E.on UK Plc
Manchester City Council,Adult Social Care,Electricity,13.01.2011,1902434393,863.66,E-On
Manchester City Council,Adult Social Care,Equipment,13.01.2011,5100408556,1006,AKW Medicare
Manchester City Council,Environment and Operations,Gas,13.01.2011,1902434375,1075.42,British Gas Business
Manchester City Council,Childrens Services,Gas,13.01.2011,1902440338,1807.39,Corona Energy Ltd
Manchester City Council,Childrens Services,Gas,13.01.2011,1902440339,3874.92,Corona Energy Ltd
Manchester City Council,Regeneration Finance,Grant and subscriptions awarded,13.01.2011,5100408311,9150,Commission for the New Economy
Manchester City Council,Chief Executives,Grant and subscriptions awarded,13.01.2011,5100408818,5160.95,Greater Manchester Police
Manchester City Council,Chief Executives,Grant and subscriptions awarded,13.01.2011,5100407122,2265.88,The Kindling Trust
Manchester City Council,Chief Executives,Grant and subscriptions awarded,13.01.2011,1902438458,1710,Victoria Road Homewatch Res Ass'n
Manchester City Council,Chief Executives,Hire of Equipment,13.01.2011,5100408505,-4120,John F Hunt Power Services
Manchester City Council,Chief Executives,Hire of Equipment,13.01.2011,5100408603,-3520,John F Hunt Power Services
Manchester City Council,Chief Executives,Hire of Equipment,13.01.2011,5100408603,-2160,John F Hunt Power Services
Manchester City Council,Chief Executives,Hire of Equipment,13.01.2011,5100408605,-2160,John F Hunt Power Services
Manchester City Council,Chief Executives,Hire of Equipment,13.01.2011,5100408605,-1328,John F Hunt Power Services
Manchester City Council,Chief Executives,Hire of Equipment,13.01.2011,5100407538,1328,John F Hunt Power Services
Manchester City Council,Chief Executives,Hire of Equipment,13.01.2011,5100407538,2160,John F Hunt Power Services
Manchester City Council,Chief Executives,Hire of Equipment,13.01.2011,5100408624,3488,John F Hunt Power Services
Manchester City Council,Chief Executives,Hire of Equipment,13.01.2011,5100407539,4120,John F Hunt Power Services
Manchester City Council,Chief Executives,Hire of Equipment,13.01.2011,5100408627,5680,John F Hunt Power Services
Manchester City Council,Hospitality + Trading Services,Hire of Equipment,13.01.2011,5100408663,643.44,United Utilities (Standpipes Only)
Manchester City Council,Hospitality + Trading Services,Hire of Machinery,13.01.2011,5100408542,1952,Worsley Plant Ltd
Manchester City Council,Hospitality + Trading Services,Hire of Machinery,13.01.2011,5100408542,4264,Worsley Plant Ltd
Manchester City Council,Chief Executives,I T Provision,13.01.2011,5100407549,3237.5,Ibm United Kingdom Financial Serv.L
Manchester City Council,Adult Social Care,Landline Telephone,13.01.2011,1902434162,1460.21,Cable & Wireless UK
Manchester City Council,Chief Executives,Landline Telephone,13.01.2011,1902433981,937.5,Cable & Wireless UK
Manchester City Council,Childrens Services,Landline Telephone,13.01.2011,1902438514,502.26,Cable & Wireless UK
Manchester City Council,Hospitality + Trading Services,Landline Telephone,13.01.2011,1902433991,2151.17,Cable & Wireless UK
Manchester City Council,Adult Social Care,Legal Fees,13.01.2011,1902433848,1575.75,Arcos
Manchester City Council,Chief Executives,Legal Fees,13.01.2011,5100408673,9576.26,Kings Chambers
Manchester City Council,Highways Services,Legal Fees,13.01.2011,5100408675,587.51,REDACTED PERSONAL DATA
Manchester City Council,Chief Executives,Mobilephone Charges,13.01.2011,1902434094,691.23,T-Mobile
Manchester City Council,Grtr Manchester Urban Traffic,Mobilephone Charges,13.01.2011,1902434208,1288.1,T-Mobile
Manchester City Council,Libraries and Theatres,Mobilephone Charges,13.01.2011,1902434107,545.5,T-Mobile
Manchester City Council,Hospitality + Trading Services,Oth Professional Fee,13.01.2011,5100408786,"4,651.85",Danish UK Property Management Ltd
Manchester City Council,Chief Executives,Oth Professional Fee,13.01.2011,5100408682,"6,800.00",Linxs Consulting
Manchester City Council,Hospitality + Trading Services,Oth Professional Fee,13.01.2011,5100408730,675.00,The Federation Of Burial and
Manchester City Council,Manchester Leisure,Payments for services,13.01.2011,5100408528,1391.15,Create Development Ltd
Manchester City Council,Manchester Leisure,Payments for services,13.01.2011,5100408531,1532.85,Create Development Ltd
Manchester City Council,Manchester Leisure,Payments for services,13.01.2011,5100408525,1596.15,Create Development Ltd
Manchester City Council,Manchester Leisure,Payments for services,13.01.2011,5100408527,1596.15,Create Development Ltd
Manchester City Council,Manchester Leisure,Payments for services,13.01.2011,5100408524,1622,Create Development Ltd
Manchester City Council,Learning Disabilities PB,Payments for services,13.01.2011,5100408752,2746.28,Homelife Options Ltd
Manchester City Council,Chief Executives,Payments for services,13.01.2011,5100408727,1365,Mimosa Recovery Ltd
Manchester City Council,Chief Executives,Payments for services,13.01.2011,5100408739,1365,Mimosa Recovery Ltd
Manchester City Council,Chief Executives,Payments for services,13.01.2011,5100408743,1365,Mimosa Recovery Ltd
Manchester City Council,Chief Executives,Payments for services,13.01.2011,5100408747,1365,Mimosa Recovery Ltd
Manchester City Council,Chief Executives,Payments for services,13.01.2011,5100408753,1365,Mimosa Recovery Ltd
Manchester City Council,Chief Executives,Payments for services,13.01.2011,5100408756,1365,Mimosa Recovery Ltd
Manchester City Council,Chief Executives,Payments for services,13.01.2011,5100408741,1950,Mimosa Recovery Ltd
Manchester City Council,Chief Executives,Payments for services,13.01.2011,5100408745,1950,Mimosa Recovery Ltd
Manchester City Council,Chief Executives,Payments for services,13.01.2011,5100408749,1950,Mimosa Recovery Ltd
Manchester City Council,Chief Executives,Payments for services,13.01.2011,5100408751,1950,Mimosa Recovery Ltd
Manchester City Council,Chief Executives,Payments for services,13.01.2011,5100408764,2145,Mimosa Recovery Ltd
Manchester City Council,Chief Executives,Payments for services,13.01.2011,5100408757,2340,Mimosa Recovery Ltd
Manchester City Council,Chief Executives,Payments for services,13.01.2011,5100408758,2340,Mimosa Recovery Ltd
Manchester City Council,Chief Executives,Payments for services,13.01.2011,5100408761,2535,Mimosa Recovery Ltd
Manchester City Council,Chief Executives,Payments for services,13.01.2011,5100408765,2535,Mimosa Recovery Ltd
Manchester City Council,Chief Executives,Payments for services,13.01.2011,5100408725,3705,Mimosa Recovery Ltd
Manchester City Council,Chief Executives,Payments to Sub-Contractors,13.01.2011,5100407215,11560.54,Mortons Print Ltd
Manchester City Council,Grtr Manchester Urban Traffic,Payments to Sub-Contractors,13.01.2011,5100407716,528.84,Peek Traffic Ltd
Manchester City Council,Grtr Manchester Urban Traffic,Payments to Sub-Contractors,13.01.2011,5100408616,860.06,Siemens Plc
Manchester City Council,Grtr Manchester Urban Traffic,Payments to Sub-Contractors,13.01.2011,5100408626,1368.26,Siemens Plc
Manchester City Council,Grtr Manchester Urban Traffic,Payments to Sub-Contractors,13.01.2011,5100408616,3948.62,Siemens Plc
Manchester City Council,Grtr Manchester Urban Traffic,Payments to Sub-Contractors,13.01.2011,5100408656,1770.75,Siemens Plc
Manchester City Council,Grtr Manchester Transport Unit,Payments to Sub-Contractors,13.01.2011,5100408644,2250,The Care Company (Sussex) Ltd
Manchester City Council,Chief Executives,Printing,13.01.2011,5100408398,660,Holdmede Ltd T/A Pelican Press
Manchester City Council,Chief Executives,Printing,13.01.2011,5100408554,533,Paramount Print Grp In Administrati
Manchester City Council,Chief Executives,Printing,13.01.2011,5100408547,619,Paramount Print Grp In Administrati
Manchester City Council,Chief Executives,Printing,13.01.2011,1902439231,955.63,Paramount Print Grp In Administrati
Manchester City Council,Chief Executives,Printing,13.01.2011,5100408610,1512.8,Paramount Print Grp In Administrati
Manchester City Council,Chief Executives,Printing,13.01.2011,1902439229,1532,Paramount Print Grp In Administrati
Manchester City Council,Chief Executives,Printing,13.01.2011,5100408557,1572,Paramount Print Grp In Administrati
Manchester City Council,Chief Executives,Printing,13.01.2011,5100408560,1695,Paramount Print Grp In Administrati
Manchester City Council,Chief Executives,Printing,13.01.2011,5100408562,2143,Paramount Print Grp In Administrati
Manchester City Council,Chief Executives,Printing,13.01.2011,5100408559,2680,Paramount Print Grp In Administrati
Manchester City Council,Chief Executives,Printing,13.01.2011,5100408361,1059,Service Pointuk Ltd
Manchester City Council,Environment and Operations,Proffesional fees,13.01.2011,5100408569,3000,David Anthony Promotions
Manchester City Council,Environment and Operations,Proffesional fees,13.01.2011,5100408642,8180.56,Drainage Advisory Services
Manchester City Council,Environment and Operations,Proffesional fees,13.01.2011,5100408821,703.8,Howard Massey (N/West) Ltd
Manchester City Council,Environment and Operations,Proffesional fees,13.01.2011,5100408780,1749,Howard Massey (N/West) Ltd
Manchester City Council,Housing Revenue Account,Proffesional fees,13.01.2011,5100408677,18442.18,Manchester Working Ltd
Manchester City Council,Corporate Services,Proffesional fees,13.01.2011,5100408498,11600,University Of Salford
Manchester City Council,Corporate Services,Rents,13.01.2011,1902440522,139177.34,King Sturge LLP
Manchester City Council,Childrens Services,Supported Accom,13.01.2011,1902440524,550,THE RELAY PROJECT
Manchester City Council,Housing General Fund,Surplus property Acquisitions,13.01.2011,1902433688,950,REDACTED PERSONAL DATA
Manchester City Council,Adult Social Care,Third party payments to Health Authority,13.01.2011,5100409039,-1000,NHS Manchester Primary Care Trust
Manchester City Council,Adult Social Care,Third party payments to other Local Authorities,13.01.2011,5100408811,66050.06,Rochdale Mbc
Manchester City Council,Adult Social Care,Third party payments to other Local Authorities,13.01.2011,5100408815,4858.13,Stockport Mbc
Manchester City Council,Environment and Operations,Tipping - Tonnage,13.01.2011,5100408405,2244.74,Redgate Holdings Ltd
Manchester City Council,Hospitality + Trading Services,Vehicle Parts/Spares,13.01.2011,5100407837,2002,Miller Oils Ltd
Manchester City Council,Childrens Services,Water - Metered,13.01.2011,5100387728,1726.92,Premier Watercoolers
Manchester City Council,Housing General Fund,Works and associated costs for Land and Buildings,13.01.2011,5100408777,1057537,GB Building Solutions Ltd
Manchester City Council,Childrens Services,Works and associated costs for Land and Buildings,13.01.2011,5100408774,2275.52,ISG Regions Building Ltd
Manchester City Council,Childrens Services,Works and associated costs for Land and Buildings,13.01.2011,5100408774,52959.48,ISG Regions Building Ltd
Manchester City Council,Chief Executives,Agency staff provision,14.01.2011,5100407416,753.2,Bluegroup International Ltd
Manchester City Council,Chief Executives,Agency staff provision,14.01.2011,5100406594,2695.74,Bs Project Services Ltd T/A
Manchester City Council,Chief Executives,Agency staff provision,14.01.2011,5100406900,559.44,Carepath Recruitment
Manchester City Council,Chief Executives,Agency staff provision,14.01.2011,5100406904,932.4,Carepath Recruitment
Manchester City Council,Chief Executives,Agency staff provision,14.01.2011,5100408948,2843.76,Celsian
Manchester City Council,Manchester Leisure,Agency staff provision,14.01.2011,5100408881,7800,Cycling Projects
Manchester City Council,Chief Executives,Agency staff provision,14.01.2011,5100409148,6246.78,Eden Brown Ltd
Manchester City Council,Chief Executives,Agency staff provision,14.01.2011,5100409516,77141.91,Hays Personnel
Manchester City Council,Regeneration Finance,Agency staff provision,14.01.2011,5100408866,8175,Marketing Manchester
Manchester City Council,Chief Executives,Agency staff provision,14.01.2011,5100409284,788.97,Medicare First
Manchester City Council,Chief Executives,Agency staff provision,14.01.2011,5100409283,932.92,Medicare First
Manchester City Council,Chief Executives,Agency staff provision,14.01.2011,5100408939,750.93,Michael Page International
Manchester City Council,Chief Executives,Agency staff provision,14.01.2011,5100409143,643.77,Reed Employment Plc
Manchester City Council,Chief Executives,Agency staff provision,14.01.2011,5100409150,653.1,Reed Employment Plc
Manchester City Council,Chief Executives,Agency staff provision,14.01.2011,5100409083,7401.39,Reed Employment Plc
Manchester City Council,Chief Executives,Agency staff provision,14.01.2011,5100409129,9079.59,Reed Employment Plc
Manchester City Council,Chief Executives,Agency staff provision,14.01.2011,5100408931,787.24,Sellick Partnership (Legal) Ltd
Manchester City Council,Chief Executives,Agency staff provision,14.01.2011,5100406810,512.25,Spring Technology Staffing Services
Manchester City Council,Hospitality + Trading Services,Building Materials for direct delivery,14.01.2011,5100408991,6275,NatSol Ltd
Manchester City Council,Chief Executives,Building Works,14.01.2011,5100407312,8265,CaD Architecture
Manchester City Council,Childrens Services,Building Works,14.01.2011,5100407604,11644,F Parkinson Limited
Manchester City Council,Childrens Services,Building Works,14.01.2011,5100407605,87365,F Parkinson Limited
Manchester City Council,Housing General Fund,Building Works,14.01.2011,5100409069,32201,GB Building Solutions Ltd
Manchester City Council,Housing General Fund,Building Works,14.01.2011,5100409069,93098,GB Building Solutions Ltd
Manchester City Council,Housing General Fund,Building Works,14.01.2011,5100409047,4540.88,Groundwork Manchester
Manchester City Council,Childrens Services,Building Works,14.01.2011,5100408962,-110123.75,Laing O'Rourke Construction Ltd
Manchester City Council,Childrens Services,Building Works,14.01.2011,5100408926,110123.75,Laing O'Rourke Construction Ltd
Manchester City Council,Housing General Fund,Building Works,14.01.2011,1902440326,1762.5,Leslie Roberts & Co Ltd
Manchester City Council,Childrens Services,Building Works,14.01.2011,5100408977,1589.56,Mace Ltd
Manchester City Council,Childrens Services,Building Works,14.01.2011,5100408902,2156.52,Mace Ltd
Manchester City Council,Childrens Services,Building Works,14.01.2011,5100408902,2372.17,Mace Ltd
Manchester City Council,Childrens Services,Building Works,14.01.2011,5100408977,4744.28,Mace Ltd
Manchester City Council,Childrens Services,Building Works,14.01.2011,5100408902,4768.68,Mace Ltd
Manchester City Council,Childrens Services,Building Works,14.01.2011,5100408977,5471.24,Mace Ltd
Manchester City Council,Childrens Services,Building Works,14.01.2011,5100408977,6073.7,Mace Ltd
Manchester City Council,Childrens Services,Building Works,14.01.2011,5100408977,7151.94,Mace Ltd
Manchester City Council,Childrens Services,Building Works,14.01.2011,5100408930,7979.08,Mace Ltd
Manchester City Council,Childrens Services,Building Works,14.01.2011,5100408918,10326.96,Mace Ltd
Manchester City Council,Childrens Services,Building Works,14.01.2011,5100408977,10998.1,Mace Ltd
Manchester City Council,Housing General Fund,Building Works,14.01.2011,1902439158,1150,Manchester Working Ltd
Manchester City Council,Housing General Fund,Building Works,14.01.2011,1902439178,1150,Manchester Working Ltd
Manchester City Council,Housing General Fund,Building Works,14.01.2011,1902439755,1150,Manchester Working Ltd
Manchester City Council,Housing General Fund,Building Works,14.01.2011,1902440586,1377.85,Manchester Working Ltd
Manchester City Council,Housing General Fund,Building Works,14.01.2011,1902439161,3650,Manchester Working Ltd
Manchester City Council,Housing General Fund,Building Works,14.01.2011,1902439165,3650,Manchester Working Ltd
Manchester City Council,Housing General Fund,Building Works,14.01.2011,1902439167,3650,Manchester Working Ltd
Manchester City Council,Housing General Fund,Building Works,14.01.2011,1902439177,3650,Manchester Working Ltd
Manchester City Council,Housing General Fund,Building Works,14.01.2011,1902440587,3650,Manchester Working Ltd
Manchester City Council,Housing General Fund,Building Works,14.01.2011,1902440590,3650,Manchester Working Ltd
Manchester City Council,Housing General Fund,Building Works,14.01.2011,1902439170,3750,Manchester Working Ltd
Manchester City Council,Housing General Fund,Building Works,14.01.2011,1902439172,3750,Manchester Working Ltd
Manchester City Council,Housing General Fund,Building Works,14.01.2011,1902439174,3750,Manchester Working Ltd
Manchester City Council,Housing General Fund,Building Works,14.01.2011,1902433721,3921.25,Manchester Working Ltd
Manchester City Council,Housing General Fund,Building Works,14.01.2011,1902440589,4190,Manchester Working Ltd
Manchester City Council,Housing General Fund,Building Works,14.01.2011,1902434191,1373.69,Roger Hannah & Co
Manchester City Council,Childrens Services,Building Works,14.01.2011,5100408932,3100,W T Partnership
Manchester City Council,Hospitality + Trading Services,Catering Provisions,14.01.2011,1902442019,868.6,Pasta King (Uk) Ltd
Manchester City Council,Hospitality + Trading Services,Catering Provisions,14.01.2011,1902441132,878.4,Pasta King (Uk) Ltd
Manchester City Council,Hospitality + Trading Services,Catering Provisions,14.01.2011,1902441856,620.44,Berkeley Care Management Ltd
Manchester City Council,Hospitality + Trading Services,Catering Provisions,14.01.2011,1902441684,614.5,Brake Bros Foodservice Ltd
Manchester City Council,Hospitality + Trading Services,Catering Provisions,14.01.2011,1902441452,756.28,Brake Bros Foodservice Ltd
Manchester City Council,Hospitality + Trading Services,Catering Provisions,14.01.2011,1902441639,554.75,Brake Bros Foodservice Ltd
Manchester City Council,Hospitality + Trading Services,Catering Provisions,14.01.2011,1902441914,539.86,Brake Bros Foodservice Ltd
Manchester City Council,Hospitality + Trading Services,Catering Provisions,14.01.2011,1902441652,684.66,Brake Bros Foodservice Ltd
Manchester City Council,Hospitality + Trading Services,Catering Provisions,14.01.2011,1902441129,1328.88,Brake Bros Foodservice Ltd
Manchester City Council,Hospitality + Trading Services,Catering Provisions,14.01.2011,1902441687,567.18,Brake Bros Foodservice Ltd
Manchester City Council,Hospitality + Trading Services,Catering Provisions,14.01.2011,1902442113,599.35,Brake Bros Foodservice Ltd
Manchester City Council,Hospitality + Trading Services,Catering Provisions,14.01.2011,1902441676,573.79,Brake Bros Foodservice Ltd
Manchester City Council,Hospitality + Trading Services,Catering Provisions,14.01.2011,1902441898,751.3,Chicken Joes Limited
Manchester City Council,Hospitality + Trading Services,Catering Provisions,14.01.2011,1902441131,691.69,Grosvenor Fresh Foods Ltd
Manchester City Council,Housing Revenue Account,Charges for Research,14.01.2011,1902440520,926.15,VIRGIN MEDIA LTD
Manchester City Council,Hospitality + Trading Services,Cleaning Equipment and Materials,14.01.2011,5100408965,876.7,Panztel (Uk) Limited
Manchester City Council,Childrens Services,Compensation Payments,14.01.2011,1902440381,5000,Accountant General of the Senior
Manchester City Council,Manchester Leisure,Compensation Payments,14.01.2011,1902434065,566,Department For Work & Pensions
Manchester City Council,Corporate Services,Consultants Fees,14.01.2011,5100408987,540.00,GVA Grimley Ltd
Manchester City Council,Hospitality + Trading Services,Contract Cleaning External,14.01.2011,5100408911,24636.65,Ocean Contract Cleaning Ltd
Manchester City Council,Housing Revenue Account,Council Dwelling Adaptations,14.01.2011,5100408870,24844.91,Manchester Working Ltd
Manchester City Council,Housing Revenue Account,Council Dwelling Adaptations,14.01.2011,5100408945,1756.35,Rampcraft Access Ramps
Manchester City Council,Adult Social Care,Equipment,14.01.2011,5100376615,609,Cefndy Health Care
Manchester City Council,Childrens Services,Equipment,14.01.2011,5100408797,1112.37,Neopost Ltd
Manchester City Council,Chief Executives,Expenditure re Internal Trading Ordered Externally,14.01.2011,5100408794,9966.66,Intelligence Agency Limited
Manchester City Council,Housing Revenue Account,External repairs and maintenance for buildings,14.01.2011,5100407149,1818743,Northwards Housing Limited
Manchester City Council,Childrens Services,Grant and subscriptions awarded,14.01.2011,1902440598,855.25,Anson Cabin Project
Manchester City Council,Environment and Operations,Grant and subscriptions awarded,14.01.2011,5100407414,1425,Association Of Port Health Authorit
Manchester City Council,Childrens Services,Grant and subscriptions awarded,14.01.2011,1902440600,2047.5,Barlow Moor Community Association.
Manchester City Council,Chief Executives,Grant and subscriptions awarded,14.01.2011,1902429480,2208.48,Beech Road Association of Traders
Manchester City Council,Chief Executives,Grant and subscriptions awarded,14.01.2011,5100408826,4580.21,Greater Manchester Police
Manchester City Council,Childrens Services,Grant and subscriptions awarded,14.01.2011,5100408787,3577,North West Media Ltd
Manchester City Council,Chief Executives,Grant and subscriptions awarded,14.01.2011,1902440483,6217.5,Slade Lane Neighbourhood Centre
Manchester City Council,Chief Executives,Grant and subscriptions awarded,14.01.2011,1902440508,5250,Somali Women's Group of M/cr
Manchester City Council,Chief Executives,Grant and subscriptions awarded,14.01.2011,1902440497,4867.5,St Georges Community Centre.
Manchester City Council,Chief Executives,Grant and subscriptions awarded,14.01.2011,1902440517,3375,The Pankhurst Centre
Manchester City Council,Chief Executives,Grant and subscriptions awarded,14.01.2011,1902440519,2040,Tree Of Life Centre Wythenshawe
Manchester City Council,Chief Executives,Grant and subscriptions awarded,14.01.2011,1902440470,7932.5,Turkey Lane & Monsall Neighbourhood
Manchester City Council,Section 48,Grant and subscriptions awarded,14.01.2011,5100408922,10275,Water Adventure Centre
Manchester City Council,Chief Executives,Grant and subscriptions awarded,14.01.2011,1902440510,4680,Whalley Range Forum
Manchester City Council,Chief Executives,Grant and subscriptions awarded,14.01.2011,1902440518,5100,Whitemoss Club For Young People
Manchester City Council,Chief Executives,Grant and subscriptions awarded,14.01.2011,5100409030,12706,Zion Arts Centre Ltd
Manchester City Council,Regeneration Finance,Grant and subscriptions awarded,14.01.2011,5100408935,13854.16,Zion Arts Centre Ltd
Manchester City Council,Section 48,Grants and Subs,14.01.2011,5100409244,10225,House Of Grumpy Ltd
Manchester City Council,Housing Revenue Account,Grounds Maintenance,14.01.2011,5100409075,1350,IPS Ltd
Manchester City Council,Hospitality + Trading Services,Hire of Equipment,14.01.2011,5100408513,3449.56,Elliott Group Ltd
Manchester City Council,Regeneration Finance,Hire of Premises,14.01.2011,5100409059,500,Whitemoss Club For Young People
Manchester City Council,Adult Social Care,Home Care ,14.01.2011,1902441402,3956.01,Enterprise Care Group Ltd
Manchester City Council,Adult Social Care,Home Care ,14.01.2011,1902441402,3035.33,Enterprise Care Group Ltd
Manchester City Council,Adult Social Care,Home Care ,14.01.2011,1902441402,2159.34,Enterprise Care Group Ltd
Manchester City Council,Adult Social Care,Home Care ,14.01.2011,1902441402,623.24,Enterprise Care Group Ltd
Manchester City Council,Adult Social Care,Home Care ,14.01.2011,1902441402,1083.24,Enterprise Care Group Ltd
Manchester City Council,Adult Social Care,Home Care ,14.01.2011,1902441402,1934.15,Enterprise Care Group Ltd
Manchester City Council,Adult Social Care,Home Care ,14.01.2011,1902441402,2537.11,Enterprise Care Group Ltd
Manchester City Council,Adult Social Care,Home Care ,14.01.2011,1902441402,6713.92,Enterprise Care Group Ltd
Manchester City Council,Adult Social Care,Home Care ,14.01.2011,1902441402,3424.54,Enterprise Care Group Ltd
Manchester City Council,Adult Social Care,Home Care ,14.01.2011,1902441402,758.58,Enterprise Care Group Ltd
Manchester City Council,Chief Executives,I T Provision,14.01.2011,5100407139,2848,Meridian Law Ltd
Manchester City Council,Environment and Operations,I T Provision,14.01.2011,5100408846,15000,Northgate Information Solutions Ltd
Manchester City Council,Adult Social Care,I T Provision,14.01.2011,5100408976,-2896,Panztel (Uk) Limited
Manchester City Council,Adult Social Care,I T Provision,14.01.2011,5100408978,2896,Panztel (Uk) Limited
Manchester City Council,Insurance Fund,Insurance,14.01.2011,1902440446,1250,Accountant General of the Senior
Manchester City Council,Childrens Services,Landline Telephone,14.01.2011,1902438485,748.14,Cable & Wireless UK
Manchester City Council,General Fund,Levies,14.01.2011,1902441421,2613750,GMPTA
Manchester City Council,Chief Executives,Licences Expenditure,14.01.2011,5100409669,76100,Computerland Uk Ltd
Manchester City Council,Adult Social Care,Mobilephone Charges,14.01.2011,1902433957,684.61,T-Mobile
Manchester City Council,Chief Executives,Oth Professional Fee,14.01.2011,1902441416,"10,000.00",Millenium Quarter Trust Admin Acct
Manchester City Council,Regeneration Finance,Payments for services,14.01.2011,5100407896,500,Crosslee 55-100 Social Club
Manchester City Council,Childrens Services,Payments for services,14.01.2011,5100408957,1071.42,Fairfield Residential
Manchester City Council,Learning Disabilities PB,Payments for services,14.01.2011,5100409278,1946.6,Homelife Options Ltd
Manchester City Council,Learning Disabilities PB,Payments for services,14.01.2011,5100409280,2746.28,Homelife Options Ltd
Manchester City Council,Learning Disabilities PB,Payments for services,14.01.2011,5100409282,2746.28,Homelife Options Ltd
Manchester City Council,Learning Disabilities PB,Payments for services,14.01.2011,5100409277,3981.8,Homelife Options Ltd
Manchester City Council,Learning Disabilities PB,Payments for services,14.01.2011,5100409279,3981.8,Homelife Options Ltd
Manchester City Council,Childrens Services,Payments for services,14.01.2011,5100408803,1688,IndePendent Business Services Ltd
Manchester City Council,Childrens Services,Payments for services,14.01.2011,5100409221,540.28,Scope
Manchester City Council,Childrens Services,Payments for services,14.01.2011,5100409260,2254.53,The Together Trust
Manchester City Council,Childrens Services,Payments for services,14.01.2011,5100409262,1816.8,The Together Trust
Manchester City Council,Grtr Manchester Transport Unit,Payments to Sub-Contractors,14.01.2011,5100407276,1075.2,Pluswork Group
Manchester City Council,Adult Social Care,Personal needs of client,14.01.2011,5100409044,980.76,Irwell Valley Housing Association
Manchester City Council,Adult Social Care,Personal needs of client,14.01.2011,5100409045,980.76,Irwell Valley Housing Association
Manchester City Council,Adult Social Care,Personal needs of client,14.01.2011,5100409046,1225.95,Irwell Valley Housing Association
Manchester City Council,Corporate Services,Postage,14.01.2011,5100408983,1130.23,Royal Mail
Manchester City Council,Hospitality + Trading Services,Printing,14.01.2011,5100408961,1200,Ten Alps Publishing Ltd
Manchester City Council,Highways Services,Proffesional fees,14.01.2011,5100408691,500,City Illuminations Ltd
Manchester City Council,Highways Services,Proffesional fees,14.01.2011,5100408694,500,City Illuminations Ltd
Manchester City Council,Highways Services,Proffesional fees,14.01.2011,5100408709,500,City Illuminations Ltd
Manchester City Council,Highways Services,Proffesional fees,14.01.2011,5100408723,500,City Illuminations Ltd
Manchester City Council,Environment and Operations,Refuse Collection,14.01.2011,5100409168,-2654.6,Enterprise Manchester Partnership
Manchester City Council,Environment and Operations,Refuse Collection,14.01.2011,5100407898,2654.6,Enterprise Manchester Partnership
Manchester City Council,Adult Social Care,Rents,14.01.2011,5100409048,10229,Grail Property
Manchester City Council,Corporate Services,Responsive Work,14.01.2011,5100409269,50000,GB Building Solutions Ltd
Manchester City Council,Hospitality + Trading Services,Security,14.01.2011,5100406541,994.84,Goldrange Limited
Manchester City Council,Hospitality + Trading Services,Security,14.01.2011,5100406542,2807.81,Goldrange Limited
Manchester City Council,Housing General Fund,Surplus property Demolition,14.01.2011,5100407939,32812,Cruden Property Services Limited
Manchester City Council,Childrens Services,Third party payments relating to Voluntary Organisations,14.01.2011,5100409213,1024.07,Crossroads Caring for Carers
Manchester City Council,Chief Executives,Third party payments relating to Voluntary Organisations,14.01.2011,5100408802,21461,Great Places Housing Association
Manchester City Council,Childrens Services,Third party payments relating to Voluntary Organisations,14.01.2011,1902441445,14901.23,Resource Partners SPV Ltd
Manchester City Council,Environment and Operations,Tipping - Tonnage,14.01.2011,5100408871,11800.65,Redgate Holdings Ltd
Manchester City Council,Environment and Operations,Tipping - Tonnage,14.01.2011,5100408862,25029.59,Redgate Holdings Ltd
Manchester City Council,Environment and Operations,Tipping - Tonnage,14.01.2011,5100408910,36157.63,Redgate Holdings Ltd
Manchester City Council,Childrens Services,Training and Development,14.01.2011,5100409223,815.74,Essential Papers Ltd
Manchester City Council,Corporate Services,Training and Development,14.01.2011,5100408852,2823,Skills Solution Ltd
Manchester City Council,Chief Executives,Vehicle Fuel Costs,14.01.2011,5100409026,1585.02,Crown Oil
Manchester City Council,Chief Executives,Vehicle Fuel Costs,14.01.2011,5100409035,1875.15,Crown Oil
Manchester City Council,Chief Executives,Vehicle Fuel Costs,14.01.2011,5100409025,1900.5,Crown Oil
Manchester City Council,Chief Executives,Vehicle Fuel Costs,14.01.2011,5100409027,2074.5,Crown Oil
Manchester City Council,Chief Executives,Vehicle Fuel Costs,14.01.2011,5100409028,2095.5,Crown Oil
Manchester City Council,Chief Executives,Vehicle Fuel Costs,14.01.2011,5100409032,570.34,Crown Oil
Manchester City Council,Hospitality + Trading Services,Vehicle Hire Costs,14.01.2011,5100409660,23660.14,Burnt Tree Group Ltd
Manchester City Council,Hospitality + Trading Services,Vehicle Parts/Spares,14.01.2011,5100409240,621.79,Zoeller Waste Systems Ltd
Manchester City Council,Chief Executives,Works and associated costs for Land and Buildings,14.01.2011,5100409663,-2514.5,Appleyard & Trew Llp
Manchester City Council,Chief Executives,Works and associated costs for Land and Buildings,14.01.2011,5100409663,-679.15,Appleyard & Trew Llp
Manchester City Council,Chief Executives,Works and associated costs for Land and Buildings,14.01.2011,5100408913,679.15,Appleyard & Trew Llp
Manchester City Council,Childrens Services,Works and associated costs for Land and Buildings,14.01.2011,5100408905,-6358.24,Mace Ltd
Manchester City Council,Childrens Services,Works and associated costs for Land and Buildings,14.01.2011,5100408930,2803.44,Mace Ltd
Manchester City Council,Childrens Services,Works and associated costs for Land and Buildings,14.01.2011,5100408930,4312.98,Mace Ltd
Manchester City Council,Childrens Services,Works and associated costs for Land and Buildings,14.01.2011,5100408902,4768.68,Mace Ltd
Manchester City Council,Childrens Services,Works and associated costs for Land and Buildings,14.01.2011,5100408902,4768.68,Mace Ltd
Manchester City Council,Childrens Services,Works and associated costs for Land and Buildings,14.01.2011,5100408918,14059.08,Mace Ltd
Manchester City Council,Childrens Services,Works and associated costs for Land and Buildings,14.01.2011,5100408918,14693.43,Mace Ltd
Manchester City Council,Childrens Services,Works and associated costs for Land and Buildings,14.01.2011,5100408902,14941.86,Mace Ltd
Manchester City Council,Chief Executives,Agency staff provision,17.01.2011,5100409959,1005.14,Ashberry Recruitment Ltd
Manchester City Council,Chief Executives,Agency staff provision,17.01.2011,5100409954,3226.39,Ashberry Recruitment Ltd
Manchester City Council,Chief Executives,Agency staff provision,17.01.2011,5100407596,968.13,Bennett Staff Bureau
Manchester City Council,Chief Executives,Agency staff provision,17.01.2011,5100408890,3529.5,Computer People
Manchester City Council,Chief Executives,Agency staff provision,17.01.2011,5100409724,2000,Consult R Us Ltd
Manchester City Council,Chief Executives,Agency staff provision,17.01.2011,5100410052,7391.4,Eden Brown Ltd
Manchester City Council,Chief Executives,Agency staff provision,17.01.2011,5100410053,2172.99,Eden Brown Ltd
Manchester City Council,Chief Executives,Agency staff provision,17.01.2011,5100409343,770.71,Enterprise Social Care Ltd
Manchester City Council,Chief Executives,Agency staff provision,17.01.2011,5100409886,844.46,Entrust Social Care
Manchester City Council,Chief Executives,Agency staff provision,17.01.2011,5100409695,1078.87,Fresh 123 Ltd t/a Pin Point
Manchester City Council,Chief Executives,Agency staff provision,17.01.2011,5100408043,11774.76,Gatenby Sanderson
Manchester City Council,Chief Executives,Agency staff provision,17.01.2011,5100408776,1342.57,HR Care (Manchester) Ltd
Manchester City Council,Chief Executives,Agency staff provision,17.01.2011,5100407771,4666.09,Manpower UK Ltd
Manchester City Council,Chief Executives,Agency staff provision,17.01.2011,5100407908,6000,Nacro Operations
Manchester City Council,Chief Executives,Agency staff provision,17.01.2011,5100407904,18276,Nacro Operations
Manchester City Council,Chief Executives,Agency staff provision,17.01.2011,5100409827,1393.9,Progressive Recruitment Ltd
Manchester City Council,Childrens Services,Agency staff provision,17.01.2011,5100409725,6675,Rathberry Limited
Manchester City Council,Chief Executives,Agency staff provision,17.01.2011,5100409650,2489.22,Rullion Engineering Personnel Limit
Manchester City Council,Chief Executives,Agency staff provision,17.01.2011,5100409574,-1707.5,Spring Technology Staffing Services
Manchester City Council,Adult Social Care,Bed & Breakfast Acc,17.01.2011,5100409053,553.84,REDACTED PERSONAL DATA
Manchester City Council,Adult Social Care,Bed & Breakfast Acc,17.01.2011,5100409054,553.84,REDACTED PERSONAL DATA
Manchester City Council,Childrens Services,Books-Children's NF,17.01.2011,5100409263,1663.93,Madeleine Lindley Ltd
Manchester City Council,Chief Executives,Building Materials for direct delivery,17.01.2011,5100402348,1802.5,Duluce Light Ltd
Manchester City Council,Hospitality + Trading Services,Building Materials for direct delivery,17.01.2011,5100408975,1290,Isaac Butterworth Ltd
Manchester City Council,Hospitality + Trading Services,Building Materials for direct delivery,17.01.2011,5100409712,1075,N. A. Brown Limited
Manchester City Council,Childrens Services,Building Works,17.01.2011,5100409549,174781.87,Balfour Beatty Construction Ltd
Manchester City Council,Housing General Fund,Building Works,17.01.2011,1902441279,1762.5,Colliers International
Manchester City Council,Childrens Services,Building Works,17.01.2011,5100409537,545,Community Products Ltd
Manchester City Council,Housing General Fund,Building Works,17.01.2011,5100409642,8000,Manchester Care & Repair Ltd
Manchester City Council,Housing General Fund,Building Works,17.01.2011,5100409640,9164.25,Manchester Care & Repair Ltd
Manchester City Council,Housing General Fund,Building Works,17.01.2011,5100409625,11777,Manchester Care & Repair Ltd
Manchester City Council,Housing General Fund,Building Works,17.01.2011,5100409639,14989,Manchester Care & Repair Ltd
Manchester City Council,Housing General Fund,Building Works,17.01.2011,5100409629,18185.5,Manchester Care & Repair Ltd
Manchester City Council,Housing General Fund,Building Works,17.01.2011,5100409637,25461.5,Manchester Care & Repair Ltd
Manchester City Council,Housing General Fund,Building Works,17.01.2011,5100409621,40000,Manchester Care & Repair Ltd
Manchester City Council,Housing General Fund,Building Works,17.01.2011,5100409633,65640.25,Manchester Care & Repair Ltd
Manchester City Council,Housing General Fund,Building Works,17.01.2011,1902440908,3650,Manchester Working Ltd
Manchester City Council,Housing General Fund,Building Works,17.01.2011,1902440935,3650,Manchester Working Ltd
Manchester City Council,Housing General Fund,Building Works,17.01.2011,5100408885,75730.85,Reviva Urban Renewal Limited
Manchester City Council,Corporate Services,Car Parking Permits,17.01.2011,5100408822,2817,National Car Parks Ltd Season Ticke
Manchester City Council,Adult Social Care,Cash Collection Chgs,17.01.2011,1902440295,614.24,G4S Cash Services (Uk) Ltd
Manchester City Council,Hospitality + Trading Services,Coach Hire,17.01.2011,5100409819,1332.68,Jeffries Cars
Manchester City Council,Hospitality + Trading Services,Coach Hire,17.01.2011,5100409824,1698,Jeffries Cars
Manchester City Council,Hospitality + Trading Services,Coach Hire,17.01.2011,5100408858,5320.28,Orion Travel
Manchester City Council,Childrens Services,Coach Hire,17.01.2011,5100409342,900,Rochdale MBC
Manchester City Council,Childrens Services,Coach Hire,17.01.2011,5100409707,900,Rochdale MBC
Manchester City Council,Highways Services,Compensation Payments,17.01.2011,1902440571,547,Department For Work & Pensions
Manchester City Council,Highways Services,Compensation Payments,17.01.2011,1902440572,547,Department For Work & Pensions
Manchester City Council,Highways Services,Compensation Payments,17.01.2011,1902440568,866,Department For Work & Pensions
Manchester City Council,Chief Executives,Consultants Fees,17.01.2011,5100409319,"2,500.00",Christal Construction Mgmt Ltd
Manchester City Council,Hospitality + Trading Services,Contract Cleaning External,17.01.2011,5100409309,591.36,Ocean Contract Cleaning Ltd
Manchester City Council,Environment and Operations,Contract Cleaning External,17.01.2011,5100409722,590.68,Sodexho Ltd
Manchester City Council,Housing Revenue Account,Council Dwelling Adaptations,17.01.2011,5100409714,-43342,Manchester Working Ltd
Manchester City Council,Housing Revenue Account,Council Dwelling Adaptations,17.01.2011,5100409925,1684.8,Northwards Housing Limited
Manchester City Council,Housing Revenue Account,Council Dwelling Adaptations,17.01.2011,5100409936,2081.53,Northwards Housing Limited
Manchester City Council,Housing Revenue Account,Council Dwelling Adaptations,17.01.2011,5100409933,2122.14,Northwards Housing Limited
Manchester City Council,Housing Revenue Account,Council Dwelling Adaptations,17.01.2011,5100409922,8746,Northwards Housing Limited
Manchester City Council,Housing Revenue Account,Council Dwelling Adaptations,17.01.2011,5100409939,124752.63,Northwards Housing Limited
Manchester City Council,Housing Revenue Account,Council Dwelling Adaptations,17.01.2011,5100409555,10286.73,Wilfrid Lord Ltd
Manchester City Council,Childrens Services,Council Dwelling Construction,17.01.2011,5100407686,39518,Willmott Dixon Construction
Manchester City Council,Housing Revenue Account,Council Dwelling Fees,17.01.2011,5100408874,37166,GB Building Solutions Ltd
Manchester City Council,Housing Revenue Account,Council Dwelling Fees,17.01.2011,5100409266,196223,GB Building Solutions Ltd
Manchester City Council,Highways Services,Equipment,17.01.2011,5100407419,13698,A T G Access Ltd
Manchester City Council,Childrens Services,Equipment,17.01.2011,5100409505,1016,Black Acoustics
Manchester City Council,Childrens Services,Equipment,17.01.2011,5100409507,1354.6,Black Acoustics
Manchester City Council,Hospitality + Trading Services,Equipment,17.01.2011,5100409834,600,Mono Alarms Installations Ltd
Manchester City Council,Hospitality + Trading Services,Equipment,17.01.2011,5100409307,3411.54,Neopost Ltd
Manchester City Council,Childrens Services,Equipment,17.01.2011,5100409761,1492.09,Professional Music Technology Mcr
Manchester City Council,Childrens Services,Equipment,17.01.2011,5100408219,527.66,Snooker Shop Ltd
Manchester City Council,Corporate Services,External repairs and maintenance for buildings,17.01.2011,5100409271,1907.68,Electricity North West Limited
Manchester City Council,Adult Social Care,External repairs and maintenance for buildings,17.01.2011,5100409588,5500,F Parkinson Limited
Manchester City Council,Corporate Services,External repairs and maintenance for buildings,17.01.2011,5100409965,31021.17,Manchester Working Ltd
Manchester City Council,Childrens Services,Fixtures and Fitting,17.01.2011,1902440530,1290,Barnardos Manchester Leaving Care S
Manchester City Council,Childrens Services,Fixtures and Fitting,17.01.2011,1902440534,2500,Barnardos Manchester Leaving Care S
Manchester City Council,Childrens Services,Foster Payments,17.01.2011,1902438459,622.2,Barnardos Manchester Leaving Care S
Manchester City Council,Childrens Services,Foster Payments,17.01.2011,1902440530,622.2,Barnardos Manchester Leaving Care S
Manchester City Council,Childrens Services,Foster Payments,17.01.2011,1902440534,982.2,Barnardos Manchester Leaving Care S
Manchester City Council,Childrens Services,Foster Payments,17.01.2011,1902440967,2222.4,Barnardos Manchester Leaving Care S
Manchester City Council,Chief Executives,Funeral and coroner related services,17.01.2011,1902433997,1713.2,Kane Funeral Services
Manchester City Council,Adult Social Care,General Payments not otherwise categorised,17.01.2011,5100408393,7071.16,Stockport Metropolitan Borough
Manchester City Council,Chief Executives,Goods purchased for resale in Council outlets,17.01.2011,5100409699,3759.28,Select Cards UK Ltd
Manchester City Council,Chief Executives,Grant and subscriptions awarded,17.01.2011,1902440924,16575,4CT Limited
Manchester City Council,Chief Executives,Grant and subscriptions awarded,17.01.2011,1902440925,3232.5,Albert Kennedy Trust
Manchester City Council,Chief Executives,Grant and subscriptions awarded,17.01.2011,1902440926,10760,Barlow Moor Community Association.
Manchester City Council,Chief Executives,Grant and subscriptions awarded,17.01.2011,1902440927,5407.5,Birch Community Association
Manchester City Council,Childrens Services,Grant and subscriptions awarded,17.01.2011,1902440916,1264,Fruits of Life Playgroup
Manchester City Council,Regeneration Finance,Grant and subscriptions awarded,17.01.2011,5100408824,932.88,Greater Manchester Police
Manchester City Council,Regeneration Finance,Grant and subscriptions awarded,17.01.2011,5100408828,1564.2,Greater Manchester Police
Manchester City Council,Regeneration Finance,Grant and subscriptions awarded,17.01.2011,5100408829,9870.72,Greater Manchester Police
Manchester City Council,Regeneration Finance,Grant and subscriptions awarded,17.01.2011,5100409564,1916.66,Inspired Sisters Ltd
Manchester City Council,Childrens Services,Grant and subscriptions awarded,17.01.2011,1902440917,2090,Ladybarn Community Playgroup
Manchester City Council,Regeneration Finance,Grant and subscriptions awarded,17.01.2011,5100409644,17479,Manchester Care & Repair Ltd
Manchester City Council,Childrens Services,Grant and subscriptions awarded,17.01.2011,1902440918,3744,Moston Methodist Church Playgroup
Manchester City Council,Corporate Services,Grant and subscriptions awarded,17.01.2011,5100409622,500,SAP UK & Eire User Group
Manchester City Council,Childrens Services,Grant and subscriptions awarded,17.01.2011,1902441372,2437.5,Vine Playgroup
Manchester City Council,Chief Executives,Hire of Equipment,17.01.2011,5100409096,1000,Ap Digital
Manchester City Council,Chief Executives,Hire of Equipment,17.01.2011,5100408555,5295.78,DBN Lighting
Manchester City Council,Hospitality + Trading Services,Hire of Equipment,17.01.2011,5100410146,2543.33,Jetchem Systems Limited
Manchester City Council,Hospitality + Trading Services,Hire of Equipment,17.01.2011,5100409706,4600,Norton Hiab Services Ltd
Manchester City Council,Chief Executives,Hire of Equipment,17.01.2011,5100408740,6090.61,RMD Kwikform Ltd
Manchester City Council,Hospitality + Trading Services,Hire of Equipment,17.01.2011,5100409789,13439,T M Newburn Group Limited
Manchester City Council,Hospitality + Trading Services,Hire of Equipment,17.01.2011,5100409795,13439,T M Newburn Group Limited
Manchester City Council,Hospitality + Trading Services,Hire of Machinery,17.01.2011,5100409692,556,R & M Developments Ltd
Manchester City Council,Hospitality + Trading Services,Hire of Machinery,17.01.2011,5100409655,663,R & M Developments Ltd
Manchester City Council,Hospitality + Trading Services,Hire of Machinery,17.01.2011,5100409614,808,R & M Developments Ltd
Manchester City Council,Hospitality + Trading Services,Hire of Machinery,17.01.2011,5100409652,822,R & M Developments Ltd
Manchester City Council,Hospitality + Trading Services,Hire of Machinery,17.01.2011,5100409603,872,R & M Developments Ltd
Manchester City Council,Hospitality + Trading Services,Hire of Machinery,17.01.2011,5100409673,952,R & M Developments Ltd
Manchester City Council,Hospitality + Trading Services,Hire of Machinery,17.01.2011,5100409681,966,R & M Developments Ltd
Manchester City Council,Hospitality + Trading Services,Hire of Machinery,17.01.2011,5100409599,1002,R & M Developments Ltd
Manchester City Council,Hospitality + Trading Services,Hire of Machinery,17.01.2011,5100409677,1035,R & M Developments Ltd
Manchester City Council,Hospitality + Trading Services,Hire of Machinery,17.01.2011,5100409662,1090,R & M Developments Ltd
Manchester City Council,Hospitality + Trading Services,Hire of Machinery,17.01.2011,5100409688,1090,R & M Developments Ltd
Manchester City Council,Hospitality + Trading Services,Hire of Machinery,17.01.2011,5100409691,1090,R & M Developments Ltd
Manchester City Council,Hospitality + Trading Services,Hire of Machinery,17.01.2011,5100409693,1090,R & M Developments Ltd
Manchester City Council,Hospitality + Trading Services,Hire of Machinery,17.01.2011,5100409598,1152,R & M Developments Ltd
Manchester City Council,Hospitality + Trading Services,Hire of Machinery,17.01.2011,5100409641,1440,R & M Developments Ltd
Manchester City Council,Childrens Services,Home Care ,17.01.2011,5100409504,788,REDACTED PERSONAL DATA
Manchester City Council,Housing Revenue Account,Housing Rent Income,17.01.2011,1902442413,21599.89,City South Manchester Housing Trust
Manchester City Council,Adult Social Care,I T Provision,17.01.2011,5100408956,2075,Manchester Geomatics Ltd
Manchester City Council,Adult Social Care,I T Provision,17.01.2011,5100409825,2631.41,Network Communication Systems Ltd
Manchester City Council,Regeneration Finance,I T Provision,17.01.2011,5100408471,3000,Stephen Broadbent Artworks Ltd
Manchester City Council,Insurance Fund,Insurance,17.01.2011,1902440583,4108,Ead Solicitors
Manchester City Council,Childrens Services,Internal Repairs and Maintenance for buildings,17.01.2011,5100409588,3500,F Parkinson Limited
Manchester City Council,Adult Social Care,Landline Telephone,17.01.2011,1902440592,738.71,Cable & Wireless UK
Manchester City Council,Adult Social Care,Landline Telephone,17.01.2011,1902434174,705.22,Cable & Wireless UK
Manchester City Council,Chief Executives,Landline Telephone,17.01.2011,1902440759,22835.27,Cable & Wireless UK
Manchester City Council,Childrens Services,Compensation Payments,17.01.2011,1902440453,11892,Ead Solicitors
Manchester City Council,Corporate Services,Legal Fees,17.01.2011,1902434350,590,Pugh & Company
Manchester City Council,Libraries and Theatres,Library Materials Acquisition,17.01.2011,1902441224,686.57,Bertram Library Services
Manchester City Council,Libraries and Theatres,Library Materials Acquisition,17.01.2011,1902441184,2000,Farhangsara of London
Manchester City Council,Libraries and Theatres,Library Materials Acquisition,17.01.2011,1902441226,763.5,Smiths News Trading Ltd
Manchester City Council,Childrens Services,Mobilephone Charges,17.01.2011,1902434097,847.89,T-Mobile
Manchester City Council,Childrens Services,Mobilephone Charges,17.01.2011,1902434089,788.8,T-Mobile
Manchester City Council,Highways Services,Office Accomodation,17.01.2011,1902425880,1000,Northern Way Properties Limited
Manchester City Council,Highways Services,Office Accomodation,17.01.2011,1902389931,38694.73,Northern Way Properties Limited
Manchester City Council,Highways Services,Oth Professional Fee,17.01.2011,5100409798,"4,739.16",AECOM Limited
Manchester City Council,Corporate Services,Oth Professional Fee,17.01.2011,5100408790,"46,088.45",Jacobs Engineering UK Ltd
Manchester City Council,Corporate Services,Oth Professional Fee,17.01.2011,5100409553,"-1,207.50",Michael Dyson Associates Ltd
Manchester City Council,Highways Services,Oth Professional Fee,17.01.2011,5100408385,"6,955.20",Wilde Consultants Ltd
Manchester City Council,Highways Services,Oth Professional Fee,17.01.2011,5100408384,"7,681.42",Wilde Consultants Ltd
Manchester City Council,Chief Executives,Paper & Envelopes,17.01.2011,5100409511,836.88,Xerox Office Supplies
Manchester City Council,Chief Executives,Payments for services,17.01.2011,5100409303,34856,Greater Manchester West
Manchester City Council,Childrens Services,Payments for services,17.01.2011,5100408955,500,North West Media Ltd
Manchester City Council,Childrens Services,Payments for services,17.01.2011,5100408952,1500,North West Media Ltd
Manchester City Council,Manchester Leisure,Payments for services,17.01.2011,5100409814,1206.81,Projekts Skate Park
Manchester City Council,Childrens Services,Payments for services,17.01.2011,5100409618,1629,Wryoa W.H.I.Z
Manchester City Council,Manchester Leisure,Payments for services,17.01.2011,5100409558,500,Youth on Solid Ground
Manchester City Council,Manchester Leisure,Payments for services,17.01.2011,5100409560,500,Youth on Solid Ground
Manchester City Council,Manchester Leisure,Payments for services,17.01.2011,5100409561,500,Youth on Solid Ground
Manchester City Council,Manchester Leisure,Payments for services,17.01.2011,5100409559,550,Youth on Solid Ground
Manchester City Council,Environment and Operations,Payments to Sub-Contractors,17.01.2011,5100409942,909.09,Animal Wardens Ltd
Manchester City Council,Environment and Operations,Payments to Sub-Contractors,17.01.2011,5100409567,7500,Groundwork Manchester
Manchester City Council,Environment and Operations,Payments to Sub-Contractors,17.01.2011,5100409581,7500,Groundwork Manchester
Manchester City Council,Highways Services,Payments to Sub-Contractors,17.01.2011,5100409774,795.17,Salt Union Ltd
Manchester City Council,Highways Services,Payments to Sub-Contractors,17.01.2011,5100409775,2417.94,Salt Union Ltd
Manchester City Council,Grtr Manchester Transport Unit,Payments to Sub-Contractors,17.01.2011,5100408655,1000,SIAS Ltd
Manchester City Council,Childrens Services,Personal needs of client,17.01.2011,1902434231,864,Barnardos Manchester Leaving Care S
Manchester City Council,Childrens Services,Personal needs of client,17.01.2011,1902440534,864,Barnardos Manchester Leaving Care S
Manchester City Council,Childrens Services,Personal needs of client,17.01.2011,1902440531,1512,Barnardos Manchester Leaving Care S
Manchester City Council,Adult Social Care,Personal needs of client,17.01.2011,5100408335,1370,Sidhil Ltd
Manchester City Council,Hospitality + Trading Services,Postage,17.01.2011,5100409816,2229.42,Royal Mail Group Plc
Manchester City Council,Hospitality + Trading Services,Postage,17.01.2011,5100409811,2446.38,Royal Mail Group Plc
Manchester City Council,Libraries and Theatres,Postage,17.01.2011,5100409704,1050.89,Royal Mail Group Plc
Manchester City Council,Chief Executives,Printing,17.01.2011,5100409427,553.8,BTC Group
Manchester City Council,Chief Executives,Printing,17.01.2011,5100409316,961,Mcr:Music Limited
Manchester City Council,Housing Revenue Account,Private Finance and Public Private partnership initiatives,17.01.2011,5100409532,389954.94,Grove Village Ltd
Manchester City Council,Childrens Services,Proffesional fees,17.01.2011,1902434231,644.1,Barnardos Manchester Leaving Care S
Manchester City Council,Childrens Services,Proffesional fees,17.01.2011,1902440967,672.55,Barnardos Manchester Leaving Care S
Manchester City Council,Childrens Services,Proffesional fees,17.01.2011,1902440534,1525,Barnardos Manchester Leaving Care S
Manchester City Council,Highways Services,Proffesional fees,17.01.2011,5100409912,861.6,Design Plus
Manchester City Council,Corporate Services,Proffesional fees,17.01.2011,5100409520,2940,Hind Consultancy Services Ltd
Manchester City Council,Corporate Services,Proffesional fees,17.01.2011,5100409524,6836.5,Hind Consultancy Services Ltd
Manchester City Council,Environment and Operations,Proffesional fees,17.01.2011,5100409308,980,Osborne Richardson
Manchester City Council,Chief Executives,Proffesional fees,17.01.2011,5100409563,21000,Pains Fireworks Ltd
Manchester City Council,Childrens Services,Proffesional fees,17.01.2011,1902432968,2200,Paragon Psychological Services
Manchester City Council,Adult Social Care,Proffesional fees,17.01.2011,5100409732,1229.15,Redacted Personal Data
Manchester City Council,Hospitality + Trading Services,Proffesional fees,17.01.2011,5100409185,1125.75,REDACTED PERSONAL DATA
Manchester City Council,Chief Executives,Proffesional fees,17.01.2011,5100409322,900,Showmed
Manchester City Council,Childrens Services,Proffesional fees,17.01.2011,1902440471,1505,Stockport Psychology Services
Manchester City Council,Childrens Services,Proffesional fees,17.01.2011,1902434197,610.8,THE LUCY FAITHFULL FOUNDATION
Manchester City Council,Childrens Services,Proffesional fees,17.01.2011,5100409125,-1755,Time Babysitting Agency Ltd
Manchester City Council,Childrens Services,Proffesional fees,17.01.2011,5100409123,2430,Time Babysitting Agency Ltd
Manchester City Council,Chief Executives,Refuse Collection,17.01.2011,5100346073,1688.44,Enterprise Manchester Partnership
Manchester City Council,Chief Executives,Refuse Collection,17.01.2011,5100398975,1688.44,Enterprise Manchester Partnership
Manchester City Council,Hospitality + Trading Services,Refuse Collection,17.01.2011,5100401451,2148.85,Enterprise Manchester Partnership
Manchester City Council,Hospitality + Trading Services,Refuse Collection,17.01.2011,5100400564,2223.1,Enterprise Manchester Partnership
Manchester City Council,Hospitality + Trading Services,Refuse Collection,17.01.2011,5100399024,2260.86,Enterprise Manchester Partnership
Manchester City Council,Childrens Services,Rents,17.01.2011,1902440967,597.14,Barnardos Manchester Leaving Care S
Manchester City Council,Childrens Services,Storage Costs,17.01.2011,5100409534,661.41,Iron Mountain (Uk) Ltd
Manchester City Council,Adult Social Care,Storage Costs,17.01.2011,5100409508,3269.39,Safe Records Management Ltd
Manchester City Council,Childrens Services,Student Discretionery Awards,17.01.2011,5100407600,1500,Bev Amison Consultancy Ltd
Manchester City Council,Childrens Services,Student Discretionery Awards,17.01.2011,5100394993,1160,University Of Huddersfield
Manchester City Council,Childrens Services,Supported Accom,17.01.2011,5100409287,590.08,Creative Support Ltd
Manchester City Council,Housing General Fund,Surplus property Acquisitions,17.01.2011,1902441153,628.62,REDACTED PERSONAL DATA
Manchester City Council,Childrens Services,Taxi Expenses,17.01.2011,1902434078,845,Eastlands UK Cars
Manchester City Council,Environment and Operations,Testing Fees,17.01.2011,5100409800,1368,Staffordshire County Council
Manchester City Council,Environment and Operations,Third Party Payments relating to Street Scene Work,17.01.2011,5100407370,1280.96,Pictorial Meadows Ltd
Manchester City Council,Environment and Operations,Third Party Payments relating to Street Scene Work,17.01.2011,5100407368,2014.74,Pictorial Meadows Ltd
Manchester City Council,Childrens Services,Third party payments to other Local Authorities,17.01.2011,5100409293,16497.45,Cheshire West and Chester
Manchester City Council,Corporate Services,Training and Development,17.01.2011,5100409596,3640,University Of Salford
Manchester City Council,Childrens Services,Training and Development,17.01.2011,5100406453,1812,JEB Educational Consultancy Ltd
Manchester City Council,Environment and Operations,Training and Development,17.01.2011,5100408327,606,Serco Integrated Transport
Manchester City Council,Regeneration Finance,Training and Development,17.01.2011,5100409875,570,The Manchester College
Manchester City Council,Hospitality + Trading Services,Vehicle Hire Costs,17.01.2011,5100409135,10472.98,Evans Halshaw
Manchester City Council,Hospitality + Trading Services,Vehicle Hire Costs,17.01.2011,5100409145,10472.98,Evans Halshaw
Manchester City Council,Hospitality + Trading Services,Vehicle Hire Costs,17.01.2011,5100409138,12654.5,Evans Halshaw
Manchester City Council,Hospitality + Trading Services,Vehicle Hire Costs,17.01.2011,5100408195,2331.48,Vale Engineering (York) Ltd
Manchester City Council,Hospitality + Trading Services,Vehicle Parts/Spares,17.01.2011,5100409619,547.33,Warrington Truck Parts Ltd
Manchester City Council,Hospitality + Trading Services,Vehicle Parts/Spares,17.01.2011,5100409645,925,Warrington Truck Parts Ltd
Manchester City Council,Hospitality + Trading Services,Vehicle Parts/Spares,17.01.2011,5100409335,686,Zoeller Waste Systems Ltd
Manchester City Council,Childrens Services,Works and associated costs for Land and Buildings,17.01.2011,5100409711,-19563.26,Bramall Construction Ltd
Manchester City Council,Childrens Services,Works and associated costs for Land and Buildings,17.01.2011,5100409730,19536.26,Bramall Construction Ltd
Manchester City Council,Childrens Services,Works and associated costs for Land and Buildings,17.01.2011,5100407675,19563.26,Bramall Construction Ltd
Manchester City Council,Childrens Services,Works and associated costs for Land and Buildings,17.01.2011,5100409594,786,Capita IT Services (BSF) Limited
Manchester City Council,Environment and Operations,Works and associated costs for Land and Buildings,17.01.2011,5100409694,-8836.12,Computerland Uk Ltd
Manchester City Council,Corporate Services,Works and associated costs for Land and Buildings,17.01.2011,5100408227,26676,Electricity North West Limited
Manchester City Council,Adult Social Care,Works and associated costs for Land and Buildings,17.01.2011,5100395209,22860,F Parkinson Limited
Manchester City Council,Corporate Services,Works and associated costs for Land and Buildings,17.01.2011,5100409205,12550,Intrinsic Technology Limited
Manchester City Council,Childrens Services,Works and associated costs for Land and Buildings,17.01.2011,5100407702,14081,ISG Regions Building Ltd
Manchester City Council,Manchester Leisure,Works and associated costs for Land and Buildings,17.01.2011,5100408130,10710,ISG Regions Building Ltd
Manchester City Council,Childrens Services,Works and associated costs for Land and Buildings,17.01.2011,5100409979,514.94,Manchester Working Ltd
Manchester City Council,Childrens Services,Works and associated costs for Land and Buildings,17.01.2011,5100409975,17135.12,Manchester Working Ltd
Manchester City Council,Chief Executives,Works and associated costs for Land and Buildings,17.01.2011,5100409835,-998615,Sir Robert McAlpine Ltd
Manchester City Council,Chief Executives,Works and associated costs for Land and Buildings,17.01.2011,5100408491,102919.43,Sir Robert McAlpine Ltd
Manchester City Council,Chief Executives,Works and associated costs for Land and Buildings,17.01.2011,5100409830,998615,Sir Robert McAlpine Ltd
Manchester City Council,Chief Executives,Works and associated costs for Land and Buildings,17.01.2011,5100408485,1173372.63,Sir Robert McAlpine Ltd
Manchester City Council,Childrens Services,Agency staff provision,18.01.2011,5100409926,-519.75,Bennett Staff Bureau
Manchester City Council,Childrens Services,Agency staff provision,18.01.2011,5100409940,-519.75,Bennett Staff Bureau
Manchester City Council,Childrens Services,Agency staff provision,18.01.2011,5100409944,-601.43,Bennett Staff Bureau
Manchester City Council,Childrens Services,Agency staff provision,18.01.2011,5100409932,-519.75,Bennett Staff Bureau
Manchester City Council,Chief Executives,Agency staff provision,18.01.2011,5100410576,919.56,Building Recruitment Company
Manchester City Council,Chief Executives,Agency staff provision,18.01.2011,5100410555,1018.52,Building Recruitment Company
Manchester City Council,Chief Executives,Agency staff provision,18.01.2011,5100410561,1091.71,Building Recruitment Company
Manchester City Council,Chief Executives,Agency staff provision,18.01.2011,5100410564,6511.61,Capita  Resourcing Ltd
Manchester City Council,Chief Executives,Agency staff provision,18.01.2011,5100406555,15859.75,Gatenby Sanderson
Manchester City Council,Childrens Services,Agency staff provision,18.01.2011,5100409906,-599.55,PULSE
Manchester City Council,Childrens Services,Agency staff provision,18.01.2011,5100409909,-1800,PULSE
Manchester City Council,Adult Social Care,Agency staff provision,18.01.2011,5100409861,-665.36,Randstad Care
Manchester City Council,Chief Executives,Agency staff provision,18.01.2011,5100409880,-9659.32,Randstad Care
Manchester City Council,Chief Executives,Agency staff provision,18.01.2011,5100407657,9659.32,Randstad Care
Manchester City Council,Childrens Services,Agency staff provision,18.01.2011,5100409870,-1083.58,Randstad Care
Manchester City Council,Childrens Services,Agency staff provision,18.01.2011,5100409866,-771.96,Randstad Care
Manchester City Council,Chief Executives,Agency staff provision,18.01.2011,5100410300,1394.7,Rullion Engineering Personnel Limit
Manchester City Council,Chief Executives,Agency staff provision,18.01.2011,5100409883,-2619.44,Sanctuary Social Care
Manchester City Council,Chief Executives,Agency staff provision,18.01.2011,5100409586,1707.5,Spring Technology Staffing Services
Manchester City Council,Childrens Services,Bed & Breakfast Acc,18.01.2011,1902404877,1740,Options Group
Manchester City Council,Corporate Services,Building Materials for direct delivery,18.01.2011,5100410077,529.2,H & S Electrical Wholesalers Ltd
Manchester City Council,Housing General Fund,Building Works,18.01.2011,1902442462,4158,Stannah Lift Services Ltd
Manchester City Council,Chief Executives,Building Works,18.01.2011,5100410317,9750,Urban Splash
Manchester City Council,Regeneration Finance,Car Parking Permits,18.01.2011,5100410841,-624.34,National Car Parks Ltd Season Ticke
Manchester City Council,Childrens Services,Car Parking Permits,18.01.2011,5100410985,-1565.21,NCP Gateway
Manchester City Council,Highways Services,Car Parking Permits,18.01.2011,5100410915,-884.1,NCP Gateway
Manchester City Council,Adult Social Care,Catering,18.01.2011,5100409997,1721.07,Quaker Trading Ltd
Manchester City Council,Hospitality + Trading Services,Catering Provisions,18.01.2011,1902442661,501.83,Brake Bros Foodservice Ltd
Manchester City Council,Hospitality + Trading Services,Catering Provisions,18.01.2011,1902442742,961.94,Brake Bros Foodservice Ltd
Manchester City Council,Childrens Services,Coach Hire,18.01.2011,5100410637,598,Connect Cars Ltd
Manchester City Council,Childrens Services,Coach Hire,18.01.2011,5100410643,780,Connect Cars Ltd
Manchester City Council,Childrens Services,Coach Hire,18.01.2011,5100410625,910,Connect Cars Ltd
Manchester City Council,Childrens Services,Coach Hire,18.01.2011,5100410581,780,David'S Handy Rider
Manchester City Council,Childrens Services,Coach Hire,18.01.2011,5100410594,1140,David'S Handy Rider
Manchester City Council,Childrens Services,Coach Hire,18.01.2011,5100410584,1320,David'S Handy Rider
Manchester City Council,Childrens Services,Coach Hire,18.01.2011,5100410139,2220.35,Stockport Metropolitan Borough Coun
Manchester City Council,Childrens Services,Coach Hire,18.01.2011,5100410140,3210,Stockport Metropolitan Borough Coun
Manchester City Council,Childrens Services,Compensation Payments,18.01.2011,1902440450,2200,Abney Garsden Mcdonald
Manchester City Council,Childrens Services,Compensation Payments,18.01.2011,1902440364,7700,Abney Garsden Mcdonald
Manchester City Council,Childrens Services,Compensation Payments,18.01.2011,1902440449,8250,Abney Garsden Mcdonald
Manchester City Council,Childrens Services,Compensation Payments,18.01.2011,1700018762,-1280,REDACTED PERSONAL DATA
Manchester City Council,Highways Services,Compensation Payments,18.01.2011,1902440515,3000,REDACTED PERSONAL DATA
Manchester City Council,Chief Executives,Construction Works,18.01.2011,5100410033,4042.97,B Rourke & Co Ltd
Manchester City Council,Corporate Services,Consultants Fees,18.01.2011,5100406521,"11,000.00",BDO Stoy Hayward LLP
Manchester City Council,Regeneration Finance,Consultants Fees,18.01.2011,5100410320,"6,000.00",The Boot Room
Manchester City Council,Corporate Services,Contract Cleaning External,18.01.2011,5100409873,500,Verti-Tech Ltd
Manchester City Council,Housing Revenue Account,Council Dwelling Adaptations,18.01.2011,5100410221,4999.72,Wates Construction Ltd
Manchester City Council,Housing Revenue Account,Council Dwelling Adaptations,18.01.2011,5100410221,14962.03,Wates Construction Ltd
Manchester City Council,Corporate Services,Electricity,18.01.2011,1902433849,2910.8,Bruntwood Estates Alpha
Manchester City Council,Chief Executives,Equipment,18.01.2011,5100410648,1544.12,Data Space Limited
Manchester City Council,Hospitality + Trading Services,Equipment,18.01.2011,1902442199,778.56,Intermart International Limited
Manchester City Council,Hospitality + Trading Services,Equipment,18.01.2011,1902442198,1459.8,Intermart International Limited
Manchester City Council,Libraries and Theatres,Equipment,18.01.2011,5100410490,9688,Liverpool Scenic Workshop
Manchester City Council,Adult Social Care,Equipment,18.01.2011,5100410343,11111.19,Prism UK Medical Ltd t/a Carefree
Manchester City Council,Adult Social Care,Equipment,18.01.2011,5100410343,11111.19,Redacted Personal Data
Manchester City Council,Adult Social Care,Funeral and coroner related services,18.01.2011,5100410645,1137,Michael Kennedy Funeral Service
Manchester City Council,Chief Executives,Funeral and coroner related services,18.01.2011,1902422823,1525,REDACTED PERSONAL DATA
Manchester City Council,Housing Revenue Account,Gas,18.01.2011,5100410018,81923.01,Utilicom Ltd
Manchester City Council,Chief Executives,General Office expenses,18.01.2011,1902440906,1500,Media Vest (Manchester) Ltd
Manchester City Council,Libraries and Theatres,Goods purchased for resale in Council outlets,18.01.2011,5100409573,588.29,Manchester College
Manchester City Council,Chief Executives,Grant and subscriptions awarded,18.01.2011,5100409945,1500,Barnardo's North West
Manchester City Council,Regeneration Finance,Grant and subscriptions awarded,18.01.2011,5100410498,516,Big Life Employment Ltd
Manchester City Council,Regeneration Finance,Grant and subscriptions awarded,18.01.2011,5100410499,572,Big Life Employment Ltd
Manchester City Council,Childrens Services,Grant and subscriptions awarded,18.01.2011,5100410111,1446.4,FC United of Manchester
Manchester City Council,Chief Executives,Grant and subscriptions awarded,18.01.2011,1902442563,17027.5,Manchester Deaf Centre Ltd
Manchester City Council,Chief Executives,Grant and subscriptions awarded,18.01.2011,1902442569,3750,Manchester Somali Senior Citizens
Manchester City Council,Chief Executives,Grant and subscriptions awarded,18.01.2011,1902442572,1275,New Moston & District CA
Manchester City Council,Regeneration Finance,Grant and subscriptions awarded,18.01.2011,1902442556,800,Rainbow Haven
Manchester City Council,Chief Executives,Grant and subscriptions awarded,18.01.2011,1902442417,1710,Victoria Road Homewatch & Residents
Manchester City Council,Chief Executives,Hire of Equipment,18.01.2011,5100410235,-773,John F Hunt Power Services
Manchester City Council,Chief Executives,Hire of Equipment,18.01.2011,5100410129,4120,John F Hunt Power Services
Manchester City Council,Hospitality + Trading Services,Hire of Machinery,18.01.2011,5100410223,2445,John Martin Devine Ltd
Manchester City Council,Hospitality + Trading Services,Hire of Machinery,18.01.2011,5100393787,5160,Worsley Plant Ltd
Manchester City Council,Hospitality + Trading Services,I T Provision,18.01.2011,5100409710,762.5,Blackstone Computer Services Ltd
Manchester City Council,Environment and Operations,I T Provision,18.01.2011,5100409994,650,MobileWorks Ltd
Manchester City Council,Corporate Services,I T Provision,18.01.2011,5100410608,4880,Ws Atkins (Services) Ltd
Manchester City Council,Insurance Fund,Insurance,18.01.2011,5100408816,763.75,REDACTED PERSONAL DATA
Manchester City Council,Hospitality + Trading Services,Insurance,18.01.2011,1902442494,16900.89,Zurich Municipal
Manchester City Council,Corporate Services,Landline Telephone,18.01.2011,1902440525,959.88,Cable & Wireless UK
Manchester City Council,Regeneration Finance,Landline Telephone,18.01.2011,1902400795,11900,Cable & Wireless UK
Manchester City Council,Childrens Services,Compensation Payments,18.01.2011,1902440368,6000,Abney Garsden Mcdonald
Manchester City Council,Childrens Services,Compensation Payments,18.01.2011,1902440375,7250,Abney Garsden Mcdonald
Manchester City Council,Childrens Services,Compensation Payments,18.01.2011,1902440367,10900,Abney Garsden Mcdonald
Manchester City Council,Childrens Services,Legal Fees,18.01.2011,1902440596,3126.65,REDACTED PERSONAL DATA
Manchester City Council,Highways Services,Legal Fees,18.01.2011,5100410647,810.75,REDACTED PERSONAL DATA
Manchester City Council,Libraries and Theatres,Library Materials Acquisition,18.01.2011,1902442921,1916,Azhar Enterrprises
Manchester City Council,Adult Social Care,Mobilephone Charges,18.01.2011,1902399887,5154.62,T-Mobile
Manchester City Council,Adult Social Care,Mobilephone Charges,18.01.2011,1902365869,6775.75,T-Mobile
Manchester City Council,Corporate Services,Mobilephone Charges,18.01.2011,1902438447,566.21,T-Mobile
Manchester City Council,Corporate Services,Oth Professional Fee,18.01.2011,5100407172,"8,442.70",Edmond Shipway
Manchester City Council,Regeneration Finance,Oth Professional Fee,18.01.2011,5100410114,"3,695.00",Martin Crookston Ltd
Manchester City Council,Highways Services,Oth Professional Fee,18.01.2011,5100410307,"3,228.20",P. Terry Business Solutions
Manchester City Council,Highways Services,Oth Professional Fee,18.01.2011,5100410511,"4,299.04",Scott Wilson Ltd
Manchester City Council,Childrens Services,Payments for services,18.01.2011,5100410553,1510,Eastlands Homes Partnership Ltd
Manchester City Council,Chief Executives,Payments for services,18.01.2011,5100410087,1365,Mimosa Recovery Ltd
Manchester City Council,Environment and Operations,Payments to Contractors,18.01.2011,5100410148,71487.97,NSL Ltd
Manchester City Council,Environment and Operations,Payments to Contractors,18.01.2011,5100410151,177592.17,NSL Ltd
Manchester City Council,Adult Social Care,Personal needs of client,18.01.2011,5100409772,4320,Invacare Limited
Manchester City Council,Adult Social Care,Personal needs of client,18.01.2011,5100409043,980.76,Irwell Valley Housing Association
Manchester City Council,Adult Social Care,Personal needs of client,18.01.2011,5100409250,980.76,Irwell Valley Housing Association
Manchester City Council,Adult Social Care,Personal needs of client,18.01.2011,5100408887,687.5,Ots Ltd
Manchester City Council,Childrens Services,Postage,18.01.2011,5100410593,3229,Neopost Ltd
Manchester City Council,Hospitality + Trading Services,Postage,18.01.2011,5100410092,1303.81,Royal Mail Group Plc
Manchester City Council,Hospitality + Trading Services,Postage,18.01.2011,5100410089,1855.66,Royal Mail Group Plc
Manchester City Council,Chief Executives,Printing,18.01.2011,5100410110,1600,Allied Publicity Serv.(Manchester)
Manchester City Council,Childrens Services,Printing,18.01.2011,5100410049,2000,Parliamentary News Services
Manchester City Council,Childrens Services,Private Finance and Public Private partnership initiatives,18.01.2011,5100408799,51530.1,NU3PS
Manchester City Council,Regeneration Finance,Proffesional fees,18.01.2011,5100410525,1000,Contact Theatre Company
Manchester City Council,Childrens Services,Proffesional fees,18.01.2011,5100410124,4918.34,Henshaws Society For Blind People
Manchester City Council,Chief Executives,Proffesional fees,18.01.2011,5100410013,-1024.25,John F Hunt Power Services
Manchester City Council,Chief Executives,Proffesional fees,18.01.2011,5100410127,980,John F Hunt Power Services
Manchester City Council,Chief Executives,Proffesional fees,18.01.2011,5100399598,1024.25,John F Hunt Power Services
Manchester City Council,Childrens Services,Proffesional fees,18.01.2011,5100410895,-568,National Car Parks Ltd Season Ticke
Manchester City Council,Chief Executives,Proffesional fees,18.01.2011,1902440458,500,REDACTED PERSONAL DATA
Manchester City Council,Chief Executives,Proffesional fees,18.01.2011,5100410170,1215,Showmed
Manchester City Council,Childrens Services,Proffesional fees,18.01.2011,1902440514,1353.56,Stephensons Solicitors
Manchester City Council,Housing Revenue Account,Proffesional fees,18.01.2011,5100410638,664.52,Switch 2 Energy Solutions Ltd
Manchester City Council,Housing Revenue Account,Proffesional fees,18.01.2011,5100410640,1295.04,Switch 2 Energy Solutions Ltd
Manchester City Council,Hospitality + Trading Services,Purchase of stores for re-distribution,18.01.2011,5100409234,1481.75,Burdens Ltd
Manchester City Council,Hospitality + Trading Services,Purchase of stores for re-distribution,18.01.2011,5100409923,-2294.84,Premiere Products
Manchester City Council,Hospitality + Trading Services,Purchase of stores for re-distribution,18.01.2011,5100409938,2294.84,Premiere Products
Manchester City Council,Hospitality + Trading Services,Purchase of stores for re-distribution,18.01.2011,5100406460,3208.36,Premiere Products
Manchester City Council,Hospitality + Trading Services,Purchase of stores for re-distribution,18.01.2011,5100410039,1250,Technical Diamond Products LLP
Manchester City Council,Hospitality + Trading Services,Refuse Collection,18.01.2011,5100409160,1359.94,Enterprise Manchester Partnership
Manchester City Council,Adult Social Care,Rents,18.01.2011,1902434196,15380,Happy Homes Uk Ltd
Manchester City Council,Adult Social Care,Rents,18.01.2011,5100409324,8904.4,Mosscare Housing Ltd
Manchester City Council,Adult Social Care,Rents,18.01.2011,5100409325,8904.4,Mosscare Housing Ltd
Manchester City Council,Adult Social Care,Rents,18.01.2011,5100409326,8904.4,Mosscare Housing Ltd
Manchester City Council,Adult Social Care,Rents,18.01.2011,5100409317,2217.44,Mosscare Housing Ltd
Manchester City Council,Adult Social Care,Rents,18.01.2011,5100409318,2217.44,Mosscare Housing Ltd
Manchester City Council,Adult Social Care,Rents,18.01.2011,5100409320,2217.44,Mosscare Housing Ltd
Manchester City Council,Adult Social Care,Rents,18.01.2011,1902434180,560,Redacted Personal Data
Manchester City Council,Corporate Services,Rents,18.01.2011,5100406312,1979.54,Zion Arts Centre Ltd
Manchester City Council,Hospitality + Trading Services,Security,18.01.2011,5100409967,15711.36,Showsec International Ltd
Manchester City Council,Hospitality + Trading Services,Security,18.01.2011,5100409953,16622.76,Showsec International Ltd
Manchester City Council,Hospitality + Trading Services,Security,18.01.2011,5100409978,30117.36,Showsec International Ltd
Manchester City Council,Hospitality + Trading Services,Security,18.01.2011,5100409727,4596,Showsec International Ltd
Manchester City Council,Corporate Services,Service Charges,18.01.2011,1902442492,7251.75,Workman LLP
Manchester City Council,Regeneration Finance,Severance Payments,18.01.2011,1902443133,3593.55,REDACTED PERSONAL DATA
Manchester City Council,Childrens Services,Subsistence and Conference Expenses,18.01.2011,5100407668,2730,Babcock 4S Limited
Manchester City Council,Childrens Services,Subsistence and Conference Expenses,18.01.2011,5100409729,1150,REDACTED PERSONAL DATA
Manchester City Council,Adult Social Care,Third party payments relating to Voluntary Organisations,18.01.2011,5100410567,6507,Talbot House Support Centre
Manchester City Council,Hospitality + Trading Services,Training and Development,18.01.2011,5100410168,1117,REDACTED PERSONAL DATA
Manchester City Council,Hospitality + Trading Services,Vehicle Parts/Spares,18.01.2011,5100410189,3022.5,N. A. Brown Limited
Manchester City Council,Childrens Services,Works and associated costs for Land and Buildings,18.01.2011,5100410528,51814.3,GB Building Solutions Ltd
Manchester City Council,Childrens Services,Works and associated costs for Land and Buildings,18.01.2011,5100409972,-17650.06,Manchester Working Ltd
Manchester City Council,Childrens Services,Works and associated costs for Land and Buildings,18.01.2011,5100406811,17650.06,Manchester Working Ltd
Manchester City Council,Childrens Services,Works and associated costs for Land and Buildings,18.01.2011,5100410187,-7700,Turner & Townsend Project
Manchester City Council,Childrens Services,Works and associated costs for Land and Buildings,18.01.2011,5100410203,1286.5,Turner & Townsend Project
Manchester City Council,Childrens Services,Works and associated costs for Land and Buildings,18.01.2011,5100410203,6413.5,Turner & Townsend Project
Manchester City Council,Environment and Operations,Advertising,19.01.2011,5100411060,10687.6,Creative Concern
Manchester City Council,Chief Executives,Advertising,19.01.2011,5100411416,-7373.75,Personnel Publications Ltd
Manchester City Council,Chief Executives,Advertising,19.01.2011,5100411366,7373.75,Personnel Publications Ltd
Manchester City Council,Highways Services,Agency staff provision,19.01.2011,5100410516,9332.26,AECOM Limited
Manchester City Council,Chief Executives,Agency staff provision,19.01.2011,5100411106,745.92,Carepath Recruitment
Manchester City Council,Housing Revenue Account,Agency staff provision,19.01.2011,5100411095,7000,City South Manchester Housing Trust
Manchester City Council,Chief Executives,Agency staff provision,19.01.2011,5100411031,3942.34,Deekay Technical Recruitment Ltd
Manchester City Council,Chief Executives,Agency staff provision,19.01.2011,5100411139,1296.05,Kenyon Block Consultants Ltd
Manchester City Council,Grtr Manchester Urban Traffic,Agency staff provision,19.01.2011,5100411125,2880,P J Markham Electronics Maintenance
Manchester City Council,Chief Executives,Agency staff provision,19.01.2011,5100410181,2400,Practicus
Manchester City Council,Chief Executives,Agency staff provision,19.01.2011,5100408494,4200,Practicus
Manchester City Council,Chief Executives,Agency staff provision,19.01.2011,5100411135,1120,Sellick Partnership (Legal) Ltd
Manchester City Council,Environment and Operations,AGMA Contributions,19.01.2011,5100411127,1216,Animal Wardens Ltd
Manchester City Council,Hospitality + Trading Services,Building Materials for direct delivery,19.01.2011,5100409407,3849.44,Marshalls Mono Ltd
Manchester City Council,Hospitality + Trading Services,Building Materials for direct delivery,19.01.2011,5100409523,1491.21,Marshalls Mono Ltd
Manchester City Council,Hospitality + Trading Services,Building Materials for direct delivery,19.01.2011,5100409525,4200,Marshalls Mono Ltd
Manchester City Council,Hospitality + Trading Services,Building Materials for direct delivery,19.01.2011,5100409530,8682.75,Marshalls Mono Ltd
Manchester City Council,Hospitality + Trading Services,Building Materials for direct delivery,19.01.2011,5100409539,3009.6,Marshalls Mono Ltd
Manchester City Council,Hospitality + Trading Services,Building Materials for direct delivery,19.01.2011,5100411551,5460,Marshalls Mono Ltd
Manchester City Council,Housing General Fund,Building Works,19.01.2011,5100410745,30499,Cruden Group Ltd
Manchester City Council,Housing General Fund,Building Works,19.01.2011,5100410896,200000,Eaga PLC
Manchester City Council,Housing General Fund,Building Works,19.01.2011,1902440929,4190,Manchester Working Ltd
Manchester City Council,Environment and Operations,Car Parking Permits,19.01.2011,5100410942,911.46,GBH Ltd
Manchester City Council,Hospitality + Trading Services,Cash Sales Income,19.01.2011,1902442623,589.65,REDACTED PERSONAL DATA
Manchester City Council,Childrens Services,Catering,19.01.2011,5100410910,500,Greater Manchester Police Sports &
Manchester City Council,Childrens Services,Catering,19.01.2011,5100410995,665.4,Jo'S Sandwich Co
Manchester City Council,Childrens Services,Catering,19.01.2011,5100410988,546,University Of Manchester
Manchester City Council,Childrens Services,Coach Hire,19.01.2011,5100410786,1530,Abacus Travel Services
Manchester City Council,Childrens Services,Coach Hire,19.01.2011,5100410677,591,Connect Cars Ltd
Manchester City Council,Childrens Services,Coach Hire,19.01.2011,5100410669,715,Connect Cars Ltd
Manchester City Council,Childrens Services,Coach Hire,19.01.2011,5100410652,729,Connect Cars Ltd
Manchester City Council,Childrens Services,Coach Hire,19.01.2011,5100410689,931.5,Connect Cars Ltd
Manchester City Council,Childrens Services,Coach Hire,19.01.2011,5100410709,1012,Connect Cars Ltd
Manchester City Council,Childrens Services,Coach Hire,19.01.2011,5100410658,1200,Connect Cars Ltd
Manchester City Council,Childrens Services,Coach Hire,19.01.2011,5100410694,1200,Connect Cars Ltd
Manchester City Council,Childrens Services,Coach Hire,19.01.2011,5100410697,1287,Connect Cars Ltd
Manchester City Council,Childrens Services,Coach Hire,19.01.2011,5100410680,1337.5,Connect Cars Ltd
Manchester City Council,Childrens Services,Coach Hire,19.01.2011,5100410684,2150,Connect Cars Ltd
Manchester City Council,Childrens Services,Coach Hire,19.01.2011,5100410978,-12480,Orion Travel
Manchester City Council,Childrens Services,Coach Hire,19.01.2011,5100407535,36169.74,Orion Travel
Manchester City Council,Chief Executives,Communications,19.01.2011,5100407694,2033.28,Creative Concern
Manchester City Council,Manchester Leisure,Compensation Payments,19.01.2011,5100411154,1057.5,Kings Chambers
Manchester City Council,Chief Executives,Consultants Fees,19.01.2011,5100410918,"8,136.35",Davis Langdon
Manchester City Council,Regeneration Finance,Contract Cleaning External,19.01.2011,5100409253,723.7,SOG Ltd
Manchester City Council,Learning Disabilities PB,Contributions from Manchester PCT,19.01.2011,1902449202,31888,Percy Westhead & Co
Manchester City Council,Housing Revenue Account,Council Dwelling Adaptations,19.01.2011,5100410822,3220,A & K Building Services Ltd
Manchester City Council,Regeneration Finance,Electricity,19.01.2011,5100410737,580.23,Bruntwood Estates Alpha
Manchester City Council,Hospitality + Trading Services,Equipment,19.01.2011,5100411182,11500,DP Structures Ltd
Manchester City Council,Adult Social Care,Equipment,19.01.2011,5100362016,1620,Lisclare
Manchester City Council,Adult Social Care,Equipment,19.01.2011,5100410326,801.51,Prism UK Medical Ltd t/a Carefree
Manchester City Council,Adult Social Care,Equipment,19.01.2011,5100410326,801.51,Redacted Personal Data
Manchester City Council,Chief Executives,Examination Fees,19.01.2011,5100411017,500,University Hospital of South Mcr
Manchester City Council,Chief Executives,Examination Fees,19.01.2011,5100411012,2645,University Hospital of South Mcr
Manchester City Council,Childrens Services,External CRB Fees,19.01.2011,5100410696,13824,Criminal Records Bureau
Manchester City Council,Chief Executives,Funeral and coroner related services,19.01.2011,5100411118,798.4,Michael Kennedy Funeral Service
Manchester City Council,Chief Executives,Funeral and coroner related services,19.01.2011,5100411000,580.8,REDACTED PERSONAL DATA
Manchester City Council,Chief Executives,Funeral and coroner related services,19.01.2011,5100411109,774.4,REDACTED PERSONAL DATA
Manchester City Council,Chief Executives,Funeral and coroner related services,19.01.2011,5100411014,7128,University Hospital of South Mcr
